Department Family,Entity,Date of Payment,Expense Type,Expense Area,Supplier,Voluntary & Community Sector,SME Class,Sole Trader,Transaction number,Narrative,Postal Code,Amount in Sterling,Grant?
Communities & Local Government,DCLG,03/09/2012,Capital Grants to Private Sect Non Profit,Neighbourhoods,TRIBAL EDUCATION,,Large,,2100221036,Empty Homes Community Grant Funding,BS2 8RR,"3,500,000.00",Yes
Communities & Local Government,DCLG,03/09/2012,Fixed Maintenance,Finance & Corporate Services,E C HARRIS LLP,,Large,,5106182917,PAMU Estates Proj Management-Durham RCC,N1 9AB,"3,844.60",
Communities & Local Government,DCLG,03/09/2012,IT - Service Contracts,Finance & Corporate Services,SWIRRL IT LIMITED,,Micro,,2100221157,Communication activity,FK7 7WT,"-7,471.20",
Communities & Local Government,DCLG,03/09/2012,IT - Service Contracts,Finance & Corporate Services,SWIRRL IT LIMITED,,Micro,,5106182844,Communication activity,FK7 7WT,"7,471.20",
Communities & Local Government,DCLG,03/09/2012,IT - Software Maintenance,Finance & Corporate Services,METHODS CONSULTING LTD,,Medium,,5106182911,PIMS Application Support FY 2012/13,WC2H 8AD,"24,000.00",
Communities & Local Government,DCLG,03/09/2012,Subscriptions,Finance & Corporate Services,SOCITM LTD,,Small,,5106182880,SOCITM application register subs,NN3 6AQ,295.00,
Communities & Local Government,DCLG,03/09/2012,Telephone call costs,Finance & Corporate Services,DAMOVO UK LTD,,Large,,5106182913,Telephony Charges,RH12 4QP,"5,180.04",
Communities & Local Government,DCLG,03/09/2012,Variable Maintenance < 15k,Finance & Corporate Services,INTERSERVE (FACILITIES MANAGEMENT),,Large,,5106182843,Eland Variable Maintenance 2012 - 13,BS32 4NH,"8,517.85",
Communities & Local Government,DCLG,03/09/2012,Vehicle Maintenance,Localism,BABCOCK CRITICAL SERVICES LTD,,Large,,5106182632,Unplanne Maintenance 12/13,NG15 0DR,"49,575.61",
Communities & Local Government,DCLG,03/09/2012,Work In Progress Pre-Cert 40373 Spend,Neighbourhoods,BRADFORD  MDC,,,,7600002504,ERDF Claim - 12 - P3-YH,BD1 5RE,"234,799.49",
Communities & Local Government,DCLG,03/09/2012,Work In Progress Pre-Cert 40373 Spend,Neighbourhoods,BRADFORD  MDC,,,,7600002506,ERDF Claim - 13 - P3-YH,BD1 5RE,"30,746.01",
Communities & Local Government,DCLG,03/09/2012,Work In Progress Pre-Cert 40373 Spend,Neighbourhoods,HUDDERSFIELD UNIVERISTY,,,,7600002508,ERDF Claim - 27 - P1-YH,HD1 3DH,"18,964.43",
Communities & Local Government,DCLG,03/09/2012,Work In Progress Pre-Cert 40373 Spend,Neighbourhoods,LEICESTER CITY COUNCIL,,Large,,7600002503,ERDF Claim - 16 - P1,LE1 6ZG,215.55,
Communities & Local Government,DCLG,03/09/2012,Work In Progress Pre-Cert 40373 Spend,Neighbourhoods,LOWER CARBON ECONOMY-RESOURCE EFF,,,,7600002499,ERDF Claim - 40 - P2-SY,LS11 5AE,"31,000.11",
Communities & Local Government,DCLG,03/09/2012,Work In Progress Pre-Cert 40373 Spend,Neighbourhoods,LOWER CARBON ECONOMY-RESOURCE EFF,,,,7600002505,ERDF Claim - 40 - P2-YH,LS11 5AE,"21,261.51",
Communities & Local Government,DCLG,03/09/2012,Work In Progress Pre-Cert 40373 Spend,Neighbourhoods,SCIENCE CITY YORK,,,,7600002509,ERDF Claim - 66 - P2-YH,YO10 5NY,"40,880.94",
Communities & Local Government,DCLG,03/09/2012,Work In Progress Pre-Cert 40373 Spend,Neighbourhoods,SCIENCE CITY YORK,,,,7600002507,ERDF Claim - 66 - P2-YH,YO10 5NY,"17,825.25",
Communities & Local Government,DCLG,03/09/2012,Work In Progress Pre-Cert 40373 Spend,Neighbourhoods,STOKE-ON-TRENT CITY COUNCIL,,Large,,7600002500,ERDF Claim - 17 - P3,ST4 1HP,"15,094.28",
Communities & Local Government,DCLG,03/09/2012,Work In Progress Pre-Cert 40373 Spend,Neighbourhoods,YORKS & HUMBER PEOPLE UTD AGAINST C,,,,7600002501,ERDF Claim - 10 - P2-SY,S1 2AH,"20,640.85",
Communities & Local Government,DCLG,03/09/2012,Work In Progress Pre-Cert 40373 Spend,Neighbourhoods,YORKS & HUMBER PEOPLE UTD AGAINST C,,,,7600002502,ERDF Claim - 10 - P2-YH,S1 2AH,"34,427.99",
Communities & Local Government,DCLG,03/09/2012,Work In Progress Pre-Cert 40467 Spend,Neighbourhoods,HUDDERSFIELD UNIVERISTY,,,,7600002508,ERDF Claim - 27 - P1-YH,HD1 3DH,"151,042.81",
Communities & Local Government,DCLG,03/09/2012,Work In Progress Pre-Cert 40467 Spend,Neighbourhoods,LEICESTER CITY COUNCIL,,Large,,7600002503,ERDF Claim - 16 - P1,LE1 6ZG,441.01,
Communities & Local Government,DCLG,04/09/2012,Agency Staff,Finance & Corporate Services,MANPOWER UK LTD,,Large,,5106182998,Temp information specialist,UB8 1AB,860.92,
Communities & Local Government,DCLG,04/09/2012,Agency Staff,Finance & Corporate Services,OFFICE ANGELS LTD,,Large,,5106182934,2 temps: booking of perf man training,B37 7YE,381.60,
Communities & Local Government,DCLG,04/09/2012,Agency Staff,Finance & Corporate Services,OFFICE ANGELS LTD,,Large,,5106182936,2 temps: booking of perf man training,B37 7YE,381.60,
Communities & Local Government,DCLG,04/09/2012,Agency Staff,Finance & Corporate Services,OFFICE ANGELS LTD,,Large,,5106182941,2 temps: booking of perf man training,B37 7YE,381.60,
Communities & Local Government,DCLG,04/09/2012,Agency Staff,Finance & Corporate Services,OFFICE ANGELS LTD,,Large,,5106182967,2 temps: booking of perf man training,B37 7YE,381.60,
Communities & Local Government,DCLG,04/09/2012,Domestic Services,Finance & Corporate Services,AMEY COMMUNITY LTD,,Large,,5106182923,2012-13 Lateral Cleaning,OX4 4DQ,"3,185.36",
Communities & Local Government,DCLG,04/09/2012,Domestic Services,Finance & Corporate Services,AMEY COMMUNITY LTD,,Large,,5106182923,2012-13 Lateral General Waste Provision,OX4 4DQ,428.66,
Communities & Local Government,DCLG,04/09/2012,Facilities Management (ISD use only),Finance & Corporate Services,AMEY COMMUNITY LTD,,Large,,5106182923,2012-12 Lateral Gen Requirements,OX4 4DQ,"3,253.20",
Communities & Local Government,DCLG,04/09/2012,Facilities Management (ISD use only),Finance & Corporate Services,AMEY COMMUNITY LTD,,Large,,5106182923,2012-13 Lateral Asset & Prop Management,OX4 4DQ,123.41,
Communities & Local Government,DCLG,04/09/2012,Facilities Management (ISD use only),Finance & Corporate Services,AMEY COMMUNITY LTD,,Large,,5106182923,2012-13 Lateral Estate Service,OX4 4DQ,"1,309.08",
Communities & Local Government,DCLG,04/09/2012,Facilities Management (ISD use only),Finance & Corporate Services,AMEY COMMUNITY LTD,,Large,,5106182923,2012-13 Lateral Helpdesk Service,OX4 4DQ,559.28,
Communities & Local Government,DCLG,04/09/2012,Facilities Management (ISD use only),Finance & Corporate Services,AMEY COMMUNITY LTD,,Large,,5106182923,2012-13 Lateral Porterage,OX4 4DQ,16.60,
Communities & Local Government,DCLG,04/09/2012,Facilities Management (ISD use only),Finance & Corporate Services,AMEY COMMUNITY LTD,,Large,,5106182923,2012-13 Lateral X-Ray Services,OX4 4DQ,36.81,
Communities & Local Government,DCLG,04/09/2012,Fixed Maintenance,Finance & Corporate Services,AMEY COMMUNITY LTD,,Large,,5106182923,2012-13 Lateral Grounds & Gardens,OX4 4DQ,120.52,
Communities & Local Government,DCLG,04/09/2012,Grant in Aid to NDPBs (non budget),Localism,VALUATION TRIBUNAL SERVICE,,,,2100221162,Claim in respect to September 2012 expenditure.,E1 1DU,"684,820.00",Yes
Communities & Local Government,DCLG,04/09/2012,IT - Service Contracts,Finance & Corporate Services,SWIRRL IT LIMITED,,Micro,,5106182942,remote Application Development,FK7 7WT,"7,471.20",
Communities & Local Government,DCLG,04/09/2012,Mileage UK,Neighbourhoods,MR GORDON SCOTT,,,,2100221158,EXPENSES : 10 & 12 JULY 2012,,20.00,
Communities & Local Government,DCLG,04/09/2012,National Non Domestic Rates (NNDR) Payments,Localism,AVON & SOMERSET POLICE AUTHORITY,,,,5000209396,Grant Payable by Exchequer,TA1 4DY,"2,913,957.00",Yes
Communities & Local Government,DCLG,04/09/2012,National Non Domestic Rates (NNDR) Payments,Localism,AVON FIRE AUTHORITY,,,,5000209401,Grant Payable by Exchequer,BS1 6EU,"1,069,474.00",Yes
Communities & Local Government,DCLG,04/09/2012,National Non Domestic Rates (NNDR) Payments,Localism,BARKING & DAGENHAM LB,,,,5000209421,Grant Payable by Exchequer,RM10 7BY,"4,676,807.00",Yes
Communities & Local Government,DCLG,04/09/2012,National Non Domestic Rates (NNDR) Payments,Localism,BARNSLEY MBC,,,,5000209434,Grant Payable by Exchequer,S70 2AQ,"4,810,612.00",Yes
Communities & Local Government,DCLG,04/09/2012,National Non Domestic Rates (NNDR) Payments,Localism,BEDFORDSHIRE POLICE AUTH,,,,5000209475,Grant Payable by Exchequer,MK43 9AX,"1,313,595.00",Yes
Communities & Local Government,DCLG,04/09/2012,National Non Domestic Rates (NNDR) Payments,Localism,BEDS & LUTON FIRE & RESCUE SERVICE,,,,5000209470,Grant Payable by Exchequer,MK42 7NR,"532,077.00",Yes
Communities & Local Government,DCLG,04/09/2012,National Non Domestic Rates (NNDR) Payments,Localism,BIRMINGHAM CITY CNCL,,,,5000209494,Grant Payable by Exchequer,B3 3AB,"30,125,706.00",Yes
Communities & Local Government,DCLG,04/09/2012,National Non Domestic Rates (NNDR) Payments,Localism,BLACKBURN WITH DARWEN BC,,,,5000209508,Grant Payable by Exchequer,BB1 7DY,"3,602,773.00",Yes
Communities & Local Government,DCLG,04/09/2012,National Non Domestic Rates (NNDR) Payments,Localism,BLACKPOOL BC,,,,5000209514,Grant Payable by Exchequer,FY1 1NA,"3,843,923.00",Yes
Communities & Local Government,DCLG,04/09/2012,National Non Domestic Rates (NNDR) Payments,Localism,BOLTON MBC,,,,5000209527,Grant Payable by Exchequer,BL1 1RU,"5,580,216.00",Yes
Communities & Local Government,DCLG,04/09/2012,National Non Domestic Rates (NNDR) Payments,Localism,BRADFORD MBC,,,,5000209552,Grant Payable by Exchequer,BD1 1HX,"11,945,917.00",Yes
Communities & Local Government,DCLG,04/09/2012,National Non Domestic Rates (NNDR) Payments,Localism,BRENT LB,,,,5000209571,Grant Payable by Exchequer,HA9 9EZ,"7,242,066.00",Yes
Communities & Local Government,DCLG,04/09/2012,National Non Domestic Rates (NNDR) Payments,Localism,BRIGHTON & HOVE CITY COUNCIL,,,,5000209585,Grant Payable by Exchequer,BN3 2SR,"4,863,382.00",Yes
Communities & Local Government,DCLG,04/09/2012,National Non Domestic Rates (NNDR) Payments,Localism,BUCKINGHAMSHIRE CC,,,,5000209634,Grant Payable by Exchequer,HP20 1UD,"2,993,863.00",Yes
Communities & Local Government,DCLG,04/09/2012,National Non Domestic Rates (NNDR) Payments,Localism,BUCKS & MILTON KEYNES FIRE AUTH,,,,5000209628,Grant Payable by Exchequer,HP20 1BD,"507,761.00",Yes
Communities & Local Government,DCLG,04/09/2012,National Non Domestic Rates (NNDR) Payments,Localism,BURY MBC,,,,5000209709,Grant Payable by Exchequer,BL9 0SP,"2,945,692.00",Yes
Communities & Local Government,DCLG,04/09/2012,National Non Domestic Rates (NNDR) Payments,Localism,CALDERDALE MBC,,,,5000209710,Grant Payable by Exchequer,HX1 1YP,"3,590,418.00",Yes
Communities & Local Government,DCLG,04/09/2012,National Non Domestic Rates (NNDR) Payments,Localism,CAMBRIDGESHIRE COUNTY CNCL,,,,5000209713,Grant Payable by Exchequer,CB3 0AP,"5,275,467.00",Yes
Communities & Local Government,DCLG,04/09/2012,National Non Domestic Rates (NNDR) Payments,Localism,CAMBRIDGESHIRE POLICE AUT,,,,5000209712,Grant Payable by Exchequer,P18 8NP,"1,351,530.00",Yes
Communities & Local Government,DCLG,04/09/2012,National Non Domestic Rates (NNDR) Payments,Localism,CAMBS & PETERBOROUGH FIRE AUTHORITY,,,,5000209711,Grant Payable by Exchequer,PE29 2NA,"607,019.00",Yes
Communities & Local Government,DCLG,04/09/2012,National Non Domestic Rates (NNDR) Payments,Localism,CHESHIRE FIRE AUTHORITY,,,,5000209716,Grant Payable by Exchequer,CW7 2FQ,"916,270.00",Yes
Communities & Local Government,DCLG,04/09/2012,National Non Domestic Rates (NNDR) Payments,Localism,CHESHIRE POLICE AUTHORITY,,,,5000209720,Grant Payable by Exchequer,CW7 9FX,"2,403,852.00",Yes
Communities & Local Government,DCLG,04/09/2012,National Non Domestic Rates (NNDR) Payments,Localism,CITY OF WAKEFIELD MDC,,,,5000209555,Grant Payable by Exchequer,WF1 2QW,"6,103,459.00",Yes
Communities & Local Government,DCLG,04/09/2012,National Non Domestic Rates (NNDR) Payments,Localism,CLEVELAND FIRE AUTHORITY,,,,5000209724,Grant Payable by Exchequer,TS25 5TB,"924,441.00",Yes
Communities & Local Government,DCLG,04/09/2012,National Non Domestic Rates (NNDR) Payments,Localism,CLEVELAND POLICE AUTHORITY,,,,5000209726,Grant Payable by Exchequer,TS1 2JX,"2,069,159.00",Yes
Communities & Local Government,DCLG,04/09/2012,National Non Domestic Rates (NNDR) Payments,Localism,CO DURHAM & DARLINGTON FIRE AND RES,,,,5000209468,Grant Payable by Exchequer,DH1 5UE,"618,272.00",Yes
Communities & Local Government,DCLG,04/09/2012,National Non Domestic Rates (NNDR) Payments,Localism,CORNWALL COUNCIL,,,,5000209879,Grant Payable by Exchequer,TR1 3AY,"9,621,134.00",Yes
Communities & Local Government,DCLG,04/09/2012,National Non Domestic Rates (NNDR) Payments,Localism,COVENTRY CITY CNCL,,,,5000209729,Grant Payable by Exchequer,CV1 2QL,"6,946,353.00",Yes
Communities & Local Government,DCLG,04/09/2012,National Non Domestic Rates (NNDR) Payments,Localism,CROYDON LB,,,,5000209731,Grant Payable by Exchequer,CR9 3JS,"5,405,522.00",Yes
Communities & Local Government,DCLG,04/09/2012,National Non Domestic Rates (NNDR) Payments,Localism,CUMBRIA COUNTY CNCL,,,,5000209733,Grant Payable by Exchequer,CA3 8NA,"7,134,370.00",Yes
Communities & Local Government,DCLG,04/09/2012,National Non Domestic Rates (NNDR) Payments,Localism,CUMBRIA POLICE AUTHORITY,,,,5000209735,Grant Payable by Exchequer,CA10 2AU,"1,624,252.00",Yes
Communities & Local Government,DCLG,04/09/2012,National Non Domestic Rates (NNDR) Payments,Localism,DARLINGTON BC,,,,5000209377,Grant Payable by Exchequer,TS19 1JA,"1,820,518.00",Yes
Communities & Local Government,DCLG,04/09/2012,National Non Domestic Rates (NNDR) Payments,Localism,DERBY CITY CNCL,,,,5000209386,Grant Payable by Exchequer,DE1 2FS,"4,921,271.00",Yes
Communities & Local Government,DCLG,04/09/2012,National Non Domestic Rates (NNDR) Payments,Localism,DERBYSHIRE COUNTYCOUNCIL,,,,5000209402,Grant Payable by Exchequer,DE4 3AH,"9,161,876.00",Yes
Communities & Local Government,DCLG,04/09/2012,National Non Domestic Rates (NNDR) Payments,Localism,DERBYSHIRE FIRE AUTHORITY,,,,5000209392,Grant Payable by Exchequer,DE55 1RH,"860,486.00",Yes
Communities & Local Government,DCLG,04/09/2012,National Non Domestic Rates (NNDR) Payments,Localism,DERBYSHIRE POLICE AUTHORITY,,,,5000209397,Grant Payable by Exchequer,DE5 3RS,"2,075,226.00",Yes
Communities & Local Government,DCLG,04/09/2012,National Non Domestic Rates (NNDR) Payments,Localism,DEVON & CORNWALL POLICE A,,,,5000209413,Grant Payable by Exchequer,EX2 5YT,"3,277,670.00",Yes
Communities & Local Government,DCLG,04/09/2012,National Non Domestic Rates (NNDR) Payments,Localism,DEVON & SOMERSET FIRE & RESCUE SERV,,,,5000209425,Grant Payable by Exchequer,EX3 0NW,"1,518,302.00",Yes
Communities & Local Government,DCLG,04/09/2012,National Non Domestic Rates (NNDR) Payments,Localism,DEVON COUNTY CNCL,,,,5000209419,Grant Payable by Exchequer,EX2 4QJ,"8,358,698.00",Yes
Communities & Local Government,DCLG,04/09/2012,National Non Domestic Rates (NNDR) Payments,Localism,DONCASTER MBC,,,,5000209432,Grant Payable by Exchequer,DN1 3QA,"6,327,296.00",Yes
Communities & Local Government,DCLG,04/09/2012,National Non Domestic Rates (NNDR) Payments,Localism,DORSET COUNTY CNCL,,,,5000209438,Grant Payable by Exchequer,DT1 1XJ,"3,063,676.00",Yes
Communities & Local Government,DCLG,04/09/2012,National Non Domestic Rates (NNDR) Payments,Localism,DORSET FIRE AUTHORITY,,,,5000209443,Grant Payable by Exchequer,DT1 1FB,"537,657.00",Yes
Communities & Local Government,DCLG,04/09/2012,National Non Domestic Rates (NNDR) Payments,Localism,DORSET POLICE AUTHORITY,,,,5000209448,Grant Payable by Exchequer,DT2 8DZ,"994,025.00",Yes
Communities & Local Government,DCLG,04/09/2012,National Non Domestic Rates (NNDR) Payments,Localism,DUDLEY MBC,,,,5000209461,Grant Payable by Exchequer,DY1 1HF,"5,672,332.00",Yes
Communities & Local Government,DCLG,04/09/2012,National Non Domestic Rates (NNDR) Payments,Localism,DURHAM COUNTY COUNCIL,,,,5000209881,Grant Payable by Exchequer,DH1 5UE,"10,402,823.00",Yes
Communities & Local Government,DCLG,04/09/2012,National Non Domestic Rates (NNDR) Payments,Localism,DURHAM POLICE AUTHORITY,,,,5000209474,Grant Payable by Exchequer,DH1 5TT,"1,977,777.00",Yes
Communities & Local Government,DCLG,04/09/2012,National Non Domestic Rates (NNDR) Payments,Localism,EAST RIDING OF YORKS,,,,5000209528,Grant Payable by Exchequer,HU17 9AB,"4,535,586.00",Yes
Communities & Local Government,DCLG,04/09/2012,National Non Domestic Rates (NNDR) Payments,Localism,EAST SUSSEX COUNTY CNCL,,,,5000209541,Grant Payable by Exchequer,BN7 1SF,"5,332,634.00",Yes
Communities & Local Government,DCLG,04/09/2012,National Non Domestic Rates (NNDR) Payments,Localism,EAST SUSSEX FIRE & RESCUE SERVICE,,,,5000209547,Grant Payable by Exchequer,BN21 1EU,"675,742.00",Yes
Communities & Local Government,DCLG,04/09/2012,National Non Domestic Rates (NNDR) Payments,Localism,ENFIELD LB,,,,5000209577,Grant Payable by Exchequer,EN1 3XF,"5,839,705.00",Yes
Communities & Local Government,DCLG,04/09/2012,National Non Domestic Rates (NNDR) Payments,Localism,ESSEX COUNTY CNCL,,,,5000209602,Grant Payable by Exchequer,CM1 1JZ,"12,804,762.00",Yes
Communities & Local Government,DCLG,04/09/2012,National Non Domestic Rates (NNDR) Payments,Localism,ESSEX FIRE AUTHORITY,,,,5000209608,Grant Payable by Exchequer,CM8 3HB,"1,592,477.00",Yes
Communities & Local Government,DCLG,04/09/2012,National Non Domestic Rates (NNDR) Payments,Localism,ESSEX POLICE AUTHORITY,,,,5000209613,Grant Payable by Exchequer,CM2 6DA,"2,964,211.00",Yes
Communities & Local Government,DCLG,04/09/2012,National Non Domestic Rates (NNDR) Payments,Localism,GATESHEAD MBC,,,,5000209652,Grant Payable by Exchequer,NE8 1HH,"4,638,777.00",Yes
Communities & Local Government,DCLG,04/09/2012,National Non Domestic Rates (NNDR) Payments,Localism,GLOUCESTERSHIRE COUNTY CNCL,,,,5000209667,Grant Payable by Exchequer,GL1 2TG,"6,113,240.00",Yes
Communities & Local Government,DCLG,04/09/2012,National Non Domestic Rates (NNDR) Payments,Localism,GLOUCESTERSHIRE POLICE AUTHORITY,,,,5000209737,Grant Payable by Exchequer,GL2 2AN,"1,034,198.00",Yes
Communities & Local Government,DCLG,04/09/2012,National Non Domestic Rates (NNDR) Payments,Localism,GREATER LONDON AUTHORITY,,,,5000209660,Grant Payable by Exchequer,SE10 1AJ,"39,818,980.00",Yes
Communities & Local Government,DCLG,04/09/2012,National Non Domestic Rates (NNDR) Payments,Localism,GREATER LONDON AUTHORITY-FIRE,,,,5000209867,Grant Payable by Exchequer,SE1 2AA,"12,072,519.00",Yes
Communities & Local Government,DCLG,04/09/2012,National Non Domestic Rates (NNDR) Payments,Localism,GREATER MANCHESTER FIRE,,,,5000209618,Grant Payable by Exchequer,M27 2US,"3,126,072.00",Yes
Communities & Local Government,DCLG,04/09/2012,National Non Domestic Rates (NNDR) Payments,Localism,GREATER MANCHESTER POL AUTH,,,,5000209623,Grant Payable by Exchequer,M16 0RE,"9,774,319.00",Yes
Communities & Local Government,DCLG,04/09/2012,National Non Domestic Rates (NNDR) Payments,Localism,GREENWICH LB,,,,5000209739,Grant Payable by Exchequer,SE18 6RA,"7,220,142.00",Yes
Communities & Local Government,DCLG,04/09/2012,National Non Domestic Rates (NNDR) Payments,Localism,HALTON BC,,,,5000209743,Grant Payable by Exchequer,WA8 7QF,"2,928,007.00",Yes
Communities & Local Government,DCLG,04/09/2012,National Non Domestic Rates (NNDR) Payments,Localism,HAMPSHIRE COUNTY COUNCIL,,,,5000209744,Grant Payable by Exchequer,SO23 8UB,"8,259,415.00",Yes
Communities & Local Government,DCLG,04/09/2012,National Non Domestic Rates (NNDR) Payments,Localism,HAMPSHIRE FIRE & RESCUE AUTHORITY,,,,5000209745,Grant Payable by Exchequer,SO23 8UB,"1,447,396.00",Yes
Communities & Local Government,DCLG,04/09/2012,National Non Domestic Rates (NNDR) Payments,Localism,HAMPSHIRE POLICE AUTHORITY,,,,5000209746,Grant Payable by Exchequer,SO23 8UB,"3,374,229.00",Yes
Communities & Local Government,DCLG,04/09/2012,National Non Domestic Rates (NNDR) Payments,Localism,HARINGEY LB,,,,5000209747,Grant Payable by Exchequer,N22 7TR,"6,699,837.00",Yes
Communities & Local Government,DCLG,04/09/2012,National Non Domestic Rates (NNDR) Payments,Localism,HARROW LB,,,,5000209748,Grant Payable by Exchequer,HA1 2UZ,"3,131,092.00",Yes
Communities & Local Government,DCLG,04/09/2012,National Non Domestic Rates (NNDR) Payments,Localism,HARTLEPOOL BOROUGH COUNCIL,,,,5000209749,Grant Payable by Exchequer,TS24 7BT,"2,258,926.00",Yes
Communities & Local Government,DCLG,04/09/2012,National Non Domestic Rates (NNDR) Payments,Localism,HEREFORD WORCESTER FIRE BRIGADE,,,,5000209750,Grant Payable by Exchequer,WR1 2HQ,"517,397.00",Yes
Communities & Local Government,DCLG,04/09/2012,National Non Domestic Rates (NNDR) Payments,Localism,HEREFORDSHIRE DISTRICT COUNCIL,,,,5000209751,Grant Payable by Exchequer,HR1 1SH,"2,638,080.00",Yes
Communities & Local Government,DCLG,04/09/2012,National Non Domestic Rates (NNDR) Payments,Localism,HERTFORDSHIRE COUNTY CNCL,,,,5000209752,Grant Payable by Exchequer,SG13 9BD,"8,865,866.00",Yes
Communities & Local Government,DCLG,04/09/2012,National Non Domestic Rates (NNDR) Payments,Localism,HERTFORDSHIRE POLICE AUTHORITY,,,,5000209890,Grant Payable by Exchequer,AL8 6XF,"2,026,752.00",Yes
Communities & Local Government,DCLG,04/09/2012,National Non Domestic Rates (NNDR) Payments,Localism,HULL CITY COUNCIL,,,,5000209456,Grant Payable by Exchequer,HU1 2AA,"6,847,188.00",Yes
Communities & Local Government,DCLG,04/09/2012,National Non Domestic Rates (NNDR) Payments,Localism,HUMBERSIDE FIRE & RESCUE SERVICE,,,,5000209753,Grant Payable by Exchequer,HU4 7BB,"1,216,742.00",Yes
Communities & Local Government,DCLG,04/09/2012,National Non Domestic Rates (NNDR) Payments,Localism,HUMBERSIDE POLICE,,,,5000209754,Grant Payable by Exchequer,HU5 5SF,"2,485,367.00",Yes
Communities & Local Government,DCLG,04/09/2012,National Non Domestic Rates (NNDR) Payments,Localism,ISLE OF WIGHT CNCL,,,,5000209393,Grant Payable by Exchequer,PO30 1UD,"2,804,977.00",Yes
Communities & Local Government,DCLG,04/09/2012,National Non Domestic Rates (NNDR) Payments,Localism,ISLES OF SCILLY COUNCIL,,,,5000209406,Grant Payable by Exchequer,TR21 0LW,"122,530.00",Yes
Communities & Local Government,DCLG,04/09/2012,National Non Domestic Rates (NNDR) Payments,Localism,KENT & MEDWAY TOWNS FIRE AUTHORITY,,,,5000209431,Grant Payable by Exchequer,ME15 6XB,"1,388,775.00",Yes
Communities & Local Government,DCLG,04/09/2012,National Non Domestic Rates (NNDR) Payments,Localism,KENT COUNTY CNCL,,,,5000209426,Grant Payable by Exchequer,ME14 1XQ,"14,139,617.00",Yes
Communities & Local Government,DCLG,04/09/2012,National Non Domestic Rates (NNDR) Payments,Localism,KENT POLICE AUTHORITY,,,,5000209436,Grant Payable by Exchequer,ME15 9BZ,"3,673,735.00",Yes
Communities & Local Government,DCLG,04/09/2012,National Non Domestic Rates (NNDR) Payments,Localism,KIRKLEES MBC,,,,5000209469,Grant Payable by Exchequer,HD1 2YU,"6,993,857.00",Yes
Communities & Local Government,DCLG,04/09/2012,National Non Domestic Rates (NNDR) Payments,Localism,KNOWSLEY MBC,,,,5000209476,Grant Payable by Exchequer,L36 9YZ,"5,147,058.00",Yes
Communities & Local Government,DCLG,04/09/2012,National Non Domestic Rates (NNDR) Payments,Localism,LANCASHIRE COMBINED FIRE AUTHORITY,,,,5000209495,Grant Payable by Exchequer,PR2 3LH,"1,494,961.00",Yes
Communities & Local Government,DCLG,04/09/2012,National Non Domestic Rates (NNDR) Payments,Localism,LANCASHIRE COUNTY CNCL,,,,5000209489,Grant Payable by Exchequer,PR1 8RD,"14,767,915.00",Yes
Communities & Local Government,DCLG,04/09/2012,National Non Domestic Rates (NNDR) Payments,Localism,LANCASHIRE POLICE AUTHORITY,,,,5000209500,Grant Payable by Exchequer,PR1 OLD,"4,158,211.00",Yes
Communities & Local Government,DCLG,04/09/2012,National Non Domestic Rates (NNDR) Payments,Localism,LEICESTER CITY CNCL,,,,5000209519,Grant Payable by Exchequer,LE1 6ZG,"8,374,021.00",Yes
Communities & Local Government,DCLG,04/09/2012,National Non Domestic Rates (NNDR) Payments,Localism,LEICESTERSHIRE COUNTY CNCL,,,,5000209537,Grant Payable by Exchequer,LE3 8RB,"4,865,546.00",Yes
Communities & Local Government,DCLG,04/09/2012,National Non Domestic Rates (NNDR) Payments,Localism,LEICESTERSHIRE POLICE AUTHORITY,,,,5000209531,Grant Payable by Exchequer,LE99 1A2,"2,160,786.00",Yes
Communities & Local Government,DCLG,04/09/2012,National Non Domestic Rates (NNDR) Payments,Localism,LEICS LEICESTERSHIRE RUTLAND CFA,,,,5000209524,Grant Payable by Exchequer,LE3 8HD,"879,095.00",Yes
Communities & Local Government,DCLG,04/09/2012,National Non Domestic Rates (NNDR) Payments,Localism,LEWISHAM LB,,,,5000209549,Grant Payable by Exchequer,SE6 4RU,"8,122,216.00",Yes
Communities & Local Government,DCLG,04/09/2012,National Non Domestic Rates (NNDR) Payments,Localism,LINCOLNSHIRE COUNTY CNCL,,,,5000209573,Grant Payable by Exchequer,LN1 1YT,"9,389,789.00",Yes
Communities & Local Government,DCLG,04/09/2012,National Non Domestic Rates (NNDR) Payments,Localism,LINCOLNSHIRE POLICE AUTH,,,,5000209567,Grant Payable by Exchequer,LN5 7PH,"1,127,365.00",Yes
Communities & Local Government,DCLG,04/09/2012,National Non Domestic Rates (NNDR) Payments,Localism,LIVERPOOL CITY COUNCIL,,,,5000209579,Grant Payable by Exchequer,L2 2DH,"14,809,594.00",Yes
Communities & Local Government,DCLG,04/09/2012,National Non Domestic Rates (NNDR) Payments,Localism,LONDON BOROUGH OF HACKNEY,,,,5000209741,Grant Payable by Exchequer,E8 4RU,"9,764,556.00",Yes
Communities & Local Government,DCLG,04/09/2012,National Non Domestic Rates (NNDR) Payments,Localism,LONDON BOROUGH OF LAMBETH,,,,5000209483,Grant Payable by Exchequer,SW2 1RL,"9,608,517.00",Yes
Communities & Local Government,DCLG,04/09/2012,National Non Domestic Rates (NNDR) Payments,Localism,LONDON BOROUGH OF NEWHAM,,Large,,5000209817,Grant Payable by Exchequer,E16 2QU,"9,530,789.00",Yes
Communities & Local Government,DCLG,04/09/2012,National Non Domestic Rates (NNDR) Payments,Localism,LONDON BOROUGH OF REDBRIDGE,,,,5000209437,Grant Payable by Exchequer,IG1 1NN,"4,480,195.00",Yes
Communities & Local Government,DCLG,04/09/2012,National Non Domestic Rates (NNDR) Payments,Localism,LUTON BC,,,,5000209586,Grant Payable by Exchequer,LU1 1DX,"4,015,535.00",Yes
Communities & Local Government,DCLG,04/09/2012,National Non Domestic Rates (NNDR) Payments,Localism,MANCHESTER CITY CNCL,,,,5000209614,Grant Payable by Exchequer,M60 2JR,"15,396,135.00",Yes
Communities & Local Government,DCLG,04/09/2012,National Non Domestic Rates (NNDR) Payments,Localism,MEDWAY COUNCIL,,,,5000209637,Grant Payable by Exchequer,ME4 4TR,"3,762,368.00",Yes
Communities & Local Government,DCLG,04/09/2012,National Non Domestic Rates (NNDR) Payments,Localism,MERSEYSIDE FIRE & RESCUE SERVICE,,,,5000209651,Grant Payable by Exchequer,L30 4YD,"1,918,019.00",Yes
Communities & Local Government,DCLG,04/09/2012,National Non Domestic Rates (NNDR) Payments,Localism,MERSEYSIDE POLICE AUTH,,,,5000209655,Grant Payable by Exchequer,L69 1JD,"5,947,101.00",Yes
Communities & Local Government,DCLG,04/09/2012,National Non Domestic Rates (NNDR) Payments,Localism,MIDDLESBROUGH BC,,,,5000209671,Grant Payable by Exchequer,TS1 9GA,"3,805,216.00",Yes
Communities & Local Government,DCLG,04/09/2012,National Non Domestic Rates (NNDR) Payments,Localism,NEWCASTLE UPON TYNE DC,,,,5000209812,Grant Payable by Exchequer,NE99 1RD,"7,489,985.00",Yes
Communities & Local Government,DCLG,04/09/2012,National Non Domestic Rates (NNDR) Payments,Localism,NORFOLK COUNTY COUNCIL,,,,5000209820,Grant Payable by Exchequer,NR1 2DW,"11,572,243.00",Yes
Communities & Local Government,DCLG,04/09/2012,National Non Domestic Rates (NNDR) Payments,Localism,NORFOLK POLICE AUTHORITY,,,,5000209823,Grant Payable by Exchequer,NR18 0WW,"1,511,937.00",Yes
Communities & Local Government,DCLG,04/09/2012,National Non Domestic Rates (NNDR) Payments,Localism,NORTH EAST LINCOLN DC,,,,5000209832,Grant Payable by Exchequer,DN31 1HU,"3,225,291.00",Yes
Communities & Local Government,DCLG,04/09/2012,National Non Domestic Rates (NNDR) Payments,Localism,NORTH TYNESIDE MBC,,,,5000209850,Grant Payable by Exchequer,NE30 1AE,"3,944,605.00",Yes
Communities & Local Government,DCLG,04/09/2012,National Non Domestic Rates (NNDR) Payments,Localism,NORTH YORKSHIRE CC,,,,5000209856,Grant Payable by Exchequer,DL7 8AL,"5,441,919.00",Yes
Communities & Local Government,DCLG,04/09/2012,National Non Domestic Rates (NNDR) Payments,Localism,NORTH YORKSHIRE FIRE & RESCUE AUTH,,,,5000209859,Grant Payable by Exchequer,DL6 1AB,"594,642.00",Yes
Communities & Local Government,DCLG,04/09/2012,National Non Domestic Rates (NNDR) Payments,Localism,NORTH YORKSHIRE POLICE AUTHORITY,,,,5000209863,Grant Payable by Exchequer,DL7 9HA,"1,459,720.00",Yes
Communities & Local Government,DCLG,04/09/2012,National Non Domestic Rates (NNDR) Payments,Localism,NORTHAMPTONSHIRE COUNTY COUNCIL,,,,5000209868,Grant Payable by Exchequer,NN4 7DB,"7,480,768.00",Yes
Communities & Local Government,DCLG,04/09/2012,National Non Domestic Rates (NNDR) Payments,Localism,NORTHAMPTONSHIRE POLICE AUTH,,,,5000209872,Grant Payable by Exchequer,NN1 5DQ,"1,308,685.00",Yes
Communities & Local Government,DCLG,04/09/2012,National Non Domestic Rates (NNDR) Payments,Localism,NORTHUMBERLAND,,,,5000209883,Grant Payable by Exchequer,NE61 2EF,"5,679,694.00",Yes
Communities & Local Government,DCLG,04/09/2012,National Non Domestic Rates (NNDR) Payments,Localism,NORTHUMBRIA POLICE AUTH,,,,5000209875,Grant Payable by Exchequer,NE1 8DL,"5,595,310.00",Yes
Communities & Local Government,DCLG,04/09/2012,National Non Domestic Rates (NNDR) Payments,Localism,NOTTINGHAM CITY COUNCIL,,,,5000209880,Grant Payable by Exchequer,M33 0DJ,"8,064,139.00",Yes
Communities & Local Government,DCLG,04/09/2012,National Non Domestic Rates (NNDR) Payments,Localism,NOTTINGHAMSHIRE COUNTY CNCL,,,,5000209882,Grant Payable by Exchequer,NG1 4BU,"8,823,153.00",Yes
Communities & Local Government,DCLG,04/09/2012,National Non Domestic Rates (NNDR) Payments,Localism,NOTTINGHAMSHIRE POLICE AU,,,,5000209886,Grant Payable by Exchequer,NG5 8PP,"2,557,189.00",Yes
Communities & Local Government,DCLG,04/09/2012,National Non Domestic Rates (NNDR) Payments,Localism,NOTTS & CITY NOTTINGHAM FIRE AUTH,,,,5000209884,Grant Payable by Exchequer,NG5 8PD,"1,045,819.00",Yes
Communities & Local Government,DCLG,04/09/2012,National Non Domestic Rates (NNDR) Payments,Localism,OLDHAM MBC,,,,5000209894,Grant Payable by Exchequer,OL1 1UH,"5,365,404.00",Yes
Communities & Local Government,DCLG,04/09/2012,National Non Domestic Rates (NNDR) Payments,Localism,OXFORDSHIRE CC,,,,5000209896,Grant Payable by Exchequer,OX4 2GQ,"5,373,147.00",Yes
Communities & Local Government,DCLG,04/09/2012,National Non Domestic Rates (NNDR) Payments,Localism,PLYMOUTH CITY CNCL,,,,5000209395,Grant Payable by Exchequer,PL1 2AA,"5,013,293.00",Yes
Communities & Local Government,DCLG,04/09/2012,National Non Domestic Rates (NNDR) Payments,Localism,PORTSMOUTH CITY COUNCIL,,,,5000209409,Grant Payable by Exchequer,PO1 2AR,"4,014,225.00",Yes
Communities & Local Government,DCLG,04/09/2012,National Non Domestic Rates (NNDR) Payments,Localism,REDCAR & CLEVELAND BOROUGH COUNCIL,,,,5000209445,Grant Payable by Exchequer,TS6 9AR,"2,976,989.00",Yes
Communities & Local Government,DCLG,04/09/2012,National Non Domestic Rates (NNDR) Payments,Localism,ROCHDALE MBC,,,,5000209486,Grant Payable by Exchequer,OL16 1LQ,"5,000,069.00",Yes
Communities & Local Government,DCLG,04/09/2012,National Non Domestic Rates (NNDR) Payments,Localism,ROTHERHAM MBC,,,,5000209512,Grant Payable by Exchequer,S65 1UF,"5,373,038.00",Yes
Communities & Local Government,DCLG,04/09/2012,National Non Domestic Rates (NNDR) Payments,Localism,ROYAL BERKSHIRE FIRE AUTHORITY,,,,5000209481,Grant Payable by Exchequer,RG30 4FS,"718,818.00",Yes
Communities & Local Government,DCLG,04/09/2012,National Non Domestic Rates (NNDR) Payments,Localism,SALFORD CITY CNCL,,,,5000209557,Grant Payable by Exchequer,M27 5AW,"5,937,362.00",Yes
Communities & Local Government,DCLG,04/09/2012,National Non Domestic Rates (NNDR) Payments,Localism,SANDWELL MBC,,,,5000209563,Grant Payable by Exchequer,B69 3BS,"8,205,906.00",Yes
Communities & Local Government,DCLG,04/09/2012,National Non Domestic Rates (NNDR) Payments,Localism,SEFTON MBC,,,,5000209581,Grant Payable by Exchequer,L20 3NQ,"5,500,220.00",Yes
Communities & Local Government,DCLG,04/09/2012,National Non Domestic Rates (NNDR) Payments,Localism,SHEFFIELD CITY CNCL,,,,5000209601,Grant Payable by Exchequer,S1 1UR,"12,382,234.00",Yes
Communities & Local Government,DCLG,04/09/2012,National Non Domestic Rates (NNDR) Payments,Localism,SHROPSHIRE & WREKIN FIRE AUTHORITY,,,,5000209611,Grant Payable by Exchequer,SY1 2HJ,"352,446.00",Yes
Communities & Local Government,DCLG,04/09/2012,National Non Domestic Rates (NNDR) Payments,Localism,SHROPSHIRE COUNCIL,,Large,,5000209885,Grant Payable by Exchequer,SY2 6ND,"4,210,368.00",Yes
Communities & Local Government,DCLG,04/09/2012,National Non Domestic Rates (NNDR) Payments,Localism,SOMERSET COUNTY CNCL,,,,5000209630,Grant Payable by Exchequer,TA1 4DY,"5,848,210.00",Yes
Communities & Local Government,DCLG,04/09/2012,National Non Domestic Rates (NNDR) Payments,Localism,SOUTH TYNESIDE COUNCIL,,,,5000209800,Grant Payable by Exchequer,NE33 2RL,"3,943,924.00",Yes
Communities & Local Government,DCLG,04/09/2012,National Non Domestic Rates (NNDR) Payments,Localism,SOUTH YORKSHIRE FIRE & CD,,,,5000209803,Grant Payable by Exchequer,S1 3FG,"1,524,778.00",Yes
Communities & Local Government,DCLG,04/09/2012,National Non Domestic Rates (NNDR) Payments,Localism,SOUTH YORKSHIRE P A,,,,5000209805,Grant Payable by Exchequer,S3 8LY,"4,196,038.00",Yes
Communities & Local Government,DCLG,04/09/2012,National Non Domestic Rates (NNDR) Payments,Localism,SOUTHEND ON SEA BC,,,,5000209811,Grant Payable by Exchequer,SS2 6EP,"2,816,969.00",Yes
Communities & Local Government,DCLG,04/09/2012,National Non Domestic Rates (NNDR) Payments,Localism,SOUTHWARK LB,,,,5000209815,Grant Payable by Exchequer,SE16 3QN,"10,115,143.00",Yes
Communities & Local Government,DCLG,04/09/2012,National Non Domestic Rates (NNDR) Payments,Localism,ST HELENS MBC,,,,5000209827,Grant Payable by Exchequer,WA10 1HP,"3,942,458.00",Yes
Communities & Local Government,DCLG,04/09/2012,National Non Domestic Rates (NNDR) Payments,Localism,STAFFORDSHIRE  FIRE & RESCUE SERV,,,,5000209836,Grant Payable by Exchequer,ST15 0BS,"908,969.00",Yes
Communities & Local Government,DCLG,04/09/2012,National Non Domestic Rates (NNDR) Payments,Localism,STAFFORDSHIRE COUNTY CNCL,,,,5000209833,Grant Payable by Exchequer,ST16 2LH,"7,809,213.00",Yes
Communities & Local Government,DCLG,04/09/2012,National Non Domestic Rates (NNDR) Payments,Localism,STAFFORDSHIRE POLICE AUTHORITY,,,,5000209842,Grant Payable by Exchequer,ST16 2NF,"2,228,356.00",Yes
Communities & Local Government,DCLG,04/09/2012,National Non Domestic Rates (NNDR) Payments,Localism,STOKE ON TRENT CITY COUNCIL,,,,5000209854,Grant Payable by Exchequer,ST4 1RJ,"5,764,578.00",Yes
Communities & Local Government,DCLG,04/09/2012,National Non Domestic Rates (NNDR) Payments,Localism,SUFFOLK COUNTY CNCL,,,,5000209862,Grant Payable by Exchequer,IP4 2JP,"8,244,910.00",Yes
Communities & Local Government,DCLG,04/09/2012,National Non Domestic Rates (NNDR) Payments,Localism,SUFFOLK POLICE AUTHORITY,,,,5000209869,Grant Payable by Exchequer,IP5 3QS,"1,236,404.00",Yes
Communities & Local Government,DCLG,04/09/2012,National Non Domestic Rates (NNDR) Payments,Localism,SUNDERLAND DC,,,,5000209871,Grant Payable by Exchequer,SR2 7DN,"6,904,959.00",Yes
Communities & Local Government,DCLG,04/09/2012,National Non Domestic Rates (NNDR) Payments,Localism,SURREY COUNTY CNCL,,,,5000209874,Grant Payable by Exchequer,KT1 2EA,"6,924,960.00",Yes
Communities & Local Government,DCLG,04/09/2012,National Non Domestic Rates (NNDR) Payments,Localism,SURREY POLICE AUTHORITY,,,,5000209385,Grant Payable by Exchequer,KT1 2EA,"1,662,225.00",Yes
Communities & Local Government,DCLG,04/09/2012,National Non Domestic Rates (NNDR) Payments,Localism,SUSSEX POLICE AUTHORITY,,,,5000209391,Grant Payable by Exchequer,PO19 1RG,"2,989,222.00",Yes
Communities & Local Government,DCLG,04/09/2012,National Non Domestic Rates (NNDR) Payments,Localism,SUTTON LB,,,,5000209398,Grant Payable by Exchequer,SM1 1EA,"2,409,620.00",Yes
Communities & Local Government,DCLG,04/09/2012,National Non Domestic Rates (NNDR) Payments,Localism,TAMESIDE MBC,,,,5000209417,Grant Payable by Exchequer,OL6 6DL,"4,687,612.00",Yes
Communities & Local Government,DCLG,04/09/2012,National Non Domestic Rates (NNDR) Payments,Localism,TELFORD & WREKIN DC,,,,5000209447,Grant Payable by Exchequer,TF3 4LF,"3,105,445.00",Yes
Communities & Local Government,DCLG,04/09/2012,National Non Domestic Rates (NNDR) Payments,Localism,THAMES VALLEY POLICE AUTHORITY,,,,5000209471,Grant Payable by Exchequer,OX5 2NX,"4,070,298.00",Yes
Communities & Local Government,DCLG,04/09/2012,National Non Domestic Rates (NNDR) Payments,Localism,TORBAY BC,,,,5000209504,Grant Payable by Exchequer,TQ1 3DR,"2,770,598.00",Yes
Communities & Local Government,DCLG,04/09/2012,National Non Domestic Rates (NNDR) Payments,Localism,TYNE & WEAR FIRE AUTHORITY,,,,5000209536,Grant Payable by Exchequer,SR2 7DN,"1,476,819.00",Yes
Communities & Local Government,DCLG,04/09/2012,National Non Domestic Rates (NNDR) Payments,Localism,W YORKSHIRE FIRE & RESCUE AUTH,,,,5000209807,Grant Payable by Exchequer,BD11 2DY,"2,441,623.00",Yes
Communities & Local Government,DCLG,04/09/2012,National Non Domestic Rates (NNDR) Payments,Localism,WALSALL MBC,,,,5000209561,Grant Payable by Exchequer,WS1 1TW,"6,018,667.00",Yes
Communities & Local Government,DCLG,04/09/2012,National Non Domestic Rates (NNDR) Payments,Localism,WALTHAM FOREST LB,,Large,,5000209568,Grant Payable by Exchequer,E17 4JF,"5,509,402.00",Yes
Communities & Local Government,DCLG,04/09/2012,National Non Domestic Rates (NNDR) Payments,Localism,WANDSWORTH LB,,,,5000209576,Grant Payable by Exchequer,SW18 2PU,"6,616,204.00",Yes
Communities & Local Government,DCLG,04/09/2012,National Non Domestic Rates (NNDR) Payments,Localism,WARWICKSHIRE COUNTY CNCL,,,,5000209593,Grant Payable by Exchequer,CV34 4RH,"4,869,208.00",Yes
Communities & Local Government,DCLG,04/09/2012,National Non Domestic Rates (NNDR) Payments,Localism,WARWICKSHIRE POLICE AUTHORITY,,,,5000209598,Grant Payable by Exchequer,CV35 7QB,"921,624.00",Yes
Communities & Local Government,DCLG,04/09/2012,National Non Domestic Rates (NNDR) Payments,Localism,WEST MERCIA POLICE AUTH,,,,5000209755,Grant Payable by Exchequer,WR5 2NP,"2,382,198.00",Yes
Communities & Local Government,DCLG,04/09/2012,National Non Domestic Rates (NNDR) Payments,Localism,WEST MIDLANDS FIRE & CIVIL DEFENCE,,,,5000209794,Grant Payable by Exchequer,B4 7DE,"3,336,639.00",Yes
Communities & Local Government,DCLG,04/09/2012,National Non Domestic Rates (NNDR) Payments,Localism,WEST MIDLANDS POLICE AUTH,,,,5000209796,Grant Payable by Exchequer,B4 6NQ,"9,949,231.00",Yes
Communities & Local Government,DCLG,04/09/2012,National Non Domestic Rates (NNDR) Payments,Localism,WEST SUSSEX CC,,,,5000209804,Grant Payable by Exchequer,PO19 1RG,"5,509,493.00",Yes
Communities & Local Government,DCLG,04/09/2012,National Non Domestic Rates (NNDR) Payments,Localism,WEST YORKSHIRE POLICE AUTHORITY,,,,5000209810,Grant Payable by Exchequer,WF1 3QP,"6,682,916.00",Yes
Communities & Local Government,DCLG,04/09/2012,National Non Domestic Rates (NNDR) Payments,Localism,WIGAN MBC,,,,5000209819,Grant Payable by Exchequer,WN1 1YD,"5,938,837.00",Yes
Communities & Local Government,DCLG,04/09/2012,National Non Domestic Rates (NNDR) Payments,Localism,WILTSHIRE & SWINDON FIRE AUTHORITY,,,,5000209822,Grant Payable by Exchequer,SN10 5PP,"448,387.00",Yes
Communities & Local Government,DCLG,04/09/2012,National Non Domestic Rates (NNDR) Payments,Localism,WILTSHIRE POLICE,,,,5000209825,Grant Payable by Exchequer,BA14 8JJ,"1,155,128.00",Yes
Communities & Local Government,DCLG,04/09/2012,National Non Domestic Rates (NNDR) Payments,Localism,WIRRAL MBC,,,,5000209834,Grant Payable by Exchequer,L41 6BU,"6,897,391.00",Yes
Communities & Local Government,DCLG,04/09/2012,National Non Domestic Rates (NNDR) Payments,Localism,WOLVERHAMPTON MBC,,,,5000209844,Grant Payable by Exchequer,WV1 1RL,"6,374,778.00",Yes
Communities & Local Government,DCLG,04/09/2012,National Non Domestic Rates (NNDR) Payments,Localism,WORCESTERSHIRE COUNTY COUNCIL,,,,5000209849,Grant Payable by Exchequer,WR5 2NP,"4,897,652.00",Yes
Communities & Local Government,DCLG,04/09/2012,NNDR Billing Authorities Receipts,Localism,BARKING & DAGENHAM LB,,,,5000209421,Grant Payable by Exchequer,RM10 7BY,"-2,600,370.00",Yes
Communities & Local Government,DCLG,04/09/2012,NNDR Billing Authorities Receipts,Localism,BARNSLEY MBC,,,,5000209434,Grant Payable by Exchequer,S70 2AQ,"-2,368,066.00",Yes
Communities & Local Government,DCLG,04/09/2012,NNDR Billing Authorities Receipts,Localism,BIRMINGHAM CITY CNCL,,,,5000209494,Grant Payable by Exchequer,B3 3AB,"-18,221,684.00",Yes
Communities & Local Government,DCLG,04/09/2012,NNDR Billing Authorities Receipts,Localism,BLACKBURN WITH DARWEN BC,,,,5000209508,Grant Payable by Exchequer,BB1 7DY,"-2,105,421.00",Yes
Communities & Local Government,DCLG,04/09/2012,NNDR Billing Authorities Receipts,Localism,BLACKPOOL BC,,,,5000209514,Grant Payable by Exchequer,FY1 1NA,"-2,241,867.00",Yes
Communities & Local Government,DCLG,04/09/2012,NNDR Billing Authorities Receipts,Localism,BOLTON MBC,,,,5000209527,Grant Payable by Exchequer,BL1 1RU,"-4,172,825.00",Yes
Communities & Local Government,DCLG,04/09/2012,NNDR Billing Authorities Receipts,Localism,BRADFORD MBC,,,,5000209552,Grant Payable by Exchequer,BD1 1HX,"-6,351,576.00",Yes
Communities & Local Government,DCLG,04/09/2012,NNDR Billing Authorities Receipts,Localism,BRENT LB,,,,5000209571,Grant Payable by Exchequer,HA9 9EZ,"-4,743,148.00",Yes
Communities & Local Government,DCLG,04/09/2012,NNDR Billing Authorities Receipts,Localism,BRIGHTON & HOVE CITY COUNCIL,,,,5000209585,Grant Payable by Exchequer,BN3 2SR,"-4,667,308.00",Yes
Communities & Local Government,DCLG,04/09/2012,NNDR Billing Authorities Receipts,Localism,BURY MBC,,,,5000209709,Grant Payable by Exchequer,BL9 0SP,"-2,437,420.00",Yes
Communities & Local Government,DCLG,04/09/2012,NNDR Billing Authorities Receipts,Localism,CALDERDALE MBC,,,,5000209710,Grant Payable by Exchequer,HX1 1YP,"-2,631,238.00",Yes
Communities & Local Government,DCLG,04/09/2012,NNDR Billing Authorities Receipts,Localism,CITY OF WAKEFIELD MDC,,,,5000209555,Grant Payable by Exchequer,WF1 2QW,"-5,596,157.00",Yes
Communities & Local Government,DCLG,04/09/2012,NNDR Billing Authorities Receipts,Localism,CORNWALL COUNCIL,,,,5000209879,Grant Payable by Exchequer,TR1 3AY,"-6,831,616.00",Yes
Communities & Local Government,DCLG,04/09/2012,NNDR Billing Authorities Receipts,Localism,COVENTRY CITY CNCL,,,,5000209729,Grant Payable by Exchequer,CV1 2QL,"-5,248,716.00",Yes
Communities & Local Government,DCLG,04/09/2012,NNDR Billing Authorities Receipts,Localism,CROYDON LB,,,,5000209731,Grant Payable by Exchequer,CR9 3JS,"-5,141,972.00",Yes
Communities & Local Government,DCLG,04/09/2012,NNDR Billing Authorities Receipts,Localism,DARLINGTON BC,,,,5000209377,Grant Payable by Exchequer,TS19 1JA,"-1,540,574.00",Yes
Communities & Local Government,DCLG,04/09/2012,NNDR Billing Authorities Receipts,Localism,DERBY CITY CNCL,,,,5000209386,Grant Payable by Exchequer,DE1 2FS,"-3,851,946.00",Yes
Communities & Local Government,DCLG,04/09/2012,NNDR Billing Authorities Receipts,Localism,DONCASTER MBC,,,,5000209432,Grant Payable by Exchequer,DN1 3QA,"-3,979,093.00",Yes
Communities & Local Government,DCLG,04/09/2012,NNDR Billing Authorities Receipts,Localism,DUDLEY MBC,,,,5000209461,Grant Payable by Exchequer,DY1 1HF,"-4,318,932.00",Yes
Communities & Local Government,DCLG,04/09/2012,NNDR Billing Authorities Receipts,Localism,DURHAM COUNTY COUNCIL,,,,5000209881,Grant Payable by Exchequer,DH1 5UE,"-5,144,179.00",Yes
Communities & Local Government,DCLG,04/09/2012,NNDR Billing Authorities Receipts,Localism,EAST RIDING OF YORKS,,,,5000209528,Grant Payable by Exchequer,HU17 9AB,"-3,910,739.00",Yes
Communities & Local Government,DCLG,04/09/2012,NNDR Billing Authorities Receipts,Localism,ENFIELD LB,,,,5000209577,Grant Payable by Exchequer,EN1 3XF,"-4,719,317.00",Yes
Communities & Local Government,DCLG,04/09/2012,NNDR Billing Authorities Receipts,Localism,GATESHEAD MBC,,,,5000209652,Grant Payable by Exchequer,NE8 1HH,"-3,825,332.00",Yes
Communities & Local Government,DCLG,04/09/2012,NNDR Billing Authorities Receipts,Localism,GREENWICH LB,,,,5000209739,Grant Payable by Exchequer,SE18 6RA,"-2,764,640.00",Yes
Communities & Local Government,DCLG,04/09/2012,NNDR Billing Authorities Receipts,Localism,HALTON BC,,,,5000209743,Grant Payable by Exchequer,WA8 7QF,"-2,326,123.00",Yes
Communities & Local Government,DCLG,04/09/2012,NNDR Billing Authorities Receipts,Localism,HARINGEY LB,,,,5000209747,Grant Payable by Exchequer,N22 7TR,"-2,909,113.00",Yes
Communities & Local Government,DCLG,04/09/2012,NNDR Billing Authorities Receipts,Localism,HARROW LB,,,,5000209748,Grant Payable by Exchequer,HA1 2UZ,"-2,170,183.00",Yes
Communities & Local Government,DCLG,04/09/2012,NNDR Billing Authorities Receipts,Localism,HARTLEPOOL BOROUGH COUNCIL,,,,5000209749,Grant Payable by Exchequer,TS24 7BT,"-1,300,539.00",Yes
Communities & Local Government,DCLG,04/09/2012,NNDR Billing Authorities Receipts,Localism,HEREFORDSHIRE DISTRICT COUNCIL,,,,5000209751,Grant Payable by Exchequer,HR1 1SH,"-2,073,689.00",Yes
Communities & Local Government,DCLG,04/09/2012,NNDR Billing Authorities Receipts,Localism,HULL CITY COUNCIL,,,,5000209456,Grant Payable by Exchequer,HU1 2AA,"-4,297,718.00",Yes
Communities & Local Government,DCLG,04/09/2012,NNDR Billing Authorities Receipts,Localism,ISLE OF WIGHT CNCL,,,,5000209393,Grant Payable by Exchequer,PO30 1UD,"-1,523,911.00",Yes
Communities & Local Government,DCLG,04/09/2012,NNDR Billing Authorities Receipts,Localism,ISLES OF SCILLY COUNCIL,,,,5000209406,Grant Payable by Exchequer,TR21 0LW,"-69,400.00",Yes
Communities & Local Government,DCLG,04/09/2012,NNDR Billing Authorities Receipts,Localism,KIRKLEES MBC,,,,5000209469,Grant Payable by Exchequer,HD1 2YU,"-4,855,366.00",Yes
Communities & Local Government,DCLG,04/09/2012,NNDR Billing Authorities Receipts,Localism,KNOWSLEY MBC,,,,5000209476,Grant Payable by Exchequer,L36 9YZ,"-1,853,839.00",Yes
Communities & Local Government,DCLG,04/09/2012,NNDR Billing Authorities Receipts,Localism,LEICESTER CITY CNCL,,,,5000209519,Grant Payable by Exchequer,LE1 6ZG,"-4,636,915.00",Yes
Communities & Local Government,DCLG,04/09/2012,NNDR Billing Authorities Receipts,Localism,LEWISHAM LB,,,,5000209549,Grant Payable by Exchequer,SE6 4RU,"-2,200,150.00",Yes
Communities & Local Government,DCLG,04/09/2012,NNDR Billing Authorities Receipts,Localism,LIVERPOOL CITY COUNCIL,,,,5000209579,Grant Payable by Exchequer,L2 2DH,"-8,796,964.00",Yes
Communities & Local Government,DCLG,04/09/2012,NNDR Billing Authorities Receipts,Localism,LONDON BOROUGH OF HACKNEY,,,,5000209741,Grant Payable by Exchequer,E8 4RU,"-3,883,504.00",Yes
Communities & Local Government,DCLG,04/09/2012,NNDR Billing Authorities Receipts,Localism,LONDON BOROUGH OF LAMBETH,,,,5000209483,Grant Payable by Exchequer,SW2 1RL,"-5,253,317.00",Yes
Communities & Local Government,DCLG,04/09/2012,NNDR Billing Authorities Receipts,Localism,LONDON BOROUGH OF NEWHAM,,Large,,5000209817,Grant Payable by Exchequer,E16 2QU,"-5,317,852.00",Yes
Communities & Local Government,DCLG,04/09/2012,NNDR Billing Authorities Receipts,Localism,LONDON BOROUGH OF REDBRIDGE,,,,5000209437,Grant Payable by Exchequer,IG1 1NN,"-2,413,968.00",Yes
Communities & Local Government,DCLG,04/09/2012,NNDR Billing Authorities Receipts,Localism,LUTON BC,,,,5000209586,Grant Payable by Exchequer,LU1 1DX,"-3,121,336.00",Yes
Communities & Local Government,DCLG,04/09/2012,NNDR Billing Authorities Receipts,Localism,MANCHESTER CITY CNCL,,,,5000209614,Grant Payable by Exchequer,M60 2JR,"-14,492,041.00",Yes
Communities & Local Government,DCLG,04/09/2012,NNDR Billing Authorities Receipts,Localism,MEDWAY COUNCIL,,,,5000209637,Grant Payable by Exchequer,ME4 4TR,"-3,706,540.00",Yes
Communities & Local Government,DCLG,04/09/2012,NNDR Billing Authorities Receipts,Localism,MIDDLESBROUGH BC,,,,5000209671,Grant Payable by Exchequer,TS1 9GA,"-1,899,818.00",Yes
Communities & Local Government,DCLG,04/09/2012,NNDR Billing Authorities Receipts,Localism,NEWCASTLE UPON TYNE DC,,,,5000209812,Grant Payable by Exchequer,NE99 1RD,"-6,827,411.00",Yes
Communities & Local Government,DCLG,04/09/2012,NNDR Billing Authorities Receipts,Localism,NORTH EAST LINCOLN DC,,,,5000209832,Grant Payable by Exchequer,DN31 1HU,"-2,956,189.00",Yes
Communities & Local Government,DCLG,04/09/2012,NNDR Billing Authorities Receipts,Localism,NORTH TYNESIDE MBC,,,,5000209850,Grant Payable by Exchequer,NE30 1AE,"-2,673,638.00",Yes
Communities & Local Government,DCLG,04/09/2012,NNDR Billing Authorities Receipts,Localism,NORTHUMBERLAND,,,,5000209883,Grant Payable by Exchequer,NE61 2EF,"-3,410,615.00",Yes
Communities & Local Government,DCLG,04/09/2012,NNDR Billing Authorities Receipts,Localism,NOTTINGHAM CITY COUNCIL,,,,5000209880,Grant Payable by Exchequer,M33 0DJ,"-5,790,411.00",Yes
Communities & Local Government,DCLG,04/09/2012,NNDR Billing Authorities Receipts,Localism,OLDHAM MBC,,,,5000209894,Grant Payable by Exchequer,OL1 1UH,"-2,646,240.00",Yes
Communities & Local Government,DCLG,04/09/2012,NNDR Billing Authorities Receipts,Localism,PLYMOUTH CITY CNCL,,,,5000209395,Grant Payable by Exchequer,PL1 2AA,"-3,964,888.00",Yes
Communities & Local Government,DCLG,04/09/2012,NNDR Billing Authorities Receipts,Localism,PORTSMOUTH CITY COUNCIL,,,,5000209409,Grant Payable by Exchequer,PO1 2AR,"-3,708,066.00",Yes
Communities & Local Government,DCLG,04/09/2012,NNDR Billing Authorities Receipts,Localism,REDCAR & CLEVELAND BOROUGH COUNCIL,,,,5000209445,Grant Payable by Exchequer,TS6 9AR,"-2,331,036.00",Yes
Communities & Local Government,DCLG,04/09/2012,NNDR Billing Authorities Receipts,Localism,ROCHDALE MBC,,,,5000209486,Grant Payable by Exchequer,OL16 1LQ,"-2,913,839.00",Yes
Communities & Local Government,DCLG,04/09/2012,NNDR Billing Authorities Receipts,Localism,ROTHERHAM MBC,,,,5000209512,Grant Payable by Exchequer,S65 1UF,"-3,322,188.00",Yes
Communities & Local Government,DCLG,04/09/2012,NNDR Billing Authorities Receipts,Localism,SALFORD CITY CNCL,,,,5000209557,Grant Payable by Exchequer,M27 5AW,"-3,882,546.00",Yes
Communities & Local Government,DCLG,04/09/2012,NNDR Billing Authorities Receipts,Localism,SANDWELL MBC,,,,5000209563,Grant Payable by Exchequer,B69 3BS,"-4,364,634.00",Yes
Communities & Local Government,DCLG,04/09/2012,NNDR Billing Authorities Receipts,Localism,SEFTON MBC,,,,5000209581,Grant Payable by Exchequer,L20 3NQ,"-3,184,507.00",Yes
Communities & Local Government,DCLG,04/09/2012,NNDR Billing Authorities Receipts,Localism,SHEFFIELD CITY CNCL,,,,5000209601,Grant Payable by Exchequer,S1 1UR,"-9,339,894.00",Yes
Communities & Local Government,DCLG,04/09/2012,NNDR Billing Authorities Receipts,Localism,SHROPSHIRE COUNCIL,,Large,,5000209885,Grant Payable by Exchequer,SY2 6ND,"-3,332,783.00",Yes
Communities & Local Government,DCLG,04/09/2012,NNDR Billing Authorities Receipts,Localism,SOUTH TYNESIDE COUNCIL,,,,5000209800,Grant Payable by Exchequer,NE33 2RL,"-1,372,463.00",Yes
Communities & Local Government,DCLG,04/09/2012,NNDR Billing Authorities Receipts,Localism,SOUTHEND ON SEA BC,,,,5000209811,Grant Payable by Exchequer,SS2 6EP,"-2,055,475.00",Yes
Communities & Local Government,DCLG,04/09/2012,NNDR Billing Authorities Receipts,Localism,SOUTHWARK LB,,,,5000209815,Grant Payable by Exchequer,SE16 3QN,"-9,017,135.00",Yes
Communities & Local Government,DCLG,04/09/2012,NNDR Billing Authorities Receipts,Localism,ST HELENS MBC,,,,5000209827,Grant Payable by Exchequer,WA10 1HP,"-2,229,275.00",Yes
Communities & Local Government,DCLG,04/09/2012,NNDR Billing Authorities Receipts,Localism,STOKE ON TRENT CITY COUNCIL,,,,5000209854,Grant Payable by Exchequer,ST4 1RJ,"-3,735,031.00",Yes
Communities & Local Government,DCLG,04/09/2012,NNDR Billing Authorities Receipts,Localism,SUNDERLAND DC,,,,5000209871,Grant Payable by Exchequer,SR2 7DN,"-3,912,543.00",Yes
Communities & Local Government,DCLG,04/09/2012,NNDR Billing Authorities Receipts,Localism,SUTTON LB,,,,5000209398,Grant Payable by Exchequer,SM1 1EA,"-2,346,052.00",Yes
Communities & Local Government,DCLG,04/09/2012,NNDR Billing Authorities Receipts,Localism,TAMESIDE MBC,,,,5000209417,Grant Payable by Exchequer,OL6 6DL,"-2,537,913.00",Yes
Communities & Local Government,DCLG,04/09/2012,NNDR Billing Authorities Receipts,Localism,TELFORD & WREKIN DC,,,,5000209447,Grant Payable by Exchequer,TF3 4LF,"-3,044,818.00",Yes
Communities & Local Government,DCLG,04/09/2012,NNDR Billing Authorities Receipts,Localism,TORBAY BC,,,,5000209504,Grant Payable by Exchequer,TQ1 3DR,"-1,689,709.00",Yes
Communities & Local Government,DCLG,04/09/2012,NNDR Billing Authorities Receipts,Localism,WALSALL MBC,,,,5000209561,Grant Payable by Exchequer,WS1 1TW,"-3,135,748.00",Yes
Communities & Local Government,DCLG,04/09/2012,NNDR Billing Authorities Receipts,Localism,WALTHAM FOREST LB,,Large,,5000209568,Grant Payable by Exchequer,E17 4JF,"-2,517,002.00",Yes
Communities & Local Government,DCLG,04/09/2012,NNDR Billing Authorities Receipts,Localism,WANDSWORTH LB,,,,5000209576,Grant Payable by Exchequer,SW18 2PU,"-4,628,798.00",Yes
Communities & Local Government,DCLG,04/09/2012,NNDR Billing Authorities Receipts,Localism,WIGAN MBC,,,,5000209819,Grant Payable by Exchequer,WN1 1YD,"-3,476,628.00",Yes
Communities & Local Government,DCLG,04/09/2012,NNDR Billing Authorities Receipts,Localism,WIRRAL MBC,,,,5000209834,Grant Payable by Exchequer,L41 6BU,"-3,072,413.00",Yes
Communities & Local Government,DCLG,04/09/2012,NNDR Billing Authorities Receipts,Localism,WOLVERHAMPTON MBC,,,,5000209844,Grant Payable by Exchequer,WV1 1RL,"-3,315,816.00",Yes
Communities & Local Government,DCLG,04/09/2012,Professional services,Localism,VALUATION OFFICE AGENCY,,Public Bodies,,2100221159,Payment for September work on NNDR and CTax,W1B 5BU,"12,416,666.66",
Communities & Local Government,DCLG,04/09/2012,Publicity,Finance & Corporate Services,NEWS INTERNATIONAL ASSOC SERVICES L,,Large,,5106182925,Times online corp Subscription 20 users,PE7 8YT,"1,804.80",
Communities & Local Government,DCLG,04/09/2012,Rates,Finance & Corporate Services,TAUNTON DEANE BOROUGH COUNCIL,,Public Bodies,,5106182990,SW RCC Rates 12-13,TA1 1YG,"7,635.00",
Communities & Local Government,DCLG,04/09/2012,Security,Finance & Corporate Services,AMEY COMMUNITY LTD,,Large,,5106182923,2012-13 Lateral Reception,OX4 4DQ,744.02,
Communities & Local Government,DCLG,04/09/2012,Security,Finance & Corporate Services,AMEY COMMUNITY LTD,,Large,,5106182923,2012-13 Lateral Security,OX4 4DQ,"1,092.58",
Communities & Local Government,DCLG,04/09/2012,Software Licences,Localism,EARTHED DESIGN LIMITED,,Micro,,5106183003,Create document register and management,NW6 3QD,600.00,
Communities & Local Government,DCLG,04/09/2012,Software Licences,Localism,EARTHED DESIGN LIMITED,,Micro,,5106183003,Upload 400 CLG reports to database,NW6 3QD,200.00,
Communities & Local Government,DCLG,04/09/2012,Travel and Subsistence Account,Neighbourhoods,MR GORDON SCOTT,,,,2100221158,EXPENSES : 10 & 12 JULY 2012,,492.55,
Communities & Local Government,DCLG,04/09/2012,Waste Disposal and pest control,Finance & Corporate Services,AMEY COMMUNITY LTD,,Large,,5106182923,2012-13 Lateral Pest Control,OX4 4DQ,30.31,
Communities & Local Government,DCLG,04/09/2012,Waste Disposal and pest control,Finance & Corporate Services,AMEY COMMUNITY LTD,,Large,,5106182923,2012-13 Lateral Waste Management,OX4 4DQ,326.18,
Communities & Local Government,DCLG,04/09/2012,Work In Progress Pre-Cert 40373 Spend,Neighbourhoods,COVENTRY UNIVERSITY ENTERPRISES LTD,,Medium,,7600002521,ERDF Claim - 19 - P1,CV1 2TT,"8,604.36",
Communities & Local Government,DCLG,04/09/2012,Work In Progress Pre-Cert 40373 Spend,Neighbourhoods,DEPT FOR BUSINESS INNOVATION & SKIL,,,,7600002522,ERDF Claim - 11 - P2,SW1H 0ET,"63,421.80",
Communities & Local Government,DCLG,04/09/2012,Work In Progress Pre-Cert 40373 Spend,Neighbourhoods,FIRST ENTERPRISE BUSINESS AGENCY,,Small,,7600002512,ERDF Claim - 14 - P2,NG7 5FU,"19,395.60",
Communities & Local Government,DCLG,04/09/2012,Work In Progress Pre-Cert 40373 Spend,Neighbourhoods,FIRST ENTERPRISE BUSINESS AGENCY,,Small,,7600002513,ERDF Claim - 14 - P2,NG7 5FU,"13,042.80",
Communities & Local Government,DCLG,04/09/2012,Work In Progress Pre-Cert 40373 Spend,Neighbourhoods,MARKETING BIRMINGHAM LIMITED,,Medium,,7600002520,ERDF Claim - 8 - P3,B1 2ND,"55,219.43",
Communities & Local Government,DCLG,04/09/2012,Work In Progress Pre-Cert 40373 Spend,Neighbourhoods,MEDIAWORKS TRUST,,Small,,7600002523,ERDF Claim - 13 - P1,DE22 3RG,341.76,
Communities & Local Government,DCLG,04/09/2012,Work In Progress Pre-Cert 40373 Spend,Neighbourhoods,MIDLANDS AEROSPACE ALLIANCE LTD,,Small,,7600002510,ERDF Claim - 36 - P1,CV3 2TX,"10,713.71",
Communities & Local Government,DCLG,04/09/2012,Work In Progress Pre-Cert 40373 Spend,Neighbourhoods,MIDLANDS AEROSPACE ALLIANCE LTD,,Small,,7600002511,ERDF Claim - 37 - P1,CV3 2TX,"58,652.41",
Communities & Local Government,DCLG,04/09/2012,Work In Progress Pre-Cert 40373 Spend,Neighbourhoods,NORTH EAST BUSINESS & INNOV CENTRE,,Small,,7600002514,ERDF Claim - 4 - P1,SR5 2TA,"12,434.02",
Communities & Local Government,DCLG,04/09/2012,Work In Progress Pre-Cert 40373 Spend,Neighbourhoods,NORTH TYNESIDE COUNCIL,,,,7600002517,ERDF Claim - 2 - P2,NE27 0BY,"24,672.50",
Communities & Local Government,DCLG,04/09/2012,Work In Progress Pre-Cert 40373 Spend,Neighbourhoods,SOMERSET COLLEGE OF ARTS & TECH,,,,7600002518,ERDF Claim - 10 - P1,TA1 5AX,"17,627.07",
Communities & Local Government,DCLG,04/09/2012,Work In Progress Pre-Cert 40373 Spend,Neighbourhoods,UNIVERSITY OF BIRMINGHAM,,Large,,7600002519,ERDF Claim - 6 - P1,B15 2TT,"23,868.10",
Communities & Local Government,DCLG,04/09/2012,Work In Progress Pre-Cert 40373 Spend,Neighbourhoods,UNIVERSITY OF WOLVERHAMPTON,,Large,,7600002516,ERDF Claim - 10 - P1,WV1 1SB,"77,522.67",
Communities & Local Government,DCLG,04/09/2012,Work In Progress Pre-Cert 40373 Spend,Neighbourhoods,WOLVERHAMPTON CITY COUNCIL,,Large,,7600002515,ERDF Claim - 9 - P2,WV1 1RL,"14,853.99",
Communities & Local Government,DCLG,04/09/2012,Work In Progress Pre-Cert 40467 Spend,Neighbourhoods,FIRST ENTERPRISE BUSINESS AGENCY,,Small,,7600002513,ERDF Claim - 14 - P2,NG7 5FU,"2,779.71",
Communities & Local Government,DCLG,04/09/2012,Work In Progress Pre-Cert 40467 Spend,Neighbourhoods,MEDIAWORKS TRUST,,Small,,7600002523,ERDF Claim - 13 - P1,DE22 3RG,"1,898.96",
Communities & Local Government,DCLG,04/09/2012,Work In Progress Pre-Cert 40467 Spend,Neighbourhoods,UNIVERSITY OF BIRMINGHAM,,Large,,7600002519,ERDF Claim - 6 - P1,B15 2TT,"25,149.26",
Communities & Local Government,DCLG,05/09/2012,Agency Staff,Finance & Corporate Services,SQUARE ONE RESOURCES LTD,,Medium,,5106182897,SAPDev 1.4.12-31.3.13,EC2A 2AD,"2,858.82",
Communities & Local Government,DCLG,05/09/2012,Fixed Maintenance,Finance & Corporate Services,MITIE FAC SERV LTD (STH WEST & WALE,,Large,,2100221535,Dec11-March12 SPP Variable Maintenance,BS16 7FH,"-15,473.64",
Communities & Local Government,DCLG,05/09/2012,Fixed Maintenance,Finance & Corporate Services,MITIE FAC SERV LTD (STH WEST & WALE,,Large,,5106181736,Dec11-March12 SPP Variable Maintenance,BS16 7FH,"15,473.64",
Communities & Local Government,DCLG,05/09/2012,"IT - PC, Network & Hardware",Finance & Corporate Services,COMPUTACENTER (UK) LTD,,Large,,5106183004,computacenter quote 2738014/2,AL10 9TW,"1,652.47",
Communities & Local Government,DCLG,05/09/2012,IT - Service Contracts,Finance & Corporate Services,STERIA LIMITED,,Large,,5106183037,LOGASNet Service March 11 - Feb 13,M14 0WN,"48,586.71",
Communities & Local Government,DCLG,05/09/2012,IT - Service Contracts,Finance & Corporate Services,STERIA LIMITED,,Large,,5106183038,DCLG Link Service Feb 2011 to Feb 2013,M14 0WN,"325,947.38",
Communities & Local Government,DCLG,05/09/2012,IT - Service Contracts,Finance & Corporate Services,STERIA LIMITED,,Large,,5106183039,TSA LINK service Feb11 to Feb13,M14 0WN,"12,741.62",
Communities & Local Government,DCLG,05/09/2012,IT - Service Contracts,Finance & Corporate Services,STERIA LIMITED,,Large,,5106183039,TSA WAN service,M14 0WN,"9,564.32",
Communities & Local Government,DCLG,05/09/2012,IT - Service Contracts,Finance & Corporate Services,STERIA LIMITED,,Large,,5106183041,LOGASNet Service March 11 - Feb 13,M14 0WN,"48,586.71",
Communities & Local Government,DCLG,05/09/2012,IT - Service Contracts,Finance & Corporate Services,STERIA LIMITED,,Large,,5106183041,DCLG Link Service Feb 2011 to Feb 2013,M14 0WN,"325,947.38",
Communities & Local Government,DCLG,05/09/2012,Office Supplies,Localism,BANNER BUSINESS SUPPLIES LTD,,Large,,2100221533,DELWEEKLY Banner A4 Recycled Copier Pape,NR3 1PD,-136.08,
Communities & Local Government,DCLG,05/09/2012,Office Supplies,Localism,BANNER BUSINESS SUPPLIES LTD,,Large,,2100221533,DELWEEKLY Steinbeis Classic A3 Copier Pa,NR3 1PD,-162.94,
Communities & Local Government,DCLG,05/09/2012,Office Supplies,Localism,BANNER BUSINESS SUPPLIES LTD,,Large,,5106182859,DELWEEKLY Banner A4 Recycled Copier Pape,NR3 1PD,136.08,
Communities & Local Government,DCLG,05/09/2012,Office Supplies,Localism,BANNER BUSINESS SUPPLIES LTD,,Large,,5106182859,DELWEEKLY Steinbeis Classic A3 Copier Pa,NR3 1PD,162.94,
Communities & Local Government,DCLG,05/09/2012,Printing,Finance & Corporate Services,STATIONERY OFFICE LTD,,Large,,5106182988,Printing of Statutory Instrument legislation,NR3 1PD,229.00,
Communities & Local Government,DCLG,05/09/2012,Printing,Finance & Corporate Services,STATIONERY OFFICE LTD,,Large,,5106182988,Printing of Statutory Instrument legislation,NR3 1PD,130.00,
Communities & Local Government,DCLG,05/09/2012,Publications,Finance & Corporate Services,JONES YARRELL LEADENHALL LTD,,Large,,5106182994,Journal and newspaper supply 2012-13,E3 3JH,333.56,
Communities & Local Government,DCLG,05/09/2012,Publishing,Strategic Performance Team,STAIRWAY COMMUNICATIONS LTD,,Small,,2100221534,BACS Rejection - 5106177546,EC1A 4EN,780.00,
Communities & Local Government,DCLG,05/09/2012,Publishing,Strategic Performance Team,STAIRWAY COMMUNICATIONS LTD,,Small,,2300001878,BACS Rejection - 5106177546,EC1A 4EN,-780.00,
Communities & Local Government,DCLG,05/09/2012,Training,Finance & Corporate Services,CAMBRIDGE UNIVERSITY,,Large,,5106183011,Policy Fellowship programme,CB2 1AG,"3,300.00",
Communities & Local Government,DCLG,05/09/2012,Training,Finance & Corporate Services,SAP (UK) LTD,,Large,,5106183028,SAP Technical course (IT profession),TW14 8HD,"2,600.00",
Communities & Local Government,DCLG,05/09/2012,Training,Finance & Corporate Services,SAP (UK) LTD,,Large,,5106183030,SAP Technical course (IT profession),TW14 8HD,"2,600.00",
Communities & Local Government,DCLG,05/09/2012,Vehicle Maintenance,Localism,BABCOCK CRITICAL SERVICES LTD,,Large,,5106183035,Planned Vehicle Maintenance 12/13,NG15 0DR,"629,535.82",
Communities & Local Government,DCLG,05/09/2012,Work In Progress Pre-Cert 40373 Spend,Neighbourhoods,ARMSTRONG PROPERTIES (NW) LTD,,Small,,7600002528,ERDF Claim - 6 - P1-NW,M30 9HQ,"5,772.09",
Communities & Local Government,DCLG,05/09/2012,Work In Progress Pre-Cert 40373 Spend,Neighbourhoods,ARMSTRONG PROPERTIES (NW) LTD,,Small,,7600002531,ERDF Claim - 7 - P1-NW,M30 9HQ,"15,186.98",
Communities & Local Government,DCLG,05/09/2012,Work In Progress Pre-Cert 40373 Spend,Neighbourhoods,NEWCASTLE UNIVERSITY,,,,7600002525,ERDF Claim - 13 - P1,NE1 7RU,"49,860.60",
Communities & Local Government,DCLG,05/09/2012,Work In Progress Pre-Cert 40373 Spend,Neighbourhoods,SOCIAL ENTERPRISE N W LTD (X02665PR,,,,7600002527,ERDF Claim - 3 - P4-MS,L2 2AH,"3,684.52",
Communities & Local Government,DCLG,05/09/2012,Work In Progress Pre-Cert 40373 Spend,Neighbourhoods,SOCIAL ENTERPRISE N W LTD (X02665PR,,,,7600002529,ERDF Claim - 4 - P4-MS,L2 2AH,"3,715.43",
Communities & Local Government,DCLG,05/09/2012,Work In Progress Pre-Cert 40373 Spend,Neighbourhoods,SOCIAL ENTERPRISE N W LTD (X02665PR,,,,7600002530,ERDF Claim - 5 - P4-MS,L2 2AH,"4,643.07",
Communities & Local Government,DCLG,05/09/2012,Work In Progress Pre-Cert 40373 Spend,Neighbourhoods,TEES VALLEY JOINT STRATEGY UNIT,,,,7600002524,ERDF Claim - 17 - P2,TS1 2XF,"417,905.76",
Communities & Local Government,DCLG,05/09/2012,Work In Progress Pre-Cert 40467 Spend,Neighbourhoods,ARMSTRONG PROPERTIES (NW) LTD,,Small,,7600002528,ERDF Claim - 6 - P1-NW,M30 9HQ,"1,632.29",
Communities & Local Government,DCLG,05/09/2012,Work In Progress Pre-Cert 40467 Spend,Neighbourhoods,ARMSTRONG PROPERTIES (NW) LTD,,Small,,7600002531,ERDF Claim - 7 - P1-NW,M30 9HQ,"25,109.41",
Communities & Local Government,DCLG,05/09/2012,Work In Progress Pre-Cert 40467 Spend,Neighbourhoods,NEWCASTLE UNIVERSITY,,,,7600002525,ERDF Claim - 13 - P1,NE1 7RU,"8,239.43",
Communities & Local Government,DCLG,06/09/2012,Accommodation Service Charges,Finance & Corporate Services,DANMERC PROP CONSULTANTS  & MGT LTD,,Small,,5106183066,CityGate SCharget 2012/13,W15 3PW,"83,158.80",
Communities & Local Government,DCLG,06/09/2012,Agency Staff,Finance & Corporate Services,CAPITA RESOURCING LTD,,Large,,5106182949,CPD 0492030 Capita MSP,SL6 1DP,"1,076.83",
Communities & Local Government,DCLG,06/09/2012,Agency Staff,Finance & Corporate Services,CAPITA RESOURCING LTD,,Large,,5106182975,CPD 0492030 Capita MSP,SL6 1DP,"2,757.26",
Communities & Local Government,DCLG,06/09/2012,Agency Staff,Localism,CAPITA RESOURCING LTD,,Large,,5106182960,Extension (1),SL6 1DP,"1,042.49",
Communities & Local Government,DCLG,06/09/2012,Agency Staff,Neighbourhoods,CAPITA RESOURCING LTD,,Large,,5106182951,Interim manager,SL6 1DP,"5,791.56",
Communities & Local Government,DCLG,06/09/2012,Agency Staff,Neighbourhoods,CAPITA RESOURCING LTD,,Large,,5106182953,Interim manager,SL6 1DP,"5,791.56",
Communities & Local Government,DCLG,06/09/2012,Agency Staff,Neighbourhoods,CAPITA RESOURCING LTD,,Large,,5106182955,Interim manager,SL6 1DP,"5,764.44",
Communities & Local Government,DCLG,06/09/2012,Agency Staff,Neighbourhoods,CAPITA RESOURCING LTD,,Large,,5106182957,Extension (1),SL6 1DP,"2,574.00",
Communities & Local Government,DCLG,06/09/2012,Agency Staff,Neighbourhoods,CAPITA RESOURCING LTD,,Large,,5106182962,Interim Manager,SL6 1DP,"2,767.08",
Communities & Local Government,DCLG,06/09/2012,Agency Staff,Neighbourhoods,CAPITA RESOURCING LTD,,Large,,5106182964,Extension (1),SL6 1DP,"5,212.40",
Communities & Local Government,DCLG,06/09/2012,Agency Staff,Neighbourhoods,CAPITA RESOURCING LTD,,Large,,5106182964,Interim Manager,SL6 1DP,579.16,
Communities & Local Government,DCLG,06/09/2012,Agency Staff,Neighbourhoods,CAPITA RESOURCING LTD,,Large,,5106182973,Extension (3),SL6 1DP,"6,113.28",
Communities & Local Government,DCLG,06/09/2012,Current Grants to Non Profit Bodies,Localism,SEARCHLIGHT EDUCATIONAL TRUST LTD,Yes,Micro,,2100221532,Reducing Community support for far-right,NW3 9RE,"16,750.00",Yes
Communities & Local Government,DCLG,06/09/2012,Electricity,Finance & Corporate Services,DANMERC PROP CONSULTANTS  & MGT LTD,,Small,,5106183066,CityGate Electricityt 2012/13,W15 3PW,"24,000.00",
Communities & Local Government,DCLG,06/09/2012,Electricity,Finance & Corporate Services,EDF ENERGY 1 LIMITED,,Large,,5106183080,Eland House Electricity 2012-13,PL3 5XQ,"41,647.98",
Communities & Local Government,DCLG,06/09/2012,Electricity,Finance & Corporate Services,EDF ENERGY 1 LIMITED,,Large,,5106183083,SW Taunton Electricity - 2012-13,PL3 5XQ,"5,494.36",
Communities & Local Government,DCLG,06/09/2012,Electricity,Finance & Corporate Services,EDF ENERGY 1 LIMITED,,Large,,5106183088,Rivergate Electricity 2012-13,PL3 5XQ,"9,735.59",
Communities & Local Government,DCLG,06/09/2012,Electricity,Finance & Corporate Services,EDF ENERGY 1 LIMITED,,Large,,5106183091,Paradise Circus Electricity 2012-13,PL3 5XQ,"2,646.77",
Communities & Local Government,DCLG,06/09/2012,Electricity,Finance & Corporate Services,EDF ENERGY 1 LIMITED,,Large,,5106183093,Bridge House Electricity 2012-13,PL3 5XQ,"4,779.81",
Communities & Local Government,DCLG,06/09/2012,Electricity,Finance & Corporate Services,EDF ENERGY 1 LIMITED,,Large,,5106183095,WM Wolverhampton Electricity - 2012-13,PL3 5XQ,"4,836.34",
Communities & Local Government,DCLG,06/09/2012,Fixed Maintenance,Finance & Corporate Services,MITIE FAC SERV LTD (STH WEST & WALE,,Large,,5106183086,Variable Maintenance - Dec11-Mar12,BS16 7FH,"3,203.37",
Communities & Local Government,DCLG,06/09/2012,Fixed Maintenance,Finance & Corporate Services,MITIE FAC SERV LTD (STH WEST & WALE,,Large,,5106183087,Dec11-March12 SPP Variable Maintenance,BS16 7FH,"15,232.06",
Communities & Local Government,DCLG,06/09/2012,Fixed Maintenance,Neighbourhoods,E C HARRIS LLP,,Large,,5106183085,ERDF NW LDU QS Services to Feb 14,N1 9AB,"2,398.00",
Communities & Local Government,DCLG,06/09/2012,Fixed Maintenance,Neighbourhoods,E C HARRIS LLP,,Large,,5106183097,ERDF Y&H LDU QS Services to Feb 14,N1 9AB,"2,398.00",
Communities & Local Government,DCLG,06/09/2012,IT - Service Contracts,Finance & Corporate Services,STERIA LIMITED,,Large,,2100221590,TSA LINK service Feb11 to Feb13,M14 0WN,"-5,846.67",
Communities & Local Government,DCLG,06/09/2012,IT - Service Contracts,Finance & Corporate Services,STERIA LIMITED,,Large,,2100221590,TSA WAN service,M14 0WN,"-12,741.62",
Communities & Local Government,DCLG,06/09/2012,IT - Service Contracts,Finance & Corporate Services,STERIA LIMITED,,Large,,5106183040,TSA LINK service Feb11 to Feb13,M14 0WN,"5,846.67",
Communities & Local Government,DCLG,06/09/2012,IT - Service Contracts,Finance & Corporate Services,STERIA LIMITED,,Large,,5106183040,TSA WAN service,M14 0WN,"12,741.62",
Communities & Local Government,DCLG,06/09/2012,IT - Service Contracts,Finance & Corporate Services,STERIA LIMITED,,Large,,5106183062,NR00402 - Resource to build 20 Laptops,M14 0WN,"1,775.86",
Communities & Local Government,DCLG,06/09/2012,IT - Service Contracts,Finance & Corporate Services,STERIA LIMITED,,Large,,5106183064,Hemel UPS rep resource - Quote: 086,M14 0WN,958.66,
Communities & Local Government,DCLG,06/09/2012,IT - Service Contracts,Finance & Corporate Services,STERIA LIMITED,,Large,,5106183072,DCLG Link Service Feb 2011 to Feb 2013,M14 0WN,"13,178.10",
Communities & Local Government,DCLG,06/09/2012,Legal Fees,Finance & Corporate Services,FIELD FISHER WATERHOUSE LLP,,Large,,5106183045,Green Flag TM Fees,EC3N 2AA,644.40,
Communities & Local Government,DCLG,06/09/2012,Legal Fees,Finance & Corporate Services,RAYMOND HILL,,Micro,,5106183081,Legal advice,WC1R 5NR,"1,188.00",
Communities & Local Government,DCLG,06/09/2012,Legal Fees,Finance & Corporate Services,TREASURY SOLICITORS DEPT,,Public Bodies,,5106183047,Tsol Payments with 20%VAT,WC2B 4TS,831.60,
Communities & Local Government,DCLG,06/09/2012,Mobile phone costs,Localism,AST CONNECTIONS LTD,,Medium,,2100221587,Renewal cost for Satellite Iridium-Centr,NR31 0LX,-420.00,
Communities & Local Government,DCLG,06/09/2012,Mobile phone costs,Localism,AST CONNECTIONS LTD,,Medium,,5106183104,Renewal cost for Satellite Iridium-Centr,NR31 0LX,420.00,
Communities & Local Government,DCLG,06/09/2012,Office Supplies,Localism,BANNER BUSINESS SUPPLIES LTD,,Large,,5106183090,DELWEEKLY Banner A4 Recycled Copier Pape,NR3 1PD,136.08,
Communities & Local Government,DCLG,06/09/2012,Office Supplies,Localism,BANNER BUSINESS SUPPLIES LTD,,Large,,5106183090,DELWEEKLY Steinbeis Classic A3 Copier Pa,NR3 1PD,162.94,
Communities & Local Government,DCLG,06/09/2012,Publicity,Finance & Corporate Services,DURRANTS LTD,,Large,,5106183074,Press Cuttings,EC1Y 8QE,"3,747.53",
Communities & Local Government,DCLG,06/09/2012,Rent,Finance & Corporate Services,DANMERC PROP CONSULTANTS  & MGT LTD,,Small,,5106183068,CityGate Rent 2012/13,W15 3PW,"379,877.40",
Communities & Local Government,DCLG,06/09/2012,Work In Progress Pre-Cert 40373 Spend,Neighbourhoods,LIVERPOOL CITY REG LOCAL ENT PARTNE,,,,7600002526,ERDF Claim - 15 - P3-MS,L3 1BG,"370,503.55",
Communities & Local Government,DCLG,06/09/2012,Work In Progress Pre-Cert 40373 Spend,Neighbourhoods,WEST MIDS MANUFACTURING CONSORTIUM,,Small,,2300001913,Irregular ERDF expenditure June 2011,WV10 9TG,"-54,826.24",
Communities & Local Government,DCLG,06/09/2012,Work In Progress Pre-Cert 40373 Spend,Neighbourhoods,WEST MIDS MANUFACTURING CONSORTIUM,,Small,,2300001914,Irregular ERDF expenditure on BSM2 WMMC Brokerage,WV10 9TG,"-3,224.55",
Communities & Local Government,DCLG,07/09/2012,Accommodation Service Charges,Finance & Corporate Services,CANADA LIFE LTD,,Large,,5106183137,SE RCC Service Charge 2012/13,EC3V 9JU,939.00,
Communities & Local Government,DCLG,07/09/2012,Agency Staff,Localism,CAPITA RESOURCING LTD,,Large,,5106182966,Temporary Staff,SL6 1DP,"4,657.50",
Communities & Local Government,DCLG,07/09/2012,Agency Staff,Neighbourhoods,CAPITA RESOURCING LTD,,Large,,5106182969,Extension (3),SL6 1DP,"3,056.64",
Communities & Local Government,DCLG,07/09/2012,Agency Staff,Neighbourhoods,CAPITA RESOURCING LTD,,Large,,5106182971,Interim Manager,SL6 1DP,"3,861.00",
Communities & Local Government,DCLG,07/09/2012,Agency Staff,Neighbourhoods,CAPITA RESOURCING LTD,,Large,,5106182977,Extension (3),SL6 1DP,"6,113.28",
Communities & Local Government,DCLG,07/09/2012,Courier Services,Finance & Corporate Services,TAYLOR WOODROW CONSTRUCTION,,Large,,5106183129,Rivergate Postal Jan-Sep12,WD24 4WW,"4,606.45",
Communities & Local Government,DCLG,07/09/2012,Current (non AEF) Grants to Local Authorities,Finance & Corporate Services,DURHAM & DARLINGTON FIRE RESCUE,,Public Bodies,,2100218675,Grant of the Regional Fire Control Centre Sep 12,DH1 5UE,"123,141.00",Yes
Communities & Local Government,DCLG,07/09/2012,Current (non AEF) Grants to Local Authorities,Finance & Corporate Services,GREATER LONDON AUTHORITY,,Large,,2100218674,Grant of the Regional Fire Control Centre Sep 12,SE10 1AP,"224,731.00",Yes
Communities & Local Government,DCLG,07/09/2012,Current (non AEF) Grants to Local Authorities,Finance & Corporate Services,GREATER MANCHESTER FIRE & RESCUE,,Public Bodies,,2100218673,Grant of the Regional Fire Control Centre Sep 12,M27 8US,"146,172.60",Yes
Communities & Local Government,DCLG,07/09/2012,Current Grants to Non Profit Bodies,Neighbourhoods,EARTH TENANT MANAGEMENT ORGANISATIO,,Small,,5000210365,Grant Payable by Exchequer,BS2 0BL,"14,500.00",Yes
Communities & Local Government,DCLG,07/09/2012,Current Grants to Non Profit Bodies,Troubled Families,INTERFACE ASSOICATES UK LTD,,Micro,,2100221588,Expertise- Best practice to Families complex needs,NR2 3PG,"132,192.14",Yes
Communities & Local Government,DCLG,07/09/2012,Domestic Services,Finance & Corporate Services,TAYLOR WOODROW CONSTRUCTION,,Large,,5106183129,Rivergate Cleaning Jan-Sep12,WD24 4WW,"11,142.67",
Communities & Local Government,DCLG,07/09/2012,Electricity,Finance & Corporate Services,EDF ENERGY 1 LIMITED,,Large,,5106183102,Y&H Wakefield Electricity - 2012-13,PL3 5XQ,"4,536.77",
Communities & Local Government,DCLG,07/09/2012,Electricity,Finance & Corporate Services,EDF ENERGY 1 LIMITED,,Large,,5106183135,EoE Waterbeach Electricity 2012-13,PL3 5XQ,"5,216.48",
Communities & Local Government,DCLG,07/09/2012,Facilities Management (ISD use only),Finance & Corporate Services,TAYLOR WOODROW CONSTRUCTION,,Large,,5106183129,Rivergate Helpdesk Jan-Sep12,WD24 4WW,811.81,
Communities & Local Government,DCLG,07/09/2012,Facilities Management (ISD use only),Finance & Corporate Services,TAYLOR WOODROW CONSTRUCTION,,Large,,5106183129,Rivergate Management Jan-Sep12,WD24 4WW,"8,348.62",
Communities & Local Government,DCLG,07/09/2012,Facilities Management (ISD use only),Finance & Corporate Services,TAYLOR WOODROW CONSTRUCTION,,Large,,5106183129,Rivergate Reprographics Jan-Sep12,WD24 4WW,"3,240.21",
Communities & Local Government,DCLG,07/09/2012,Fixed Maintenance,Finance & Corporate Services,TAYLOR WOODROW CONSTRUCTION,,Large,,5106183129,Rivergate PPM & Reactive Maintenance Jan,WD24 4WW,"10,628.93",
Communities & Local Government,DCLG,07/09/2012,Grant in Aid to NDPBs (non budget),Neighbourhoods,HOMES & COMMUNITIES AGENCY,,Public Bodies,,2100221591,HCA Claim 21,NE11 0NA,"4,946,307.00",Yes
Communities & Local Government,DCLG,07/09/2012,IT - Service Contracts,Finance & Corporate Services,PROCSERVE SHARED SERVICES LTD,,Large,,5106183134,32mths subscriptions Jul 2011-Jul 2014,SW1W 9SR,"6,176.64",
Communities & Local Government,DCLG,07/09/2012,IT - Service Contracts,Finance & Corporate Services,STERIA LIMITED,,Large,,5106183103,NR348 Kensington Docking Stat Drivers,M14 0WN,"5,580.87",
Communities & Local Government,DCLG,07/09/2012,IT - Service Contracts,Finance & Corporate Services,STERIA LIMITED,,Large,,5106183126,TSA LINK service Feb11 to Feb13,M14 0WN,"12,741.62",
Communities & Local Government,DCLG,07/09/2012,IT - Service Contracts,Finance & Corporate Services,STERIA LIMITED,,Large,,5106183126,TSA WAN service,M14 0WN,"7,016.00",
Communities & Local Government,DCLG,07/09/2012,Professional services,Finance & Corporate Services,GVA GRIMLEY LTD,,Large,,5106183139,PAMU Y&H RCC Marketing,B1 2JB,"3,170.40",
Communities & Local Government,DCLG,07/09/2012,Professional services,Finance & Corporate Services,GVA GRIMLEY LTD,,Large,,5106183139,PAMU EM RCC Marketing,B1 2JB,"3,170.40",
Communities & Local Government,DCLG,07/09/2012,Professional services,Finance & Corporate Services,GVA GRIMLEY LTD,,Large,,5106183139,PAMU WM RCC Marketing,B1 2JB,"3,170.40",
Communities & Local Government,DCLG,07/09/2012,Professional services,Finance & Corporate Services,GVA GRIMLEY LTD,,Large,,5106183139,PAMU SW RCC Marketing,B1 2JB,"3,170.40",
Communities & Local Government,DCLG,07/09/2012,Professional services,Finance & Corporate Services,GVA GRIMLEY LTD,,Large,,5106183139,PAMU SE RCC Marketing,B1 2JB,"3,170.40",
Communities & Local Government,DCLG,07/09/2012,Rent,Finance & Corporate Services,CANADA LIFE LTD,,Large,,5106183137,SE RCC Rent 2012/13,EC3V 9JU,"435,600.00",
Communities & Local Government,DCLG,07/09/2012,Security,Finance & Corporate Services,TAYLOR WOODROW CONSTRUCTION,,Large,,5106183129,Rivergate Reception Jan-Sep12,WD24 4WW,"3,128.44",
Communities & Local Government,DCLG,07/09/2012,Security,Finance & Corporate Services,TAYLOR WOODROW CONSTRUCTION,,Large,,5106183129,Rivergate Security Jan-Sep12,WD24 4WW,"10,662.53",
Communities & Local Government,DCLG,07/09/2012,Telephone call costs,Finance & Corporate Services,INFORMATION SECURITY SYSTEMS LTD,,Micro,,5106183162,Brent Support quarterly site inspections,HP12 3RL,"2,344.80",
Communities & Local Government,DCLG,07/09/2012,Training,Finance & Corporate Services,EAST OF ENGLAND AMBULANCE SERVICE,,Public Bodies,,5106183133,GFD Qualified Finance event (professions,NR6 5NA,294.00,
Communities & Local Government,DCLG,07/09/2012,Training,Finance & Corporate Services,WHITEHALL & INDUSTRY GROUP,,Small,,5106183155,WiG Development Seminar - Influencing,SW1H 9EX,450.00,
Communities & Local Government,DCLG,07/09/2012,Work In Progress Pre-Cert 40373 Spend,Neighbourhoods,CERAMIC INDUSTRY FORUM,,Small,,7600002536,ERDF Claim - 33 - P2,ST4 2SA,"3,274.10",
Communities & Local Government,DCLG,07/09/2012,Work In Progress Pre-Cert 40373 Spend,Neighbourhoods,COVENTRY UNIVERSITY ENTERPRISES LTD,,Medium,,7600002533,ERDF Claim - 5 - P2,CV1 2TT,"32,711.32",
Communities & Local Government,DCLG,07/09/2012,Work In Progress Pre-Cert 40373 Spend,Neighbourhoods,LINCONSHIRE COUNTY COUNCIL,,Large,,7600002534,ERDF Claim - 5 - P2,LN1 1YT,"43,925.06",
Communities & Local Government,DCLG,07/09/2012,Work In Progress Pre-Cert 40373 Spend,Neighbourhoods,SHEFFIELD CITY COUNCIL,,,,7600002539,ERDF Claim - 14 - P2-SY,S1 2SH,"31,247.35",
Communities & Local Government,DCLG,07/09/2012,Work In Progress Pre-Cert 40373 Spend,Neighbourhoods,SHEFFIELD CITY COUNCIL,,,,7600002540,ERDF Claim - 15 - P2-SY,S1 2SH,"36,376.88",
Communities & Local Government,DCLG,07/09/2012,Work In Progress Pre-Cert 40373 Spend,Neighbourhoods,UNIVERSITY OF WARWICK,,Large,,7600002532,ERDF Claim - 31 - P1,CV4 8UW,"11,777.75",
Communities & Local Government,DCLG,07/09/2012,Work In Progress Pre-Cert 40467 Spend,Neighbourhoods,CHESTERFIELD BOROUGH COUNCIL,,Large,,7600002538,ERDF Claim - 7 - P2,S40 1LP,"15,180.47",
Communities & Local Government,DCLG,07/09/2012,Work In Progress Pre-Cert 40467 Spend,Neighbourhoods,DONCASTER METROPOLITAN BC,,,,7600002541,ERDF Claim - 18 - P4-SY,DN1 1DE,"459,094.70",
Communities & Local Government,DCLG,07/09/2012,Work In Progress Pre-Cert 40467 Spend,Neighbourhoods,MANSFIELD DISTRICT COUNCIL,,Large,,7600002535,ERDF Claim - 9 - P2,NG19 7BH,"10,349.04",
Communities & Local Government,DCLG,07/09/2012,Work In Progress Pre-Cert 40467 Spend,Neighbourhoods,MANSFIELD DISTRICT COUNCIL,,Large,,7600002537,ERDF Claim - 10 - P2,NG19 7BH,"33,117.64",
Communities & Local Government,DCLG,07/09/2012,Work In Progress Pre-Cert 40467 Spend,Neighbourhoods,UNIVERSITY OF WARWICK,,Large,,7600002532,ERDF Claim - 31 - P1,CV4 8UW,72.91,
Communities & Local Government,DCLG,10/09/2012,Accommodation Service Charges,Finance & Corporate Services,SAVILLS COMMERCIAL LTD,,Large,,5106183199,Lateral SCharget 2012/13,M2 4AW,"62,916.00",
Communities & Local Government,DCLG,10/09/2012,Agency Staff,Finance & Corporate Services,MANPOWER UK LTD,,Large,,5106183168,Temp information specialist,UB8 1AB,839.51,
Communities & Local Government,DCLG,10/09/2012,Electricity,Finance & Corporate Services,EDF ENERGY 1 LIMITED,,Large,,5106183195,Queen St Electricity - 0%,PL3 5XQ,1.19,
Communities & Local Government,DCLG,10/09/2012,Electricity,Finance & Corporate Services,EDF ENERGY 1 LIMITED,,Large,,5106183195,Queen St Electricity 2012-13,PL3 5XQ,"1,537.10",
Communities & Local Government,DCLG,10/09/2012,Electricity,Finance & Corporate Services,SAVILLS COMMERCIAL LTD,,Large,,5106183199,Annual Electricity 2012/13,M2 4AW,"11,593.80",
Communities & Local Government,DCLG,10/09/2012,Fixed Maintenance,Neighbourhoods,E C HARRIS LLP,,Large,,2100221593,ERDF WM LDU QS Services to Feb 14,N1 9AB,"2,552.00",
Communities & Local Government,DCLG,10/09/2012,Fixed Maintenance,Neighbourhoods,E C HARRIS LLP,,Large,,5106183144,ERDF WM LDU QS Services to Feb 14,N1 9AB,"-2,552.00",
Communities & Local Government,DCLG,10/09/2012,Fixed Maintenance,Neighbourhoods,E C HARRIS LLP,,Large,,5106183153,ERDF WM LDU QS Services to Feb 14,N1 9AB,"-2,552.00",
Communities & Local Government,DCLG,10/09/2012,Fixed Maintenance,Neighbourhoods,E C HARRIS LLP,,Large,,5106183280,ERDF NW LDU QS Services to Feb 14,N1 9AB,"2,552.00",
Communities & Local Government,DCLG,10/09/2012,Grant in Aid to NDPBs (non budget),Localism,COMMISSION LOCAL ADMINISTRATION,,,,2100221339,GIA payment Ombudsman Servi cover parental complai,SW1P 4QP,"1,266,000.00",Yes
Communities & Local Government,DCLG,10/09/2012,Legal Fees,Finance & Corporate Services,SNR DENTON UK  LLP,,Large,,5106183170,(STA) FireContol Litigation & Property,EC4M 7WS,"1,821.24",
Communities & Local Government,DCLG,10/09/2012,Mobile phone costs,Localism,AST CONNECTIONS LTD,,Medium,,5106183192,Renewal cost for Satellite Iridium-Centr,NR31 0LX,410.53,
Communities & Local Government,DCLG,10/09/2012,Mobile phone costs,Localism,AST CONNECTIONS LTD,,Medium,,5106183192,Satellite call charges - central,NR31 0LX,9.48,
Communities & Local Government,DCLG,10/09/2012,Rent,Finance & Corporate Services,SAVILLS COMMERCIAL LTD,,Large,,5106183199,Lateral Rent 2012/13,M2 4AW,"386,931.30",
Communities & Local Government,DCLG,10/09/2012,Telephone call costs,Finance & Corporate Services,DAMOVO UK LTD,,Large,,5106183185,Telephony Charges,RH12 4QP,"1,229.63",
Communities & Local Government,DCLG,10/09/2012,Telephone call costs,Finance & Corporate Services,DAMOVO UK LTD,,Large,,5106183186,Telephony Charges,RH12 4QP,"4,493.30",
Communities & Local Government,DCLG,10/09/2012,Telephone call costs,Finance & Corporate Services,DAMOVO UK LTD,,Large,,5106183189,Telephony Charges,RH12 4QP,"82,816.64",
Communities & Local Government,DCLG,10/09/2012,Water,Finance & Corporate Services,SEVERN TRENT WATER LTD,,Large,,5106183176,West Midlands RCC Water 12-13,CV3 9FJ,642.95,
Communities & Local Government,DCLG,10/09/2012,Work In Progress Pre-Cert 40373 Spend,Neighbourhoods,ASTON UNIVERSITY,,Large,,7600002549,ERDF Claim - 16 - P1,B4 7ET,"8,553.50",
Communities & Local Government,DCLG,10/09/2012,Work In Progress Pre-Cert 40373 Spend,Neighbourhoods,GATESHEAD COUNCIL,,,,7600002543,ERDF Claim - 15 - P2,NE8 1HH,"30,806.13",
Communities & Local Government,DCLG,10/09/2012,Work In Progress Pre-Cert 40373 Spend,Neighbourhoods,NEWCASTLE CITY COUNCIL,,,,7600002545,ERDF Claim - 3 - P2,NE1 8QN,"72,703.43",
Communities & Local Government,DCLG,10/09/2012,Work In Progress Pre-Cert 40373 Spend,Neighbourhoods,REDCAR & CLEVELAND BC,,,,7600002542,ERDF Claim - 9 - P1,TS10 1YA,"11,710.53",
Communities & Local Government,DCLG,10/09/2012,Work In Progress Pre-Cert 40373 Spend,Neighbourhoods,SOLIHULL METROPOLITAN BC,,Large,,7600002547,ERDF Claim - 11 - P3,B91 3QS,"13,637.19",
Communities & Local Government,DCLG,10/09/2012,Work In Progress Pre-Cert 40373 Spend,Neighbourhoods,STAFFORDSHIRE & BLACK COUNTRY BIC L,,Small,,7600002552,ERDF Claim - 25 - P2,ST18 0AR,"85,284.77",
Communities & Local Government,DCLG,10/09/2012,Work In Progress Pre-Cert 40373 Spend,Neighbourhoods,UNIVERSITY OF WARWICK,,Large,,7600002548,ERDF Claim - 25 - P1,CV4 8UW,"212,101.81",
Communities & Local Government,DCLG,10/09/2012,Work In Progress Pre-Cert 40373 Spend,Neighbourhoods,UNIVERSITY OF WARWICK,,Large,,7600002551,ERDF Claim - 24 - P1,CV4 8UW,"696,902.28",
Communities & Local Government,DCLG,10/09/2012,Work In Progress Pre-Cert 40373 Spend,Neighbourhoods,UNIVERSITY OF WOLVERHAMPTON,,Large,,7600002544,ERDF Claim - 26 - P1,WV1 1SB,"79,674.65",
Communities & Local Government,DCLG,10/09/2012,Work In Progress Pre-Cert 40373 Spend,Neighbourhoods,UNIVERSITY OF WOLVERHAMPTON,,Large,,7600002550,ERDF Claim - 27 - P1,WV1 1SB,"123,544.23",
Communities & Local Government,DCLG,10/09/2012,Work In Progress Pre-Cert 40373 Spend,Neighbourhoods,UNIVERSITY OF WOLVERHAMPTON,,Large,,7600002553,ERDF Claim - 28 - P1,WV1 1SB,"47,926.99",
Communities & Local Government,DCLG,10/09/2012,Work In Progress Pre-Cert 40467 Spend,Neighbourhoods,ASTON UNIVERSITY,,Large,,7600002549,ERDF Claim - 16 - P1,B4 7ET,"353,464.26",
Communities & Local Government,DCLG,10/09/2012,Work In Progress Pre-Cert 40467 Spend,Neighbourhoods,DEPT FOR BUSINESS INNOVATION & SKIL,,,,7600002546,ERDF Claim - 16 - P2,SW1H 0ET,"457,828.21",
Communities & Local Government,DCLG,10/09/2012,Work In Progress Pre-Cert 40467 Spend,Neighbourhoods,REDCAR & CLEVELAND BC,,,,7600002542,ERDF Claim - 9 - P1,TS10 1YA,"255,200.40",
Communities & Local Government,DCLG,10/09/2012,Work In Progress Pre-Cert 40467 Spend,Neighbourhoods,SOLIHULL METROPOLITAN BC,,Large,,7600002547,ERDF Claim - 11 - P3,B91 3QS,"58,595.54",
Communities & Local Government,DCLG,10/09/2012,Work In Progress Pre-Cert 40467 Spend,Neighbourhoods,UNIVERSITY OF WARWICK,,Large,,7600002548,ERDF Claim - 25 - P1,CV4 8UW,864.00,
Communities & Local Government,DCLG,10/09/2012,Work In Progress Pre-Cert 40467 Spend,Neighbourhoods,UNIVERSITY OF WARWICK,,Large,,7600002551,ERDF Claim - 24 - P1,CV4 8UW,"1,063.20",
Communities & Local Government,DCLG,11/09/2012,Accommodation Service Charges,Finance & Corporate Services,LEAFRANGE LIMITED,,Micro,,5106183287,SW Taunton Service Charge 2012-13,E14 5LQ,"1,295.40",
Communities & Local Government,DCLG,11/09/2012,Accommodation Service Charges,Finance & Corporate Services,TISHMAN SPEYER ELAND HOUSE S.A.R.L.,,Large,,5106183202,S/Charge inc cleaning/maintnce/H&S 12/13,WC2B 4AE,"54,649.50",
Communities & Local Government,DCLG,11/09/2012,Agency Staff,Finance & Corporate Services,MICHAEL PAGE INTERNATIONAL,,Large,,5106183019,Interim contractor,SL1 3SA,"1,543.58",
Communities & Local Government,DCLG,11/09/2012,Agency Staff,Finance & Corporate Services,SBS GROUP (UK) LTD,,Large,,5106183238,SAP Technical Suport Sept to Mar2012,EC1N 8TS,"6,028.20",
Communities & Local Government,DCLG,11/09/2012,Agency Staff,Neighbourhoods,CAPITA RESOURCING LTD,,Large,,5106182979,Extension (1),SL6 1DP,"5,212.40",
Communities & Local Government,DCLG,11/09/2012,Agency Staff,Neighbourhoods,CAPITA RESOURCING LTD,,Large,,5106182979,Interim - Regional Growth Fund,SL6 1DP,579.16,
Communities & Local Government,DCLG,11/09/2012,Agency Staff,Neighbourhoods,CAPITA RESOURCING LTD,,Large,,5106183188,Contractor ERDF,SL6 1DP,"1,044.00",
Communities & Local Government,DCLG,11/09/2012,Agency Staff,Neighbourhoods,CAPITA RESOURCING LTD,,Large,,5106183188,Contractor ERDF Expenses,SL6 1DP,124.13,
Communities & Local Government,DCLG,11/09/2012,Agency Staff,Neighbourhoods,REED EMPLOYMENT SERVICES,,Large,,5106183142,Agency Staff pay (6 month contract),SW20 0BA,669.76,
Communities & Local Government,DCLG,11/09/2012,Conferences and Meeting Facilities,Localism,COIN STREET COMMUNITY BUILDERS LTD,,Medium,,5106183224,National Celebration AYOS/Inter Faith We,SE1 9NH,"4,620.00",
Communities & Local Government,DCLG,11/09/2012,Electricity,Finance & Corporate Services,EON UK PLC,,Large,,5106183289,EM Castle Donnington electricity 2012-13,CV4 8LG,"7,465.90",
Communities & Local Government,DCLG,11/09/2012,Gas,Finance & Corporate Services,BRITISH GAS BUSINESS,,,,5106183256,Paradise Circus interim Gas supply,GU95 1AW,717.60,
Communities & Local Government,DCLG,11/09/2012,"IT - PC, Network & Hardware",Finance & Corporate Services,DCLG GOVERNMENT PROCUREMENT CARD,,,,1000003662,Wifi extender and desktop switch,TN37 7GA,304.13,
Communities & Local Government,DCLG,11/09/2012,IT - Service Contracts,Finance & Corporate Services,STERIA LIMITED,,Large,,5106183260,Link Penetration Testing,M14 0WN,"34,163.40",
Communities & Local Government,DCLG,11/09/2012,Legal Fees,Finance & Corporate Services,FIELD FISHER WATERHOUSE LLP,,Large,,5106183209,Green Flag TM Fees,EC3N 2AA,"2,698.78",
Communities & Local Government,DCLG,11/09/2012,Legal Fees,Finance & Corporate Services,SNR DENTON UK  LLP,,Large,,5106183032,Phase 1,EC4M 7WS,"9,729.25",
Communities & Local Government,DCLG,11/09/2012,Medals,Localism,ROYAL MINT,,Public Bodies,,5106183213,20% Long service medal,CF72 8YT,861.30,
Communities & Local Government,DCLG,11/09/2012,Medals,Localism,ROYAL MINT,,Public Bodies,,5106183214,20% Long service medal,CF72 8YT,267.30,
Communities & Local Government,DCLG,11/09/2012,Medals,Localism,ROYAL MINT,,Public Bodies,,5106183215,20% Long service medal,CF72 8YT,712.80,
Communities & Local Government,DCLG,11/09/2012,Medals,Localism,ROYAL MINT,,Public Bodies,,5106183216,20% Long service medal,CF72 8YT,326.70,
Communities & Local Government,DCLG,11/09/2012,Medals,Localism,ROYAL MINT,,Public Bodies,,5106183217,20% Long service medal,CF72 8YT,653.40,
Communities & Local Government,DCLG,11/09/2012,Medals,Localism,ROYAL MINT,,Public Bodies,,5106183218,20% Long service medal,CF72 8YT,326.70,
Communities & Local Government,DCLG,11/09/2012,Medals,Localism,ROYAL MINT,,Public Bodies,,5106183220,20% Long service medal,CF72 8YT,504.90,
Communities & Local Government,DCLG,11/09/2012,Mobile phone costs,Localism,AST CONNECTIONS LTD,,Medium,,5106183266,Renewal cost for Satellite Iridium-South,NR31 0LX,840.00,
Communities & Local Government,DCLG,11/09/2012,Mobile phone costs,Localism,AST CONNECTIONS LTD,,Medium,,5106183266,Satellite phone call charges - South,NR31 0LX,3.76,
Communities & Local Government,DCLG,11/09/2012,Office Supplies,Finance & Corporate Services,CONSERVATION BY DESIGN LTD,,Large,,5106183210,Polyester Pockets PYSPOS0009 210x260mm,MK42 7AW,396.00,
Communities & Local Government,DCLG,11/09/2012,Office Supplies,Finance & Corporate Services,ROYAL MAIL,,Large,,5106183263,Timed delivery postal service,S49 1HQ,340.00,
Communities & Local Government,DCLG,11/09/2012,Office Supplies,Neighbourhoods,BANNER BUSINESS SUPPLIES LTD,,Large,,5106182860,DELWEEKLY Banner A4 Recycled Copier Pape,NR3 1PD,272.16,
Communities & Local Government,DCLG,11/09/2012,Physical Storage,Finance & Corporate Services,CAMBERTOWN LTD,,Small,,2100221678,storage and fullfillment 11-12,S63 9BL,-829.42,
Communities & Local Government,DCLG,11/09/2012,Physical Storage,Finance & Corporate Services,CAMBERTOWN LTD,,Small,,5106183223,storage and fullfillment 11-12,S63 9BL,829.42,
Communities & Local Government,DCLG,11/09/2012,Publicity,Finance & Corporate Services,PRESS ASSOCIATION,,Large,,5106183226,Info for Media point business 12313,DN14 7YH,"1,205.03",
Communities & Local Government,DCLG,11/09/2012,Rates,Finance & Corporate Services,WESTMINSTER CITY COUNCIL,,Public Bodies,,5106183222,Eland Victoria Bid Levy 2012/13,SW1E 6QY,"42,025.00",
Communities & Local Government,DCLG,11/09/2012,Rent,Finance & Corporate Services,CB RICHARD ELLIS LTD,,Large,,5106183257,PCQ Annual Rent 2012/13,EC4M 7HP,"174,000.00",
Communities & Local Government,DCLG,11/09/2012,Rent,Finance & Corporate Services,LEAFRANGE LIMITED,,Micro,,5106183287,SW Taunton Rent 2012-13,E14 5LQ,"416,970.43",
Communities & Local Government,DCLG,11/09/2012,Rent,Finance & Corporate Services,TISHMAN SPEYER ELAND HOUSE S.A.R.L.,,Large,,5106183202,Eland House Rent 2012-13.,WC2B 4AE,"3,705,000.00",
Communities & Local Government,DCLG,11/09/2012,Software Licences,Finance & Corporate Services,SYMANTEC LTD,,Large,,2100221680,inv5250037444 paid twice,15,399.00,
Communities & Local Government,DCLG,11/09/2012,Software Licences,Finance & Corporate Services,SYMANTEC LTD,,Large,,2300001872,inv5250037444 paid twice,15,-399.00,
Communities & Local Government,DCLG,11/09/2012,Software Licences,Finance & Corporate Services,VODAFONE LTD,,Large,,5106183250,Vodaphone - 110 BES licences,RG14 2FN,"4,047.60",
Communities & Local Government,DCLG,11/09/2012,Steady State Service Provision,Finance & Corporate Services,LOGICA (CMG UK LTD),,Large,,5106183024,Payroll Services 2012/13,TW18 4LG,"1,137.18",
Communities & Local Government,DCLG,11/09/2012,Telecoms equipment (non-capitalised),Finance & Corporate Services,DAMOVO UK LTD,,Large,,5106182878,Telephony - 8 new sites,RH12 4QP,997.21,
Communities & Local Government,DCLG,11/09/2012,Telecoms equipment (non-capitalised),Finance & Corporate Services,DAMOVO UK LTD,,Large,,5106183167,Telephony - 8 new sites,RH12 4QP,"6,988.44",
Communities & Local Government,DCLG,11/09/2012,Telecoms equipment (non-capitalised),Finance & Corporate Services,DAMOVO UK LTD,,Large,,5106183172,Telephony - 8 new sites,RH12 4QP,"10,056.11",
Communities & Local Government,DCLG,11/09/2012,Telephone call costs,Finance & Corporate Services,VERIZON UK LTD,,Large,,5106183206,20% Verizon charges for RAS services,RG2 6DA,643.18,
Communities & Local Government,DCLG,11/09/2012,Training,Finance & Corporate Services,BPP PROFESSIONAL EDUCATION,,Large,,5106183285,ACCA Revision,W12 8AA,432.08,
Communities & Local Government,DCLG,11/09/2012,Work In Progress Pre-Cert 40373 Spend,Neighbourhoods,ALT VALLEY COMMUNITY TRUST,,,,7600002585,ERDF Claim - 1 - P4-MS,L11 0BS,"34,142.28",
Communities & Local Government,DCLG,11/09/2012,Work In Progress Pre-Cert 40373 Spend,Neighbourhoods,ALT VALLEY COMMUNITY TRUST,,,,7600002612,ERDF Claim - 2 - P4-MS,L11 0BS,"91,232.53",
Communities & Local Government,DCLG,11/09/2012,Work In Progress Pre-Cert 40373 Spend,Neighbourhoods,BLACKBURN WITH DARWEN BC,,,,7600002579,ERDF Claim - 2 - P1-NW,BB1 7DY,"22,929.23",
Communities & Local Government,DCLG,11/09/2012,Work In Progress Pre-Cert 40373 Spend,Neighbourhoods,BLACKBURN WITH DARWEN BC,,,,7600002605,ERDF Claim - 3 - P1-NW,BB1 7DY,"18,332.47",
Communities & Local Government,DCLG,11/09/2012,Work In Progress Pre-Cert 40373 Spend,Neighbourhoods,BLACKBURN WITH DARWEN BC,,,,7600002606,ERDF Claim - 4 - P1-NW,BB1 7DY,"51,248.74",
Communities & Local Government,DCLG,11/09/2012,Work In Progress Pre-Cert 40373 Spend,Neighbourhoods,CHESTERFIELD BOROUGH COUNCIL,,Large,,7600002561,ERDF Claim - 7 - P2,S40 1LP,"22,730.18",
Communities & Local Government,DCLG,11/09/2012,Work In Progress Pre-Cert 40373 Spend,Neighbourhoods,CUMBRIA TOURISM,,,,7600002611,ERDF Claim - 40 - P3-NW,LA8 9PL,"8,614.45",
Communities & Local Government,DCLG,11/09/2012,Work In Progress Pre-Cert 40373 Spend,Neighbourhoods,EAST MIDLANDS INCUBATION NETWORK (E,,Small,,7600002613,ERDF Claim - 1 - P1,DE65 5GJ,792.31,
Communities & Local Government,DCLG,11/09/2012,Work In Progress Pre-Cert 40373 Spend,Neighbourhoods,ECONOMIC SOLUTIONS LIMITED,,Large,,7600002571,ERDF Claim - 25 - P1-MS,M1 5JW,"13,332.95",
Communities & Local Government,DCLG,11/09/2012,Work In Progress Pre-Cert 40373 Spend,Neighbourhoods,ECONOMIC SOLUTIONS LIMITED,,Large,,7600002572,ERDF Claim - 25 - P1-NW,M1 5JW,"89,853.53",
Communities & Local Government,DCLG,11/09/2012,Work In Progress Pre-Cert 40373 Spend,Neighbourhoods,ENTERPRISE4ALL (NORTH WEST) LTD,,Micro,,7600002608,ERDF Claim - 2 - P4-NW,BB1 5QR,"31,302.42",
Communities & Local Government,DCLG,11/09/2012,Work In Progress Pre-Cert 40373 Spend,Neighbourhoods,KIRKLEES COUNCIL,,,,7600002559,ERDF Claim - 27 - P3-SY,HD1 2TG,"22,009.33",
Communities & Local Government,DCLG,11/09/2012,Work In Progress Pre-Cert 40373 Spend,Neighbourhoods,KIRKLEES COUNCIL,,,,7600002610,ERDF Claim - 27 - P3-YH,HD1 2TG,"8,200.17",
Communities & Local Government,DCLG,11/09/2012,Work In Progress Pre-Cert 40373 Spend,Neighbourhoods,LANCASTER UNIVERISTY,,,,7600002558,ERDF Claim - 9 - P1-MS,LA1 4YW,"7,875.27",
Communities & Local Government,DCLG,11/09/2012,Work In Progress Pre-Cert 40373 Spend,Neighbourhoods,LANCASTER UNIVERISTY,,,,7600002560,ERDF Claim - 9 - P1-NW,LA1 4YW,"62,152.49",
Communities & Local Government,DCLG,11/09/2012,Work In Progress Pre-Cert 40373 Spend,Neighbourhoods,LANCASTER UNIVERISTY,,,,7600002562,ERDF Claim - 10 - P2-NW,LA1 4YW,"55,832.74",
Communities & Local Government,DCLG,11/09/2012,Work In Progress Pre-Cert 40373 Spend,Neighbourhoods,LANCASTER UNIVERISTY,,,,7600002563,ERDF Claim - 10 - P2-MS,LA1 4YW,"7,009.09",
Communities & Local Government,DCLG,11/09/2012,Work In Progress Pre-Cert 40373 Spend,Neighbourhoods,LANCASTER UNIVERISTY,,,,7600002581,ERDF Claim - 12 - P2-MS,LA1 4YW,"11,875.71",
Communities & Local Government,DCLG,11/09/2012,Work In Progress Pre-Cert 40373 Spend,Neighbourhoods,LANCASTER UNIVERISTY,,,,7600002582,ERDF Claim - 12 - P2-NW,LA1 4YW,"105,136.32",
Communities & Local Government,DCLG,11/09/2012,Work In Progress Pre-Cert 40373 Spend,Neighbourhoods,LANCASTER UNIVERISTY,,,,7600002586,ERDF Claim - 10 - P2-MS,LA1 4YW,"17,697.84",
Communities & Local Government,DCLG,11/09/2012,Work In Progress Pre-Cert 40373 Spend,Neighbourhoods,LANCASTER UNIVERISTY,,,,7600002587,ERDF Claim - 10 - P2-NW,LA1 4YW,"121,635.16",
Communities & Local Government,DCLG,11/09/2012,Work In Progress Pre-Cert 40373 Spend,Neighbourhoods,LEEDS CITY COLLEGE,,,,7600002567,ERDF Claim - 23 - P2-SY,LS3 1AA,"36,943.52",
Communities & Local Government,DCLG,11/09/2012,Work In Progress Pre-Cert 40373 Spend,Neighbourhoods,LEEDS CITY COLLEGE,,,,7600002588,ERDF Claim - 18 - P2-SY,LS3 1AA,"28,557.44",
Communities & Local Government,DCLG,11/09/2012,Work In Progress Pre-Cert 40373 Spend,Neighbourhoods,LEEDS CITY COLLEGE,,,,7600002589,ERDF Claim - 16 - P2-SY,LS3 1AA,"37,756.46",
Communities & Local Government,DCLG,11/09/2012,Work In Progress Pre-Cert 40373 Spend,Neighbourhoods,LEEDS CITY COLLEGE,,,,7600002590,ERDF Claim - 16 - P2-YH,LS3 1AA,"55,476.66",
Communities & Local Government,DCLG,11/09/2012,Work In Progress Pre-Cert 40373 Spend,Neighbourhoods,LEEDS CITY COLLEGE,,,,7600002591,ERDF Claim - 17 - P2-SY,LS3 1AA,"30,983.46",
Communities & Local Government,DCLG,11/09/2012,Work In Progress Pre-Cert 40373 Spend,Neighbourhoods,LEEDS CITY COLLEGE,,,,7600002592,ERDF Claim - 18 - P2-YH,LS3 1AA,"64,655.31",
Communities & Local Government,DCLG,11/09/2012,Work In Progress Pre-Cert 40373 Spend,Neighbourhoods,LEEDS CITY COLLEGE,,,,7600002593,ERDF Claim - 19 - P2-SY,LS3 1AA,"36,746.94",
Communities & Local Government,DCLG,11/09/2012,Work In Progress Pre-Cert 40373 Spend,Neighbourhoods,LEEDS CITY COLLEGE,,,,7600002594,ERDF Claim - 17 - P2-YH,LS3 1AA,"66,570.22",
Communities & Local Government,DCLG,11/09/2012,Work In Progress Pre-Cert 40373 Spend,Neighbourhoods,LEEDS CITY COLLEGE,,,,7600002595,ERDF Claim - 19 - P2-YH,LS3 1AA,"78,010.17",
Communities & Local Government,DCLG,11/09/2012,Work In Progress Pre-Cert 40373 Spend,Neighbourhoods,LEEDS CITY COLLEGE,,,,7600002596,ERDF Claim - 20 - P2-SY,LS3 1AA,"54,686.07",
Communities & Local Government,DCLG,11/09/2012,Work In Progress Pre-Cert 40373 Spend,Neighbourhoods,LEEDS CITY COLLEGE,,,,7600002597,ERDF Claim - 20 - P2-YH,LS3 1AA,"59,956.66",
Communities & Local Government,DCLG,11/09/2012,Work In Progress Pre-Cert 40373 Spend,Neighbourhoods,LEEDS CITY COLLEGE,,,,7600002598,ERDF Claim - 21 - P2-SY,LS3 1AA,"28,197.00",
Communities & Local Government,DCLG,11/09/2012,Work In Progress Pre-Cert 40373 Spend,Neighbourhoods,LEEDS CITY COLLEGE,,,,7600002599,ERDF Claim - 21 - P2-YH,LS3 1AA,"65,861.95",
Communities & Local Government,DCLG,11/09/2012,Work In Progress Pre-Cert 40373 Spend,Neighbourhoods,LEEDS CITY COLLEGE,,,,7600002600,ERDF Claim - 22 - P2-SY,LS3 1AA,"42,018.92",
Communities & Local Government,DCLG,11/09/2012,Work In Progress Pre-Cert 40373 Spend,Neighbourhoods,LEEDS CITY COLLEGE,,,,7600002601,ERDF Claim - 22 - P2-YH,LS3 1AA,"50,640.83",
Communities & Local Government,DCLG,11/09/2012,Work In Progress Pre-Cert 40373 Spend,Neighbourhoods,LEEDS CITY COLLEGE,,,,7600002617,ERDF Claim - 23 - P2-YH,LS3 1AA,"68,140.84",
Communities & Local Government,DCLG,11/09/2012,Work In Progress Pre-Cert 40373 Spend,Neighbourhoods,LINCONSHIRE COUNTY COUNCIL,,Large,,7600002568,ERDF Claim - 10 - P1,LN1 1YT,"21,687.84",
Communities & Local Government,DCLG,11/09/2012,Work In Progress Pre-Cert 40373 Spend,Neighbourhoods,LIVERPOOL CITY REG LOCAL ENT PARTNE,,,,7600002575,ERDF Claim - 9 - P1-MS,L3 1BG,"67,964.18",
Communities & Local Government,DCLG,11/09/2012,Work In Progress Pre-Cert 40373 Spend,Neighbourhoods,LIVERPOOL CITY REG LOCAL ENT PARTNE,,,,7600002576,ERDF Claim - 11 - P1-MS,L3 1BG,"84,493.45",
Communities & Local Government,DCLG,11/09/2012,Work In Progress Pre-Cert 40373 Spend,Neighbourhoods,LIVERPOOL HOPE UNIVERSITY COLLEGE,,,,7600002564,ERDF Claim - 27 - P2-MS,LA16 9JD,"60,520.22",
Communities & Local Government,DCLG,11/09/2012,Work In Progress Pre-Cert 40373 Spend,Neighbourhoods,LIVERPOOL JOHN MOORES UNIVERSITY,,,,7600002573,ERDF Claim - 3 - P2-MS,L3 2AJ,"8,762.51",
Communities & Local Government,DCLG,11/09/2012,Work In Progress Pre-Cert 40373 Spend,Neighbourhoods,LIVERPOOL JOHN MOORES UNIVERSITY,,,,7600002574,ERDF Claim - 3 - P2-NW,L3 2AJ,"12,772.29",
Communities & Local Government,DCLG,11/09/2012,Work In Progress Pre-Cert 40373 Spend,Neighbourhoods,LIVERPOOL UNIVERSITY,,,,7600002565,ERDF Claim - 12 - P2-MS,L69 7ZX,"41,670.74",
Communities & Local Government,DCLG,11/09/2012,Work In Progress Pre-Cert 40373 Spend,Neighbourhoods,LIVERPOOL UNIVERSITY,,,,7600002566,ERDF Claim - 12 - P2-NW,L69 7ZX,"70,978.81",
Communities & Local Government,DCLG,11/09/2012,Work In Progress Pre-Cert 40373 Spend,Neighbourhoods,NORTH WEST AEROSPACE ALLIANCE,,,,7600002569,ERDF Claim - 28 - P1-NW,BB9 9BT,"60,883.25",
Communities & Local Government,DCLG,11/09/2012,Work In Progress Pre-Cert 40373 Spend,Neighbourhoods,NORTH WEST AEROSPACE ALLIANCE,,,,7600002580,ERDF Claim - 29 - P1-NW,BB9 9BT,"50,250.61",
Communities & Local Government,DCLG,11/09/2012,Work In Progress Pre-Cert 40373 Spend,Neighbourhoods,NORTHAMPTON UNIVERSITY,,Large,,7600002607,ERDF Claim - 9 - P2,NN2 7AL,"45,575.31",
Communities & Local Government,DCLG,11/09/2012,Work In Progress Pre-Cert 40373 Spend,Neighbourhoods,REMADE SOUTH EAST,,Micro,,7600002577,ERDF Claim - 31 - P1,ME19 6BJ,"2,208.12",
Communities & Local Government,DCLG,11/09/2012,Work In Progress Pre-Cert 40373 Spend,Neighbourhoods,REMADE SOUTH EAST,,Micro,,7600002578,ERDF Claim - 32 - P1,ME19 6BJ,"6,837.97",
Communities & Local Government,DCLG,11/09/2012,Work In Progress Pre-Cert 40373 Spend,Neighbourhoods,SALFORD UNIVERSITY,,,,7600002554,ERDF Claim - 5 - P2-MS,M5 4WT,"10,659.65",
Communities & Local Government,DCLG,11/09/2012,Work In Progress Pre-Cert 40373 Spend,Neighbourhoods,SALFORD UNIVERSITY,,,,7600002555,ERDF Claim - 5 - P2-NW,M5 4WT,"45,512.48",
Communities & Local Government,DCLG,11/09/2012,Work In Progress Pre-Cert 40373 Spend,Neighbourhoods,SOCIAL ENTERPRISE NORTH WEST,,,,7600002616,ERDF Claim - 32 - P4-NW,L2 2AH,"66,403.02",
Communities & Local Government,DCLG,11/09/2012,Work In Progress Pre-Cert 40373 Spend,Neighbourhoods,UNIVERSITY OF EXETER,,,,7600002583,ERDF Claim - 12 - P1,EX4 4QJ,"269,941.41",
Communities & Local Government,DCLG,11/09/2012,Work In Progress Pre-Cert 40467 Spend,Neighbourhoods,ARMSTRONG PROPERTIES (NW) LTD,,Small,,7600002614,ERDF Claim - 7 - P4-NW,M30 9HQ,"421,657.56",
Communities & Local Government,DCLG,11/09/2012,Work In Progress Pre-Cert 40467 Spend,Neighbourhoods,BARNFIELD CENTRIC LTD,,,,7600002604,ERDF Claim - 8 - P4-NW,BB9 5SP,"170,953.44",
Communities & Local Government,DCLG,11/09/2012,Work In Progress Pre-Cert 40467 Spend,Neighbourhoods,CHESTERFIELD BOROUGH COUNCIL,,Large,,7600002561,ERDF Claim - 7 - P2,S40 1LP,"40,552.00",
Communities & Local Government,DCLG,11/09/2012,Work In Progress Pre-Cert 40467 Spend,Neighbourhoods,GENESIS BUSINESS PARK LTD,,,,7600002570,ERDF Claim - 7 - P3-MS,BB9 5SP,"450,309.33",
Communities & Local Government,DCLG,11/09/2012,Work In Progress Pre-Cert 40467 Spend,Neighbourhoods,GODLIMAN & WATSON LIMITED,,Micro,,7600002556,ERDF Claim - 16 - P4-NW,M25 1QA,"62,266.55",
Communities & Local Government,DCLG,11/09/2012,Work In Progress Pre-Cert 40467 Spend,Neighbourhoods,KIRKLEES COUNCIL,,,,7600002559,ERDF Claim - 27 - P3-SY,HD1 2TG,"98,518.15",
Communities & Local Government,DCLG,11/09/2012,Work In Progress Pre-Cert 40467 Spend,Neighbourhoods,KIRKLEES COUNCIL,,,,7600002610,ERDF Claim - 27 - P3-YH,HD1 2TG,"254,834.92",
Communities & Local Government,DCLG,11/09/2012,Work In Progress Pre-Cert 40467 Spend,Neighbourhoods,LEWIS'S LIVERPOOL LLP,,,,7600002602,ERDF Claim - 8 - P4-MS,WA14 4DW,"616,663.50",
Communities & Local Government,DCLG,11/09/2012,Work In Progress Pre-Cert 40467 Spend,Neighbourhoods,MERSEYSIDE ESTATES LTD,,Large,,7600002603,ERDF Claim - 14 - P4-MS,L2 5QQ,"223,530.78",
Communities & Local Government,DCLG,11/09/2012,Work In Progress Pre-Cert 40467 Spend,Neighbourhoods,MERSEYTRAVEL,,,,7600002557,ERDF Claim - 17 - P3-MS,L3 2AN,"137,824.86",
Communities & Local Government,DCLG,11/09/2012,Work In Progress Pre-Cert 40467 Spend,Neighbourhoods,MERSEYTRAVEL,,,,7600002609,ERDF Claim - 6 - P3-MS,L3 2AN,"362,120.87",
Communities & Local Government,DCLG,11/09/2012,Work In Progress Pre-Cert 40467 Spend,Neighbourhoods,SOUTH YORKS PASSENGER TRANS EXEC,,,,7600002615,ERDF Claim - 54 - P4-SY,S1 2BQ,"37,348.83",
Communities & Local Government,DCLG,11/09/2012,Work In Progress Pre-Cert 40467 Spend,Neighbourhoods,UNIVERSITY OF EXETER,,,,7600002583,ERDF Claim - 12 - P1,EX4 4QJ,"2,431,430.67",
Communities & Local Government,DCLG,12/09/2012,Accommodation Service Charges,Finance & Corporate Services,HSBC BANK PENSION TRUSTEES (UK) LTD,,Large,,5106183345,Westbrook Suite 9  2012/13 Serv Charge,W15 3HQ,"3,367.99",
Communities & Local Government,DCLG,12/09/2012,Accommodation Service Charges,Finance & Corporate Services,HSBC BANK PENSION TRUSTEES (UK) LTD,,Large,,5106183348,Westbrook Suite 10  2012/13 Service Chg,W15 3HQ,"7,016.08",
Communities & Local Government,DCLG,12/09/2012,Agency Staff,Finance & Corporate Services,CAPITA RESOURCING LTD,,Large,,5106183300,CPD 0492030 Capita MSP,SL6 1DP,"5,514.53",
Communities & Local Government,DCLG,12/09/2012,Agency Staff,Finance & Corporate Services,CAPITA RESOURCING LTD,,Large,,5106183321,CPD 0492030 Capita MSP,SL6 1DP,"5,980.28",
Communities & Local Government,DCLG,12/09/2012,Agency Staff,Finance & Corporate Services,MICHAEL PAGE INTERNATIONAL,,Large,,5106183344,Interim contractor,SL1 3SA,"1,929.48",
Communities & Local Government,DCLG,12/09/2012,Agency Staff,Finance & Corporate Services,SQUARE ONE RESOURCES LTD,,Medium,,2100221703,SAPDev 1.4.12-31.3.13,EC2A 2AD,"-2,287.06",
Communities & Local Government,DCLG,12/09/2012,Agency Staff,Finance & Corporate Services,SQUARE ONE RESOURCES LTD,,Medium,,5106183205,SAPDev 1.4.12-31.3.13,EC2A 2AD,"2,287.06",
Communities & Local Government,DCLG,12/09/2012,Agency Staff,Localism,CAPITA RESOURCING LTD,,Large,,5106183308,Expenses,SL6 1DP,331.80,
Communities & Local Government,DCLG,12/09/2012,Agency Staff,Localism,CAPITA RESOURCING LTD,,Large,,5106183308,Interim Manager,SL6 1DP,"6,150.82",
Communities & Local Government,DCLG,12/09/2012,Agency Staff,Localism,CAPITA RESOURCING LTD,,Large,,5106183329,Temporary Staff,SL6 1DP,"4,657.50",
Communities & Local Government,DCLG,12/09/2012,Agency Staff,Localism,CAPITA RESOURCING LTD,,Large,,5106183360,Interim Manager,SL6 1DP,"3,075.41",
Communities & Local Government,DCLG,12/09/2012,Agency Staff,Neighbourhoods,CAPITA RESOURCING LTD,,Large,,5106183296,Extension (3),SL6 1DP,"2,445.31",
Communities & Local Government,DCLG,12/09/2012,Agency Staff,Neighbourhoods,CAPITA RESOURCING LTD,,Large,,5106183298,Extension (3),SL6 1DP,"2,445.31",
Communities & Local Government,DCLG,12/09/2012,Agency Staff,Neighbourhoods,CAPITA RESOURCING LTD,,Large,,5106183310,Extension (1),SL6 1DP,"2,895.78",
Communities & Local Government,DCLG,12/09/2012,Agency Staff,Neighbourhoods,CAPITA RESOURCING LTD,,Large,,5106183312,Interim manager,SL6 1DP,"2,316.62",
Communities & Local Government,DCLG,12/09/2012,Agency Staff,Neighbourhoods,CAPITA RESOURCING LTD,,Large,,5106183314,CPD 0492030 Capita MSP,SL6 1DP,67.18,
Communities & Local Government,DCLG,12/09/2012,Agency Staff,Neighbourhoods,CAPITA RESOURCING LTD,,Large,,5106183314,DayRate ERREG2 Seas-Territorial,SL6 1DP,417.60,
Communities & Local Government,DCLG,12/09/2012,Agency Staff,Neighbourhoods,CAPITA RESOURCING LTD,,Large,,5106183318,Interim Manager,SL6 1DP,"2,213.66",
Communities & Local Government,DCLG,12/09/2012,Agency Staff,Neighbourhoods,CAPITA RESOURCING LTD,,Large,,5106183323,Contractor ERDF,SL6 1DP,"1,461.60",
Communities & Local Government,DCLG,12/09/2012,Agency Staff,Neighbourhoods,CAPITA RESOURCING LTD,,Large,,5106183325,DayRate INTERREG 2Seas-Territorial Facil,SL6 1DP,"2,198.92",
Communities & Local Government,DCLG,12/09/2012,Agency Staff,Neighbourhoods,REED EMPLOYMENT SERVICES,,Large,,5106183302,Agency staff pay cost (6 month contract),SW20 0BA,589.38,
Communities & Local Government,DCLG,12/09/2012,Agency Staff,Neighbourhoods,REED EMPLOYMENT SERVICES,,Large,,5106183304,Agency staff pay cost (6 month contract),SW20 0BA,594.74,
Communities & Local Government,DCLG,12/09/2012,Agency Staff,Neighbourhoods,REED EMPLOYMENT SERVICES,,Large,,5106183305,Interim staff -,SW20 0BA,375.06,
Communities & Local Government,DCLG,12/09/2012,Agency Staff,Neighbourhoods,REED EMPLOYMENT SERVICES,,Large,,5106183327,Agency Staff pay (6 month contract),SW20 0BA,664.39,
Communities & Local Government,DCLG,12/09/2012,Agency Staff,Troubled Families,CAPITA RESOURCING LTD,,Large,,5106183316,Interim Areas Manager,SL6 1DP,600.00,
Communities & Local Government,DCLG,12/09/2012,Electricity,Finance & Corporate Services,SOUTHERN ELECTRIC PLC,,Large,,5106183355,St Phillips Place Electricity 2012-13,PO9 5DD,"8,098.75",
Communities & Local Government,DCLG,12/09/2012,Fees,Localism,MR MICHAEL HEAD,,,,2100221676,FEES + EXPS + ERS - M HEAD,,"1,628.95",
Communities & Local Government,DCLG,12/09/2012,IT - Service Contracts,Finance & Corporate Services,STERIA LIMITED,,Large,,5106183362,CAN 61 MFD (Regional Offices),M14 0WN,"17,675.99",
Communities & Local Government,DCLG,12/09/2012,IT - Software Maintenance,Neighbourhoods,BRAMBLE. CC,,Public Bodies,,5106183365,Techncial changes to software application,SE1 7SP,"-4,290.24",
Communities & Local Government,DCLG,12/09/2012,Legal Fees,Finance & Corporate Services,JOHN LITTON,,Micro,Yes,5106183358,Legal Consultants,,864.00,
Communities & Local Government,DCLG,12/09/2012,Legal Fees,Finance & Corporate Services,TREASURY SOLICITOR,,Public Bodies,,2100221647,LEGAL FEES (ADVERSE COSTS),WC2B 4TS,"9,250.00",
Communities & Local Government,DCLG,12/09/2012,Legal Fees,Neighbourhoods,MISS NICHOLA ELLARD,,,,2100221673,PAYMENT REF: INVOICE NO. 5/12,,"8,400.00",
Communities & Local Government,DCLG,12/09/2012,Mobile phone costs,Localism,BABCOCK CRITICAL SERVICES LTD,,Large,,5106183181,Orange Airtime Bills For ND Flt-2012/13,NG15 0DR,882.59,
Communities & Local Government,DCLG,12/09/2012,NNDR Billing Authorities Receipts,Localism,OFFICE OF THE PAYMASTER GENERAL (NN,,,,2100221674,NNDR Billing Authority Receipts,RH10 1UH,"2,023,271,785.00",Yes
Communities & Local Government,DCLG,12/09/2012,NNDR Central List Receipts,Localism,OFFICE OF THE PAYMASTER GENERAL (NN,,,,2100221674,NNDR Central List Receipts,RH10 1UH,"126,544,373.00",Yes
Communities & Local Government,DCLG,12/09/2012,NNDR Outturn Receipts,Localism,OFFICE OF THE PAYMASTER GENERAL (NN,,,,2100221674,NNDR Outturn Receipts,RH10 1UH,"58,046,766.00",Yes
Communities & Local Government,DCLG,12/09/2012,Physical Storage,Finance & Corporate Services,IRON MOUNTAIN (UK) LIMITED,,Large,,5106183332,Offsite storage - tapes,EH54 7DF,383.01,
Communities & Local Government,DCLG,12/09/2012,Rent,Finance & Corporate Services,HSBC BANK PENSION TRUSTEES (UK) LTD,,Large,,5106183345,Westbrook Suite 9  2012/13 Rent,W15 3HQ,"7,500.00",
Communities & Local Government,DCLG,12/09/2012,Rent,Finance & Corporate Services,HSBC BANK PENSION TRUSTEES (UK) LTD,,Large,,5106183348,Westbrook Suite 10  2012/13 Rent,W15 3HQ,"17,145.00",
Communities & Local Government,DCLG,12/09/2012,Rent,Localism,GALLIARD RESIDENTIAL LIMITED,,Medium,,5106183334,accomodation cost Olympics Assurance,IG10 3TS,"2,730.00",
Communities & Local Government,DCLG,12/09/2012,Rent,Localism,GALLIARD RESIDENTIAL LIMITED,,Medium,,5106183338,accomodation cost Olympics Assurance,IG10 3TS,"2,448.33",
Communities & Local Government,DCLG,12/09/2012,Research,Finance & Corporate Services,OFFICE FOR NATIONAL STATISTICS,,Public Bodies,,5106183208,The English Housing Survey,NP10 8XG,"47,816.00",
Communities & Local Government,DCLG,12/09/2012,Research,Neighbourhoods,E C HARRIS LLP,,Large,,5106181828,Cat 2 and 3 call off work,N1 9AB,"5,151.00",
Communities & Local Government,DCLG,12/09/2012,Steady State Service Provision,Finance & Corporate Services,LOGICA (CMG UK LTD),,Large,,5106183015,Payroll Services 2012/13,TW18 4LG,"11,586.18",
Communities & Local Government,DCLG,12/09/2012,Steady State Service Provision,Localism,FIRE & RISK MANAGEMENT SUPPORT SERV,,Medium,,5106183357,Expenses,SK8 5JA,349.37,
Communities & Local Government,DCLG,12/09/2012,Steady State Service Provision,Localism,FIRE & RISK MANAGEMENT SUPPORT SERV,,Medium,,5106183357,PROVISION OF SUPPORT FOR THE FIRE SERVIC,SK8 5JA,"5,262.50",
Communities & Local Government,DCLG,12/09/2012,Training,Finance & Corporate Services,JUST DELIVER LTD,,Micro,,5106183352,Senior High Potential Development,GU10 2LU,834.40,
Communities & Local Government,DCLG,12/09/2012,Training,Finance & Corporate Services,WHITEHALL & INDUSTRY GROUP,,Small,,5106183346,Insight prog -Business Attachments,SW1H 9EX,500.00,
Communities & Local Government,DCLG,12/09/2012,Vehicle Maintenance,Localism,BABCOCK CRITICAL SERVICES LTD,,Large,,5106183131,Consumable 12/13,NG15 0DR,"31,183.64",
Communities & Local Government,DCLG,12/09/2012,Vehicle Maintenance,Localism,BABCOCK CRITICAL SERVICES LTD,,Large,,5106183183,Unplanned Vehicle Maintenance,NG15 0DR,"2,722.54",
Communities & Local Government,DCLG,12/09/2012,Vehicle Maintenance,Localism,BABCOCK CRITICAL SERVICES LTD,,Large,,5106183364,Unplanne Maintenance 12/13,NG15 0DR,"55,057.84",
Communities & Local Government,DCLG,12/09/2012,Web Services,Neighbourhoods,BRAMBLE. CC,,Public Bodies,,5106183366,Technical changes to software application,SE1 7SP,"4,290.00",
Communities & Local Government,DCLG,12/09/2012,Work In Progress Pre-Cert 40373 Spend,Neighbourhoods,LEICESTER CITY COUNCIL,,Large,,7600002618,ERDF Claim - 11 - P2,LE1 6ZG,"50,472.29",
Communities & Local Government,DCLG,12/09/2012,Work In Progress Pre-Cert 40373 Spend,Neighbourhoods,REDCAR & CLEVELAND BC,,,,7600002619,ERDF Claim - 10 - P1,TS10 1YA,"8,624.03",
Communities & Local Government,DCLG,12/09/2012,Work In Progress Pre-Cert 40467 Spend,Neighbourhoods,BOLSOVER DISTRICT COUNCIL,,Large,,7600002620,ERDF Claim - 7 - P2,S44 6NF,"1,147,197.71",
Communities & Local Government,DCLG,12/09/2012,Work In Progress Pre-Cert 40467 Spend,Neighbourhoods,REDCAR & CLEVELAND BC,,,,7600002619,ERDF Claim - 10 - P1,TS10 1YA,"745,383.46",
Communities & Local Government,DCLG,13/09/2012,Agency Staff,Finance & Corporate Services,SQUARE ONE RESOURCES LTD,,Medium,,5106183384,SAPDev 1.4.12-31.3.13,EC2A 2AD,"2,287.06",
Communities & Local Government,DCLG,13/09/2012,Agency Staff,Neighbourhoods,REED EMPLOYMENT SERVICES,,Large,,5106183404,Interim staff -,SW20 0BA,750.12,
Communities & Local Government,DCLG,13/09/2012,Capital Grants to People Non Profit BLOCKED,Neighbourhoods,OLD FORD HOUSING ASSOCIATION,Yes,Large,,2100220225,London GAP Funding Payment,E15 4LJ,"2,770,858.00",Yes
Communities & Local Government,DCLG,13/09/2012,Domestic Services,Finance & Corporate Services,AMEY COMMUNITY LTD,,Large,,5106183387,2012-13 Lateral Cleaning,OX4 4DQ,"3,185.36",
Communities & Local Government,DCLG,13/09/2012,Domestic Services,Finance & Corporate Services,AMEY COMMUNITY LTD,,Large,,5106183387,2012-13 Lateral General Waste Provision,OX4 4DQ,428.66,
Communities & Local Government,DCLG,13/09/2012,Facilities Management (ISD use only),Finance & Corporate Services,AMEY COMMUNITY LTD,,Large,,5106183387,2012-12 Lateral Gen Requirements,OX4 4DQ,"3,253.20",
Communities & Local Government,DCLG,13/09/2012,Facilities Management (ISD use only),Finance & Corporate Services,AMEY COMMUNITY LTD,,Large,,5106183387,2012-13 Lateral Asset & Prop Management,OX4 4DQ,123.41,
Communities & Local Government,DCLG,13/09/2012,Facilities Management (ISD use only),Finance & Corporate Services,AMEY COMMUNITY LTD,,Large,,5106183387,2012-13 Lateral Estate Service,OX4 4DQ,"1,309.08",
Communities & Local Government,DCLG,13/09/2012,Facilities Management (ISD use only),Finance & Corporate Services,AMEY COMMUNITY LTD,,Large,,5106183387,2012-13 Lateral Helpdesk Service,OX4 4DQ,559.28,
Communities & Local Government,DCLG,13/09/2012,Facilities Management (ISD use only),Finance & Corporate Services,AMEY COMMUNITY LTD,,Large,,5106183387,2012-13 Lateral Porterage,OX4 4DQ,16.60,
Communities & Local Government,DCLG,13/09/2012,Facilities Management (ISD use only),Finance & Corporate Services,AMEY COMMUNITY LTD,,Large,,5106183387,2012-13 Lateral X-Ray Services,OX4 4DQ,36.81,
Communities & Local Government,DCLG,13/09/2012,Fixed Maintenance,Finance & Corporate Services,AMEY COMMUNITY LTD,,Large,,5106183387,2012-13 Lateral Grounds & Gardens,OX4 4DQ,120.52,
Communities & Local Government,DCLG,13/09/2012,IT - Service Contracts,Finance & Corporate Services,STERIA LIMITED,,Large,,5106183400,CAN 61 MFD (Regional Offices),M14 0WN,"17,675.99",
Communities & Local Government,DCLG,13/09/2012,IT - Service Contracts,Finance & Corporate Services,VERIZON UK LTD,,Large,,5106183372,Financial year 2012/13,RG2 6DA,"1,241.18",
Communities & Local Government,DCLG,13/09/2012,Office Supplies,Localism,BANNER BUSINESS SUPPLIES LTD,,Large,,5106183380,DELWEEKLY Banner A4 Recycled Copier Pape,NR3 1PD,408.24,
Communities & Local Government,DCLG,13/09/2012,Office Supplies,Localism,BANNER BUSINESS SUPPLIES LTD,,Large,,5106183380,DELWEEKLY Steinbeis Classic A3 Copier Pa,NR3 1PD,135.78,
Communities & Local Government,DCLG,13/09/2012,Physical Storage,Finance & Corporate Services,CAMBERTOWN LTD,,Small,,5106183386,storage and fullfillment 11-12,S63 9BL,829.42,
Communities & Local Government,DCLG,13/09/2012,Post,Finance & Corporate Services,NEOPOST LTD,,Large,,5106183367,Franking Machine Credit acc600576,RM1 2AR,"2,000.00",
Communities & Local Government,DCLG,13/09/2012,Printing,Finance & Corporate Services,WILLIAMS LEA LIMITED,,Large,,5106183369,Printing Right to Buy Leaflets,W2 6LG,"6,141.02",
Communities & Local Government,DCLG,13/09/2012,Printing,Finance & Corporate Services,WILLIAMS LEA LIMITED,,Large,,5106183369,Printing Right to Buy Leaflets,W2 6LG,"28,474.46",
Communities & Local Government,DCLG,13/09/2012,Research,Localism,RESEARCH WORKS LTD,,Small,,5106183401,Firefighters Pension attitudes,AL1 3BL,"10,680.00",
Communities & Local Government,DCLG,13/09/2012,Research,Neighbourhoods,E C HARRIS LLP,,Large,,5106183389,Cat 2 and 3 call off work,N1 9AB,"8,428.50",
Communities & Local Government,DCLG,13/09/2012,Security,Finance & Corporate Services,AMEY COMMUNITY LTD,,Large,,5106183387,2012-13 Lateral Reception,OX4 4DQ,744.02,
Communities & Local Government,DCLG,13/09/2012,Security,Finance & Corporate Services,AMEY COMMUNITY LTD,,Large,,5106183387,2012-13 Lateral Security,OX4 4DQ,"1,092.58",
Communities & Local Government,DCLG,13/09/2012,Software Licences,Neighbourhoods,SCIENTIFIC COMPUTERS LTD,,Large,,5106183392,NetInsight Software licence,RH10 1LQ,"26,689.18",
Communities & Local Government,DCLG,13/09/2012,Training,Finance & Corporate Services,SAP (UK) LTD,,Large,,5106183378,SAP Training course (IT related training,TW14 8HD,"1,560.00",
Communities & Local Government,DCLG,13/09/2012,Travel and Subsistence Account,Finance & Corporate Services,REDFERN TRAVEL LIMITED,,Small,,2100221709,Monthly Consolidated Travel Aug 2012,BD1 3AZ,301.18,
Communities & Local Government,DCLG,13/09/2012,Travel and Subsistence Account,Finance & Corporate Services,REDFERN TRAVEL LIMITED,,Small,,2100221709,Monthly Consolidated Travel Aug 2012,BD1 3AZ,"4,078.02",
Communities & Local Government,DCLG,13/09/2012,Travel and Subsistence Account,Finance & Corporate Services,REDFERN TRAVEL LIMITED,,Small,,2100221709,Monthly Consolidated Travel Aug 2012,BD1 3AZ,298.02,
Communities & Local Government,DCLG,13/09/2012,Travel and Subsistence Account,Finance & Corporate Services,REDFERN TRAVEL LIMITED,,Small,,2100221709,Monthly Consolidated Travel Aug 2012,BD1 3AZ,"1,263.41",
Communities & Local Government,DCLG,13/09/2012,Travel and Subsistence Account,Finance & Corporate Services,REDFERN TRAVEL LIMITED,,Small,,2100221709,Monthly Consolidated Travel Aug 2012,BD1 3AZ,"1,781.09",
Communities & Local Government,DCLG,13/09/2012,Travel and Subsistence Account,Finance & Corporate Services,REDFERN TRAVEL LIMITED,,Small,,2100221709,Monthly Consolidated Travel Aug 2012,BD1 3AZ,568.48,
Communities & Local Government,DCLG,13/09/2012,Travel and Subsistence Account,Finance & Corporate Services,REDFERN TRAVEL LIMITED,,Small,,2100221709,Monthly Consolidated Travel Aug 2012,BD1 3AZ,397.25,
Communities & Local Government,DCLG,13/09/2012,Travel and Subsistence Account,Finance & Corporate Services,REDFERN TRAVEL LIMITED,,Small,,2100221709,Monthly Consolidated Travel Aug 2012,BD1 3AZ,969.19,
Communities & Local Government,DCLG,13/09/2012,Travel and Subsistence Account,Localism,REDFERN TRAVEL LIMITED,,Small,,2100221709,Monthly Consolidated Travel Aug 2012,BD1 3AZ,368.33,
Communities & Local Government,DCLG,13/09/2012,Travel and Subsistence Account,Localism,REDFERN TRAVEL LIMITED,,Small,,2100221709,Monthly Consolidated Travel Aug 2012,BD1 3AZ,351.13,
Communities & Local Government,DCLG,13/09/2012,Travel and Subsistence Account,Localism,REDFERN TRAVEL LIMITED,,Small,,2100221709,Monthly Consolidated Travel Aug 2012,BD1 3AZ,882.76,
Communities & Local Government,DCLG,13/09/2012,Travel and Subsistence Account,Localism,REDFERN TRAVEL LIMITED,,Small,,2100221709,Monthly Consolidated Travel Aug 2012,BD1 3AZ,551.93,
Communities & Local Government,DCLG,13/09/2012,Travel and Subsistence Account,Localism,REDFERN TRAVEL LIMITED,,Small,,2100221709,Monthly Consolidated Travel Aug 2012,BD1 3AZ,475.11,
Communities & Local Government,DCLG,13/09/2012,Travel and Subsistence Account,Localism,REDFERN TRAVEL LIMITED,,Small,,2100221709,Monthly Consolidated Travel Aug 2012,BD1 3AZ,331.96,
Communities & Local Government,DCLG,13/09/2012,Travel and Subsistence Account,Localism,REDFERN TRAVEL LIMITED,,Small,,2100221709,Monthly Consolidated Travel Aug 2012,BD1 3AZ,386.03,
Communities & Local Government,DCLG,13/09/2012,Travel and Subsistence Account,Localism,REDFERN TRAVEL LIMITED,,Small,,2100221709,Monthly Consolidated Travel Aug 2012,BD1 3AZ,664.90,
Communities & Local Government,DCLG,13/09/2012,Travel and Subsistence Account,Localism,REDFERN TRAVEL LIMITED,,Small,,2100221709,Monthly Consolidated Travel Aug 2012,BD1 3AZ,"1,723.13",
Communities & Local Government,DCLG,13/09/2012,Travel and Subsistence Account,Localism,REDFERN TRAVEL LIMITED,,Small,,2100221709,Monthly Consolidated Travel Aug 2012,BD1 3AZ,"2,348.13",
Communities & Local Government,DCLG,13/09/2012,Travel and Subsistence Account,Localism,REDFERN TRAVEL LIMITED,,Small,,2100221709,Monthly Consolidated Travel Aug 2012,BD1 3AZ,"1,340.85",
Communities & Local Government,DCLG,13/09/2012,Travel and Subsistence Account,Localism,REDFERN TRAVEL LIMITED,,Small,,2100221709,Monthly Consolidated Travel Aug 2012,BD1 3AZ,668.77,
Communities & Local Government,DCLG,13/09/2012,Travel and Subsistence Account,Localism,REDFERN TRAVEL LIMITED,,Small,,2100221709,Monthly Consolidated Travel Aug 2012,BD1 3AZ,"1,236.38",
Communities & Local Government,DCLG,13/09/2012,Travel and Subsistence Account,Localism,REDFERN TRAVEL LIMITED,,Small,,2100221709,Monthly Consolidated Travel Aug 2012,BD1 3AZ,623.82,
Communities & Local Government,DCLG,13/09/2012,Travel and Subsistence Account,Localism,REDFERN TRAVEL LIMITED,,Small,,2100221709,Monthly Consolidated Travel Aug 2012,BD1 3AZ,517.97,
Communities & Local Government,DCLG,13/09/2012,Travel and Subsistence Account,Neighbourhoods,REDFERN TRAVEL LIMITED,,Small,,2100221709,Monthly Consolidated Travel Aug 2012,BD1 3AZ,552.76,
Communities & Local Government,DCLG,13/09/2012,Travel and Subsistence Account,Neighbourhoods,REDFERN TRAVEL LIMITED,,Small,,2100221709,Monthly Consolidated Travel Aug 2012,BD1 3AZ,447.33,
Communities & Local Government,DCLG,13/09/2012,Travel and Subsistence Account,Neighbourhoods,REDFERN TRAVEL LIMITED,,Small,,2100221709,Monthly Consolidated Travel Aug 2012,BD1 3AZ,811.44,
Communities & Local Government,DCLG,13/09/2012,Travel and Subsistence Account,Neighbourhoods,REDFERN TRAVEL LIMITED,,Small,,2100221709,Monthly Consolidated Travel Aug 2012,BD1 3AZ,983.14,
Communities & Local Government,DCLG,13/09/2012,Travel and Subsistence Account,Neighbourhoods,REDFERN TRAVEL LIMITED,,Small,,2100221709,Monthly Consolidated Travel Aug 2012,BD1 3AZ,"2,466.24",
Communities & Local Government,DCLG,13/09/2012,Travel and Subsistence Account,Neighbourhoods,REDFERN TRAVEL LIMITED,,Small,,2100221709,Monthly Consolidated Travel Aug 2012,BD1 3AZ,"3,074.16",
Communities & Local Government,DCLG,13/09/2012,Travel and Subsistence Account,Neighbourhoods,REDFERN TRAVEL LIMITED,,Small,,2100221709,Monthly Consolidated Travel Aug 2012,BD1 3AZ,"2,296.97",
Communities & Local Government,DCLG,13/09/2012,Travel and Subsistence Account,Neighbourhoods,REDFERN TRAVEL LIMITED,,Small,,2100221709,Monthly Consolidated Travel Aug 2012,BD1 3AZ,"1,925.06",
Communities & Local Government,DCLG,13/09/2012,Travel and Subsistence Account,Neighbourhoods,REDFERN TRAVEL LIMITED,,Small,,2100221709,Monthly Consolidated Travel Aug 2012,BD1 3AZ,497.60,
Communities & Local Government,DCLG,13/09/2012,Travel and Subsistence Account,Neighbourhoods,REDFERN TRAVEL LIMITED,,Small,,2100221709,Monthly Consolidated Travel Aug 2012,BD1 3AZ,356.02,
Communities & Local Government,DCLG,13/09/2012,Travel and Subsistence Account,Neighbourhoods,REDFERN TRAVEL LIMITED,,Small,,2100221709,Monthly Consolidated Travel Aug 2012,BD1 3AZ,"1,159.60",
Communities & Local Government,DCLG,13/09/2012,Travel and Subsistence Account,Neighbourhoods,REDFERN TRAVEL LIMITED,,Small,,2100221709,Monthly Consolidated Travel Aug 2012,BD1 3AZ,760.27,
Communities & Local Government,DCLG,13/09/2012,Travel and Subsistence Account,Neighbourhoods,REDFERN TRAVEL LIMITED,,Small,,2100221709,Monthly Consolidated Travel Aug 2012,BD1 3AZ,"1,040.14",
Communities & Local Government,DCLG,13/09/2012,Travel and Subsistence Account,Neighbourhoods,REDFERN TRAVEL LIMITED,,Small,,2100221709,Monthly Consolidated Travel Aug 2012,BD1 3AZ,"2,547.55",
Communities & Local Government,DCLG,13/09/2012,Travel and Subsistence Account,Neighbourhoods,REDFERN TRAVEL LIMITED,,Small,,2100221709,Monthly Consolidated Travel Aug 2012,BD1 3AZ,442.44,
Communities & Local Government,DCLG,13/09/2012,Travel and Subsistence Account,Neighbourhoods,REDFERN TRAVEL LIMITED,,Small,,2100221709,Monthly Consolidated Travel Aug 2012,BD1 3AZ,638.27,
Communities & Local Government,DCLG,13/09/2012,Travel and Subsistence Account,Neighbourhoods,REDFERN TRAVEL LIMITED,,Small,,2100221709,Monthly Consolidated Travel Aug 2012,BD1 3AZ,"1,149.30",
Communities & Local Government,DCLG,13/09/2012,Travel and Subsistence Account,Neighbourhoods,REDFERN TRAVEL LIMITED,,Small,,2100221709,Monthly Consolidated Travel Aug 2012,BD1 3AZ,956.11,
Communities & Local Government,DCLG,13/09/2012,Travel and Subsistence Account,Strategic Performance Team,REDFERN TRAVEL LIMITED,,Small,,2100221709,Monthly Consolidated Travel Aug 2012,BD1 3AZ,393.76,
Communities & Local Government,DCLG,13/09/2012,Travel and Subsistence Account,Strategic Performance Team,REDFERN TRAVEL LIMITED,,Small,,2100221709,Monthly Consolidated Travel Aug 2012,BD1 3AZ,812.48,
Communities & Local Government,DCLG,13/09/2012,Travel and Subsistence Account,Troubled Families,REDFERN TRAVEL LIMITED,,Small,,2100221709,Monthly Consolidated Travel Aug 2012,BD1 3AZ,"3,907.26",
Communities & Local Government,DCLG,13/09/2012,Vehicle hire,Finance & Corporate Services,GOVERNMENT CAR & DESPATCH AGENCY,,Public Bodies,,5106183356,Ministerial Cars,SW8 5AX,432.00,
Communities & Local Government,DCLG,13/09/2012,Waste Disposal and pest control,Finance & Corporate Services,AMEY COMMUNITY LTD,,Large,,5106183387,2012-13 Lateral Pest Control,OX4 4DQ,30.31,
Communities & Local Government,DCLG,13/09/2012,Waste Disposal and pest control,Finance & Corporate Services,AMEY COMMUNITY LTD,,Large,,5106183387,2012-13 Lateral Waste Management,OX4 4DQ,326.18,
Communities & Local Government,DCLG,13/09/2012,Work In Progress Pre-Cert 40373 Spend,Neighbourhoods,BARNSLEY DEVELOPMENT AGENCY LTD,,Small,,7600002626,ERDF Claim - 16 - P3-SY,S70 2EG,"8,419.82",
Communities & Local Government,DCLG,13/09/2012,Work In Progress Pre-Cert 40373 Spend,Neighbourhoods,KEY FUND (STH YORKSHIRE) LTD,,,,7600002627,ERDF Claim - 25 - P3-SY,S9 3TY,"2,162.98",
Communities & Local Government,DCLG,13/09/2012,Work In Progress Pre-Cert 40373 Spend,Neighbourhoods,KEY FUND (STH YORKSHIRE) LTD,,,,7600002628,ERDF Claim - 25 - P3-YH,S9 3TY,"2,997.75",
Communities & Local Government,DCLG,13/09/2012,Work In Progress Pre-Cert 40373 Spend,Neighbourhoods,KEY FUND (STH YORKSHIRE) LTD,,,,7600002629,ERDF Claim - 19 - P3-YH,S9 3TY,"20,724.73",
Communities & Local Government,DCLG,13/09/2012,Work In Progress Pre-Cert 40373 Spend,Neighbourhoods,KEY FUND (STH YORKSHIRE) LTD,,,,7600002630,ERDF Claim - 19 - P3-SY,S9 3TY,"7,603.67",
Communities & Local Government,DCLG,13/09/2012,Work In Progress Pre-Cert 40373 Spend,Neighbourhoods,SCARBOROUGH BOROUGH COUNCIL,,,,7600002623,ERDF Claim - 13 - P3-YH,YO11 2HG,"13,611.41",
Communities & Local Government,DCLG,13/09/2012,Work In Progress Pre-Cert 40373 Spend,Neighbourhoods,SCARBOROUGH BOROUGH COUNCIL,,,,7600002624,ERDF Claim - 14 - P3-YH,YO11 2HG,"17,853.71",
Communities & Local Government,DCLG,13/09/2012,Work In Progress Pre-Cert 40373 Spend,Neighbourhoods,SCARBOROUGH BOROUGH COUNCIL,,,,7600002625,ERDF Claim - 15 - P3-YH,YO11 2HG,"17,537.27",
Communities & Local Government,DCLG,13/09/2012,Work In Progress Pre-Cert 40373 Spend,Neighbourhoods,UNIVERSITY OF BRADFORD,,,,7600002621,ERDF Claim - 54 - P1-YH,BD7 1DP,"8,456.52",
Communities & Local Government,DCLG,13/09/2012,Work In Progress Pre-Cert 40467 Spend,Neighbourhoods,KEY FUND (STH YORKSHIRE) LTD,,,,7600002628,ERDF Claim - 25 - P3-YH,S9 3TY,"5,390.00",
Communities & Local Government,DCLG,13/09/2012,Work In Progress Pre-Cert 40467 Spend,Neighbourhoods,KEY FUND (STH YORKSHIRE) LTD,,,,7600002629,ERDF Claim - 19 - P3-YH,S9 3TY,"89,768.00",
Communities & Local Government,DCLG,13/09/2012,Work In Progress Pre-Cert 40467 Spend,Neighbourhoods,KEY FUND (STH YORKSHIRE) LTD,,,,7600002630,ERDF Claim - 19 - P3-SY,S9 3TY,"64,925.00",
Communities & Local Government,DCLG,13/09/2012,Work In Progress Pre-Cert 40467 Spend,Neighbourhoods,SCARBOROUGH BOROUGH COUNCIL,,,,7600002623,ERDF Claim - 13 - P3-YH,YO11 2HG,352.81,
Communities & Local Government,DCLG,13/09/2012,Work In Progress Pre-Cert 40467 Spend,Neighbourhoods,UNIVERSITY OF BRADFORD,,,,7600002621,ERDF Claim - 54 - P1-YH,BD7 1DP,"250,239.94",
Communities & Local Government,DCLG,14/09/2012,Accommodation Service Charges,Finance & Corporate Services,TISHMAN SPEYER ELAND HOUSE S.A.R.L.,,Large,,5106183431,Eland House Service Charge 2012-13,WC2B 4AE,"116,044.24",
Communities & Local Government,DCLG,14/09/2012,Agency Staff,Finance & Corporate Services,MANPOWER UK LTD,,Large,,5106183415,Temp information specialist,UB8 1AB,674.77,
Communities & Local Government,DCLG,14/09/2012,Agency Staff,Finance & Corporate Services,MANPOWER UK LTD,,Large,,5106183419,Temp information specialist,UB8 1AB,591.40,
Communities & Local Government,DCLG,14/09/2012,Fixed Maintenance,Neighbourhoods,E C HARRIS LLP,,Large,,5106183435,ERDF NE QS Service,N1 9AB,"1,826.00",
Communities & Local Government,DCLG,14/09/2012,Hospitality,Finance & Corporate Services,MITIE CATERING SERVICES LTD,,Large,,2100221714,Consolidated Hospitality March 2012,BS16 7FN,928.02,
Communities & Local Government,DCLG,14/09/2012,Hospitality,Finance & Corporate Services,MITIE CATERING SERVICES LTD,,Large,,2100221714,Consolidated Hospitality March 2012,BS16 7FN,111.60,
Communities & Local Government,DCLG,14/09/2012,Hospitality,Finance & Corporate Services,MITIE CATERING SERVICES LTD,,Large,,2100221714,Consolidated Hospitality March 2012,BS16 7FN,205.92,
Communities & Local Government,DCLG,14/09/2012,Hospitality,Localism,MITIE CATERING SERVICES LTD,,Large,,2100221714,Consolidated Hospitality March 2012,BS16 7FN,85.68,
Communities & Local Government,DCLG,14/09/2012,Hospitality,Localism,MITIE CATERING SERVICES LTD,,Large,,2100221714,Consolidated Hospitality March 2012,BS16 7FN,32.40,
Communities & Local Government,DCLG,14/09/2012,Hospitality,Localism,MITIE CATERING SERVICES LTD,,Large,,2100221714,Consolidated Hospitality March 2012,BS16 7FN,66.00,
Communities & Local Government,DCLG,14/09/2012,Hospitality,Localism,MITIE CATERING SERVICES LTD,,Large,,2100221714,Consolidated Hospitality March 2012,BS16 7FN,27.96,
Communities & Local Government,DCLG,14/09/2012,Hospitality,Neighbourhoods,MITIE CATERING SERVICES LTD,,Large,,2100221714,Consolidated Hospitality March 2012,BS16 7FN,150.90,
Communities & Local Government,DCLG,14/09/2012,Hospitality,Neighbourhoods,MITIE CATERING SERVICES LTD,,Large,,2100221714,Consolidated Hospitality March 2012,BS16 7FN,19.20,
Communities & Local Government,DCLG,14/09/2012,Hospitality,Neighbourhoods,MITIE CATERING SERVICES LTD,,Large,,2100221714,Consolidated Hospitality March 2012,BS16 7FN,29.40,
Communities & Local Government,DCLG,14/09/2012,Hospitality,Neighbourhoods,MITIE CATERING SERVICES LTD,,Large,,2100221714,Consolidated Hospitality March 2012,BS16 7FN,108.36,
Communities & Local Government,DCLG,14/09/2012,Hospitality,Neighbourhoods,MITIE CATERING SERVICES LTD,,Large,,2100221714,Consolidated Hospitality March 2012,BS16 7FN,80.04,
Communities & Local Government,DCLG,14/09/2012,Hospitality,Strategic Performance Team,MITIE CATERING SERVICES LTD,,Large,,2100221714,Consolidated Hospitality March 2012,BS16 7FN,237.60,
Communities & Local Government,DCLG,14/09/2012,Hospitality,Troubled Families,MITIE CATERING SERVICES LTD,,Large,,2100221714,Consolidated Hospitality March 2012,BS16 7FN,59.94,
Communities & Local Government,DCLG,14/09/2012,LA General GLA  Grant Payable,Strategic Performance Team,GREATER LONDON AUTHORITY,,Large,,2100221612,2012-13 General GLA Grant,SE10 1AP,"2,303,125.00",Yes
Communities & Local Government,DCLG,14/09/2012,Mobile phone costs,Finance & Corporate Services,ORANGE (AIRTIME/LINE RENTAL),,Large,,2100221713,Monthly Consolidated telephone Costs,S99 6LU,55.80,
Communities & Local Government,DCLG,14/09/2012,Mobile phone costs,Finance & Corporate Services,ORANGE (AIRTIME/LINE RENTAL),,Large,,2100221713,Monthly Consolidated telephone Costs,S99 6LU,71.40,
Communities & Local Government,DCLG,14/09/2012,Mobile phone costs,Finance & Corporate Services,ORANGE (AIRTIME/LINE RENTAL),,Large,,2100221713,Monthly Consolidated telephone Costs,S99 6LU,70.80,
Communities & Local Government,DCLG,14/09/2012,Mobile phone costs,Finance & Corporate Services,ORANGE (AIRTIME/LINE RENTAL),,Large,,2100221713,Monthly Consolidated telephone Costs,S99 6LU,17.40,
Communities & Local Government,DCLG,14/09/2012,Mobile phone costs,Finance & Corporate Services,ORANGE (AIRTIME/LINE RENTAL),,Large,,2100221713,Monthly Consolidated telephone Costs,S99 6LU,54.68,
Communities & Local Government,DCLG,14/09/2012,Mobile phone costs,Finance & Corporate Services,ORANGE (AIRTIME/LINE RENTAL),,Large,,2100221713,Monthly Consolidated telephone Costs,S99 6LU,44.15,
Communities & Local Government,DCLG,14/09/2012,Mobile phone costs,Finance & Corporate Services,ORANGE (AIRTIME/LINE RENTAL),,Large,,2100221713,Monthly Consolidated telephone Costs,S99 6LU,36.78,
Communities & Local Government,DCLG,14/09/2012,Mobile phone costs,Finance & Corporate Services,ORANGE (AIRTIME/LINE RENTAL),,Large,,2100221713,Monthly Consolidated telephone Costs,S99 6LU,18.00,
Communities & Local Government,DCLG,14/09/2012,Mobile phone costs,Finance & Corporate Services,ORANGE (AIRTIME/LINE RENTAL),,Large,,2100221713,Monthly Consolidated telephone Costs,S99 6LU,17.40,
Communities & Local Government,DCLG,14/09/2012,Mobile phone costs,Finance & Corporate Services,ORANGE (AIRTIME/LINE RENTAL),,Large,,2100221713,Monthly Consolidated telephone Costs,S99 6LU,17.40,
Communities & Local Government,DCLG,14/09/2012,Mobile phone costs,Finance & Corporate Services,ORANGE (AIRTIME/LINE RENTAL),,Large,,2100221713,Monthly Consolidated telephone Costs,S99 6LU,72.00,
Communities & Local Government,DCLG,14/09/2012,Mobile phone costs,Finance & Corporate Services,ORANGE (AIRTIME/LINE RENTAL),,Large,,2100221713,Monthly Consolidated telephone Costs,S99 6LU,17.40,
Communities & Local Government,DCLG,14/09/2012,Mobile phone costs,Finance & Corporate Services,ORANGE (AIRTIME/LINE RENTAL),,Large,,2100221713,Monthly Consolidated telephone Costs,S99 6LU,17.40,
Communities & Local Government,DCLG,14/09/2012,Mobile phone costs,Finance & Corporate Services,ORANGE (AIRTIME/LINE RENTAL),,Large,,2100221713,Monthly Consolidated telephone Costs,S99 6LU,19.42,
Communities & Local Government,DCLG,14/09/2012,Mobile phone costs,Finance & Corporate Services,ORANGE (AIRTIME/LINE RENTAL),,Large,,2100221713,Monthly Consolidated telephone Costs,S99 6LU,36.00,
Communities & Local Government,DCLG,14/09/2012,Mobile phone costs,Finance & Corporate Services,ORANGE (AIRTIME/LINE RENTAL),,Large,,2100221713,Monthly Consolidated telephone Costs,S99 6LU,43.21,
Communities & Local Government,DCLG,14/09/2012,Mobile phone costs,Finance & Corporate Services,ORANGE (AIRTIME/LINE RENTAL),,Large,,2100221713,Monthly Consolidated telephone Costs,S99 6LU,29.38,
Communities & Local Government,DCLG,14/09/2012,Mobile phone costs,Finance & Corporate Services,ORANGE (AIRTIME/LINE RENTAL),,Large,,2100221713,Monthly Consolidated telephone Costs,S99 6LU,36.00,
Communities & Local Government,DCLG,14/09/2012,Mobile phone costs,Localism,7E COMMUNICATIONS LTD,,Micro,,5106183390,"Satellite - Iridium, Inmarsat & Thuraya",KT8 2FF,564.98,
Communities & Local Government,DCLG,14/09/2012,Mobile phone costs,Localism,7E COMMUNICATIONS LTD,,Micro,,5106183393,"Satellite - Iridium, Inmarsat & Thuraya",KT8 2FF,414.04,
Communities & Local Government,DCLG,14/09/2012,Mobile phone costs,Localism,ORANGE (AIRTIME/LINE RENTAL),,Large,,2100221713,Monthly Consolidated telephone Costs,S99 6LU,17.40,
Communities & Local Government,DCLG,14/09/2012,Mobile phone costs,Localism,ORANGE (AIRTIME/LINE RENTAL),,Large,,2100221713,Monthly Consolidated telephone Costs,S99 6LU,80.81,
Communities & Local Government,DCLG,14/09/2012,Mobile phone costs,Localism,ORANGE (AIRTIME/LINE RENTAL),,Large,,2100221713,Monthly Consolidated telephone Costs,S99 6LU,36.00,
Communities & Local Government,DCLG,14/09/2012,Mobile phone costs,Localism,ORANGE (AIRTIME/LINE RENTAL),,Large,,2100221713,Monthly Consolidated telephone Costs,S99 6LU,132.70,
Communities & Local Government,DCLG,14/09/2012,Mobile phone costs,Localism,ORANGE (AIRTIME/LINE RENTAL),,Large,,2100221713,Monthly Consolidated telephone Costs,S99 6LU,23.53,
Communities & Local Government,DCLG,14/09/2012,Mobile phone costs,Localism,ORANGE (AIRTIME/LINE RENTAL),,Large,,2100221713,Monthly Consolidated telephone Costs,S99 6LU,24.60,
Communities & Local Government,DCLG,14/09/2012,Mobile phone costs,Neighbourhoods,ORANGE (AIRTIME/LINE RENTAL),,Large,,2100221713,Monthly Consolidated telephone Costs,S99 6LU,35.02,
Communities & Local Government,DCLG,14/09/2012,Mobile phone costs,Neighbourhoods,ORANGE (AIRTIME/LINE RENTAL),,Large,,2100221713,Monthly Consolidated telephone Costs,S99 6LU,2.45,
Communities & Local Government,DCLG,14/09/2012,Mobile phone costs,Neighbourhoods,ORANGE (AIRTIME/LINE RENTAL),,Large,,2100221713,Monthly Consolidated telephone Costs,S99 6LU,32.99,
Communities & Local Government,DCLG,14/09/2012,Mobile phone costs,Neighbourhoods,ORANGE (AIRTIME/LINE RENTAL),,Large,,2100221713,Monthly Consolidated telephone Costs,S99 6LU,48.12,
Communities & Local Government,DCLG,14/09/2012,Mobile phone costs,Neighbourhoods,ORANGE (AIRTIME/LINE RENTAL),,Large,,2100221713,Monthly Consolidated telephone Costs,S99 6LU,89.44,
Communities & Local Government,DCLG,14/09/2012,Mobile phone costs,Neighbourhoods,ORANGE (AIRTIME/LINE RENTAL),,Large,,2100221713,Monthly Consolidated telephone Costs,S99 6LU,35.28,
Communities & Local Government,DCLG,14/09/2012,Mobile phone costs,Neighbourhoods,ORANGE (AIRTIME/LINE RENTAL),,Large,,2100221713,Monthly Consolidated telephone Costs,S99 6LU,8.90,
Communities & Local Government,DCLG,14/09/2012,Mobile phone costs,Neighbourhoods,ORANGE (AIRTIME/LINE RENTAL),,Large,,2100221713,Monthly Consolidated telephone Costs,S99 6LU,25.90,
Communities & Local Government,DCLG,14/09/2012,Mobile phone costs,Neighbourhoods,ORANGE (AIRTIME/LINE RENTAL),,Large,,2100221713,Monthly Consolidated telephone Costs,S99 6LU,2.03,
Communities & Local Government,DCLG,14/09/2012,Mobile phone costs,Neighbourhoods,ORANGE (AIRTIME/LINE RENTAL),,Large,,2100221713,Monthly Consolidated telephone Costs,S99 6LU,17.40,
Communities & Local Government,DCLG,14/09/2012,Mobile phone costs,Strategic Performance Team,ORANGE (AIRTIME/LINE RENTAL),,Large,,2100221713,Monthly Consolidated telephone Costs,S99 6LU,35.00,
Communities & Local Government,DCLG,14/09/2012,Online Database Information Retrieval,Finance & Corporate Services,LAND REGISTRY,,Public Bodies,,5106183448,Land Registrycash/mortgage indicatordata,CR0 2AQ,"6,000.00",
Communities & Local Government,DCLG,14/09/2012,Online Database Information Retrieval,Finance & Corporate Services,NEWSBANK INC,,Large,,5106183413,NewsBank UK & Ireland 2012-13,34103,"10,383.60",
Communities & Local Government,DCLG,14/09/2012,Printing,Finance & Corporate Services,STATIONERY OFFICE LTD,,Large,,5106183443,Printing of Statutory Instrument legislation,NR3 1PD,208.00,
Communities & Local Government,DCLG,14/09/2012,Printing,Finance & Corporate Services,STATIONERY OFFICE LTD,,Large,,5106183443,Printing of Statutory Instrument legislation,NR3 1PD,130.00,
Communities & Local Government,DCLG,14/09/2012,Printing,Finance & Corporate Services,STATIONERY OFFICE LTD,,Large,,5106183450,Printing of Statutory Instrument legislation,NR3 1PD,368.00,
Communities & Local Government,DCLG,14/09/2012,Printing,Finance & Corporate Services,STATIONERY OFFICE LTD,,Large,,5106183450,Printing of Statutory Instrument legislation,NR3 1PD,130.00,
Communities & Local Government,DCLG,14/09/2012,Publications,Finance & Corporate Services,SWETS INFORMATION SERVICES LTD,,Large,,5106183447,Legal Publications @0%VAT (MoJ Framewor),OX14 1UQ,"5,289.27",
Communities & Local Government,DCLG,14/09/2012,Rent,Finance & Corporate Services,CELTIC LAND (PLYMOUTH) LTD,,Small,,5106183421,Mast Hse Plymouth Rent 2012/13,W1G 9SB,"82,500.00",
Communities & Local Government,DCLG,14/09/2012,Training,Finance & Corporate Services,BEAMANS MANAGEMENT CONSULTANTS,,,,5106183422,JEGS support and training,WD2 6DE,"13,284.25",
Communities & Local Government,DCLG,14/09/2012,Work In Progress Pre-Cert 40373 Spend,Neighbourhoods,BRECKLAND COUNCIL,,,,7600002633,ERDF Claim - 17 - P3,NR19 1EE,"44,401.16",
Communities & Local Government,DCLG,14/09/2012,Work In Progress Pre-Cert 40373 Spend,Neighbourhoods,NORFOLK & WAVENEY ENTERPRISE SERV'S,,Medium,,7600002631,ERDF Claim - 13 - P2,NR2 1JH,"33,733.71",
Communities & Local Government,DCLG,14/09/2012,Work In Progress Pre-Cert 40373 Spend,Neighbourhoods,WENTA,,Small,,7600002632,ERDF Claim - 4 - P2,WD24 7ND,"29,555.77",
Communities & Local Government,DCLG,14/09/2012,Work In Progress Pre-Cert 40467 Spend,Neighbourhoods,BRECKLAND COUNCIL,,,,7600002633,ERDF Claim - 17 - P3,NR19 1EE,"102,956.43",
Communities & Local Government,DCLG,17/09/2012,Agency Staff,Finance & Corporate Services,SBS GROUP (UK) LTD,,Large,,5106183106,Contractor Business Support Team P2P,EC1N 8TS,"1,368.00",
Communities & Local Government,DCLG,17/09/2012,Cap Grants to Private Sector Companies,Neighbourhoods,TINSELY SPECIAL PRODUCTS LTD,,,,2100221641,Regional Growth Fund,TS16 0PS,"398,580.00",
Communities & Local Government,DCLG,17/09/2012,Current (non AEF) Grants to Local Authorities,Neighbourhoods,ADUR DC,,,,5000211085,Grant Payable by Exchequer,BN11 1HB,"16,444.00",Yes
Communities & Local Government,DCLG,17/09/2012,Current (non AEF) Grants to Local Authorities,Neighbourhoods,ALLERDALE BC,,,,5000211086,Grant Payable by Exchequer,CA14 2RS,"7,669.00",Yes
Communities & Local Government,DCLG,17/09/2012,Current (non AEF) Grants to Local Authorities,Neighbourhoods,AMBER VALLEY BC,,,,5000211087,Grant Payable by Exchequer,DE5 3WZ,"40,510.00",Yes
Communities & Local Government,DCLG,17/09/2012,Current (non AEF) Grants to Local Authorities,Neighbourhoods,ARUN DC,,,,5000210941,Grant Payable by Exchequer,BN17 5LF,"81,528.00",Yes
Communities & Local Government,DCLG,17/09/2012,Current (non AEF) Grants to Local Authorities,Neighbourhoods,ASHFIELD DC,,,,5000211088,Grant Payable by Exchequer,NG17 8DA,"69,246.00",Yes
Communities & Local Government,DCLG,17/09/2012,Current (non AEF) Grants to Local Authorities,Neighbourhoods,ASHFORD BC,,,,5000210942,Grant Payable by Exchequer,TN23 1PL,"110,094.00",Yes
Communities & Local Government,DCLG,17/09/2012,Current (non AEF) Grants to Local Authorities,Neighbourhoods,AYLESBURY VALE DC(HSG),,,,5000210943,Grant Payable by Exchequer,HP20 1SD,"134,070.00",Yes
Communities & Local Government,DCLG,17/09/2012,Current (non AEF) Grants to Local Authorities,Neighbourhoods,BABERGH DC,,,,5000210944,Grant Payable by Exchequer,IP7 6SJ,"48,216.00",Yes
Communities & Local Government,DCLG,17/09/2012,Current (non AEF) Grants to Local Authorities,Neighbourhoods,BARKING & DAGENHAM LB (HSG),,,,5000210945,Grant Payable by Exchequer,RM10 7BY,"112,482.00",Yes
Communities & Local Government,DCLG,17/09/2012,Current (non AEF) Grants to Local Authorities,Neighbourhoods,BARNET LBC,,,,5000211089,Grant Payable by Exchequer,NW4 4BG,"239,725.00",Yes
Communities & Local Government,DCLG,17/09/2012,Current (non AEF) Grants to Local Authorities,Neighbourhoods,BARNSLEY MBC,,,,5000211090,Grant Payable by Exchequer,S70 2AQ,"158,553.00",Yes
Communities & Local Government,DCLG,17/09/2012,Current (non AEF) Grants to Local Authorities,Neighbourhoods,BARROW BC,,,,5000211091,Grant Payable by Exchequer,LA14 2LD,"13,419.00",Yes
Communities & Local Government,DCLG,17/09/2012,Current (non AEF) Grants to Local Authorities,Neighbourhoods,BASILDON BOROUGH COUNCIL,,,,5000211092,Grant Payable by Exchequer,SS14 0DF,"55,090.00",Yes
Communities & Local Government,DCLG,17/09/2012,Current (non AEF) Grants to Local Authorities,Neighbourhoods,BASINGSTOKE & DEANE BC,,,,5000211093,Grant Payable by Exchequer,RG21 2AJ,"198,716.00",Yes
Communities & Local Government,DCLG,17/09/2012,Current (non AEF) Grants to Local Authorities,Neighbourhoods,BASSETLAW DC (HSG),,,,5000210946,Grant Payable by Exchequer,S80 2AH,"41,898.00",Yes
Communities & Local Government,DCLG,17/09/2012,Current (non AEF) Grants to Local Authorities,Neighbourhoods,BATH & NE SOMERSET DC (HSG),,,,5000210947,Grant Payable by Exchequer,BA1 5AW,"93,286.00",Yes
Communities & Local Government,DCLG,17/09/2012,Current (non AEF) Grants to Local Authorities,Neighbourhoods,BEDFORD UNITARY AUTHORITY,,,,5000211290,Grant Payable by Exchequer,MK40 1SJ,"202,173.00",Yes
Communities & Local Government,DCLG,17/09/2012,Current (non AEF) Grants to Local Authorities,Neighbourhoods,BEXLEY LB (HSG),,,,5000210948,Grant Payable by Exchequer,DA8 1TL,"53,403.00",Yes
Communities & Local Government,DCLG,17/09/2012,Current (non AEF) Grants to Local Authorities,Neighbourhoods,BIRMINGHAM CITY CNCL,,,,5000211094,Grant Payable by Exchequer,B3 3AB,"567,904.00",Yes
Communities & Local Government,DCLG,17/09/2012,Current (non AEF) Grants to Local Authorities,Neighbourhoods,BLABY DC (HSG),,,,5000210949,Grant Payable by Exchequer,LE9 5EP,"31,155.00",Yes
Communities & Local Government,DCLG,17/09/2012,Current (non AEF) Grants to Local Authorities,Neighbourhoods,BLACKBURN WITH DARWEN BC,,,,5000211095,Grant Payable by Exchequer,BB1 7DY,"24,775.00",Yes
Communities & Local Government,DCLG,17/09/2012,Current (non AEF) Grants to Local Authorities,Neighbourhoods,BLACKPOOL BC,,,,5000211096,Grant Payable by Exchequer,FY1 1NA,"78,987.00",Yes
Communities & Local Government,DCLG,17/09/2012,Current (non AEF) Grants to Local Authorities,Neighbourhoods,BOLSOVER DC,,,,5000211097,Grant Payable by Exchequer,S44 6NF,"23,789.00",Yes
Communities & Local Government,DCLG,17/09/2012,Current (non AEF) Grants to Local Authorities,Neighbourhoods,BOLTON MBC,,,,5000211098,Grant Payable by Exchequer,BL1 1RU,"129,254.00",Yes
Communities & Local Government,DCLG,17/09/2012,Current (non AEF) Grants to Local Authorities,Neighbourhoods,BOSTON BC,,,,5000210950,Grant Payable by Exchequer,PE21 8QR,"32,157.00",Yes
Communities & Local Government,DCLG,17/09/2012,Current (non AEF) Grants to Local Authorities,Neighbourhoods,BOURNEMOUTH DC,,,,5000211099,Grant Payable by Exchequer,BH2 6EB,"142,562.00",Yes
Communities & Local Government,DCLG,17/09/2012,Current (non AEF) Grants to Local Authorities,Neighbourhoods,BRACKNELL FOREST DC,,,,5000211100,Grant Payable by Exchequer,RG12 1AQ,"109,843.00",Yes
Communities & Local Government,DCLG,17/09/2012,Current (non AEF) Grants to Local Authorities,Neighbourhoods,BRADFORD MBC,,,,5000211101,Grant Payable by Exchequer,BD1 1HX,"299,420.00",Yes
Communities & Local Government,DCLG,17/09/2012,Current (non AEF) Grants to Local Authorities,Neighbourhoods,BRAINTREE DC,,,,5000210951,Grant Payable by Exchequer,CM7 6HB,"75,171.00",Yes
Communities & Local Government,DCLG,17/09/2012,Current (non AEF) Grants to Local Authorities,Neighbourhoods,BRECKLAND DC,,,,5000210952,Grant Payable by Exchequer,NR19 1EE,"66,794.00",Yes
Communities & Local Government,DCLG,17/09/2012,Current (non AEF) Grants to Local Authorities,Neighbourhoods,BRENT LB (HSG),,,,5000210953,Grant Payable by Exchequer,HA9 9HD,"213,932.00",Yes
Communities & Local Government,DCLG,17/09/2012,Current (non AEF) Grants to Local Authorities,Neighbourhoods,BRENTWOOD BC,,,,5000211102,Grant Payable by Exchequer,CM15 8AY,"35,927.00",Yes
Communities & Local Government,DCLG,17/09/2012,Current (non AEF) Grants to Local Authorities,Neighbourhoods,BRIGHTON & HOVE CITY COUNCIL,,,,5000211103,Grant Payable by Exchequer,BN3 2SR,"78,149.00",Yes
Communities & Local Government,DCLG,17/09/2012,Current (non AEF) Grants to Local Authorities,Neighbourhoods,BRISTOL CITY CNCL (HSG),,,,5000210954,Grant Payable by Exchequer,BS99 7BL,"374,625.00",Yes
Communities & Local Government,DCLG,17/09/2012,Current (non AEF) Grants to Local Authorities,Neighbourhoods,BROADLAND DC,,Large,,5000210955,Grant Payable by Exchequer,NR7 0DU,"34,058.00",Yes
Communities & Local Government,DCLG,17/09/2012,Current (non AEF) Grants to Local Authorities,Neighbourhoods,BROMLEY LB,,,,5000211104,Grant Payable by Exchequer,BR1 3UH,"155,096.00",Yes
Communities & Local Government,DCLG,17/09/2012,Current (non AEF) Grants to Local Authorities,Neighbourhoods,BROMSGROVE DC,,,,5000210956,Grant Payable by Exchequer,B60 1AA,"27,996.00",Yes
Communities & Local Government,DCLG,17/09/2012,Current (non AEF) Grants to Local Authorities,Neighbourhoods,BROXBOURNE BC,,Public Bodies,,5000211105,Grant Payable by Exchequer,EN8 9XG,"48,016.00",Yes
Communities & Local Government,DCLG,17/09/2012,Current (non AEF) Grants to Local Authorities,Neighbourhoods,BROXTOWE BC,,,,5000211106,Grant Payable by Exchequer,NG9 1AB,"30,814.00",Yes
Communities & Local Government,DCLG,17/09/2012,Current (non AEF) Grants to Local Authorities,Neighbourhoods,BUCKINGHAMSHIRE CC,,,,5000211107,Grant Payable by Exchequer,HP20 1UD,"78,109.00",Yes
Communities & Local Government,DCLG,17/09/2012,Current (non AEF) Grants to Local Authorities,Neighbourhoods,BURNLEY BC,,,,5000211108,Grant Payable by Exchequer,BB11 1JA,"6,389.00",Yes
Communities & Local Government,DCLG,17/09/2012,Current (non AEF) Grants to Local Authorities,Neighbourhoods,CALDERDALE MBC,,,,5000211110,Grant Payable by Exchequer,HX1 1YP,"131,990.00",Yes
Communities & Local Government,DCLG,17/09/2012,Current (non AEF) Grants to Local Authorities,Neighbourhoods,CAMBRIDGE CITY COUNCIL,,,,5000211111,Grant Payable by Exchequer,CB2 3NA,"116,515.00",Yes
Communities & Local Government,DCLG,17/09/2012,Current (non AEF) Grants to Local Authorities,Neighbourhoods,CAMBRIDGESHIRE COUNTY CNCL,,,,5000211112,Grant Payable by Exchequer,CB3 0AP,"125,328.00",Yes
Communities & Local Government,DCLG,17/09/2012,Current (non AEF) Grants to Local Authorities,Neighbourhoods,CAMDEN LB,,,,5000211113,Grant Payable by Exchequer,WC1H 8NG,"221,812.00",Yes
Communities & Local Government,DCLG,17/09/2012,Current (non AEF) Grants to Local Authorities,Neighbourhoods,CANNOCK CHASE DC,,,,5000211114,Grant Payable by Exchequer,WS11 1BG,"44,734.00",Yes
Communities & Local Government,DCLG,17/09/2012,Current (non AEF) Grants to Local Authorities,Neighbourhoods,CANTERBURY CITY CNCL,,,,5000210957,Grant Payable by Exchequer,CT1 1YW,"69,663.00",Yes
Communities & Local Government,DCLG,17/09/2012,Current (non AEF) Grants to Local Authorities,Neighbourhoods,CARLISLE CITY CNCL,,,,5000210958,Grant Payable by Exchequer,CA3 8QG,"49,923.00",Yes
Communities & Local Government,DCLG,17/09/2012,Current (non AEF) Grants to Local Authorities,Neighbourhoods,CASTLE POINT BC,,,,5000211115,Grant Payable by Exchequer,SS7 1TF,"30,415.00",Yes
Communities & Local Government,DCLG,17/09/2012,Current (non AEF) Grants to Local Authorities,Neighbourhoods,CENTRAL BEDFORDSHIRE COUNCIL,,,,5000211287,Grant Payable by Exchequer,SG17 5TQ,"222,325.00",Yes
Communities & Local Government,DCLG,17/09/2012,Current (non AEF) Grants to Local Authorities,Neighbourhoods,CHARNWOOD BC,,,,5000211116,Grant Payable by Exchequer,LE11 2TU,"100,805.00",Yes
Communities & Local Government,DCLG,17/09/2012,Current (non AEF) Grants to Local Authorities,Neighbourhoods,CHELMSFORD BC,,,,5000211117,Grant Payable by Exchequer,CM1 1JE,"54,680.00",Yes
Communities & Local Government,DCLG,17/09/2012,Current (non AEF) Grants to Local Authorities,Neighbourhoods,CHELTENHAM BC,,,,5000211118,Grant Payable by Exchequer,GL50 1PW,"44,687.00",Yes
Communities & Local Government,DCLG,17/09/2012,Current (non AEF) Grants to Local Authorities,Neighbourhoods,CHERWELL DC,,,,5000210959,Grant Payable by Exchequer,OX15 4AA,"53,849.00",Yes
Communities & Local Government,DCLG,17/09/2012,Current (non AEF) Grants to Local Authorities,Neighbourhoods,CHESHIRE EAST COUNCIL,,,,5000211288,Grant Payable by Exchequer,SK10 1DP,"214,373.00",Yes
Communities & Local Government,DCLG,17/09/2012,Current (non AEF) Grants to Local Authorities,Neighbourhoods,CHESHIRE WEST & CHESTER COUNCIL,,,,5000211289,Grant Payable by Exchequer,CH1 1SG,"118,797.00",Yes
Communities & Local Government,DCLG,17/09/2012,Current (non AEF) Grants to Local Authorities,Neighbourhoods,CHESTERFIELD BC,,,,5000211119,Grant Payable by Exchequer,S40 1LP,"17,440.00",Yes
Communities & Local Government,DCLG,17/09/2012,Current (non AEF) Grants to Local Authorities,Neighbourhoods,CHICHESTER DC,,,,5000210960,Grant Payable by Exchequer,PO19 1TY,"69,938.00",Yes
Communities & Local Government,DCLG,17/09/2012,Current (non AEF) Grants to Local Authorities,Neighbourhoods,CHILTERN DC (HSG),,,,5000210961,Grant Payable by Exchequer,HP6 5AW,"15,958.00",Yes
Communities & Local Government,DCLG,17/09/2012,Current (non AEF) Grants to Local Authorities,Neighbourhoods,CHORLEY DC,,,,5000211120,Grant Payable by Exchequer,PR7 1DP,"79,966.00",Yes
Communities & Local Government,DCLG,17/09/2012,Current (non AEF) Grants to Local Authorities,Neighbourhoods,CHRISTCHURCH BC (HSG),,,,5000210962,Grant Payable by Exchequer,BH23 1AZ,"16,132.00",Yes
Communities & Local Government,DCLG,17/09/2012,Current (non AEF) Grants to Local Authorities,Neighbourhoods,CITY OF LINCOLN COUNCIL,,,,5000211183,Grant Payable by Exchequer,LN1 1DB,"78,176.00",Yes
Communities & Local Government,DCLG,17/09/2012,Current (non AEF) Grants to Local Authorities,Neighbourhoods,CITY OF LONDON (HSG),,,,5000210963,Grant Payable by Exchequer,EC2P 2EJ,"20,499.00",Yes
Communities & Local Government,DCLG,17/09/2012,Current (non AEF) Grants to Local Authorities,Neighbourhoods,CITY OF SUNDERLAND (HSG),,,,5000210964,Grant Payable by Exchequer,SR2 7DN,"88,238.00",Yes
Communities & Local Government,DCLG,17/09/2012,Current (non AEF) Grants to Local Authorities,Neighbourhoods,CITY OF WAKEFIELD MDC,,,,5000211261,Grant Payable by Exchequer,WF1 2QW,"232,613.00",Yes
Communities & Local Government,DCLG,17/09/2012,Current (non AEF) Grants to Local Authorities,Neighbourhoods,COLCHESTER BC,,,,5000211121,Grant Payable by Exchequer,CO3 3WG,"116,768.00",Yes
Communities & Local Government,DCLG,17/09/2012,Current (non AEF) Grants to Local Authorities,Neighbourhoods,COPELAND BC,,,,5000210965,Grant Payable by Exchequer,CA28 7NY,"2,561.00",Yes
Communities & Local Government,DCLG,17/09/2012,Current (non AEF) Grants to Local Authorities,Neighbourhoods,CORBY BC,,,,5000210966,Grant Payable by Exchequer,NN17 1GD,"81,660.00",Yes
Communities & Local Government,DCLG,17/09/2012,Current (non AEF) Grants to Local Authorities,Neighbourhoods,CORNWALL UNITARY AUTHORITY,,,,5000211292,Grant Payable by Exchequer,TR1 3AY,"393,061.00",Yes
Communities & Local Government,DCLG,17/09/2012,Current (non AEF) Grants to Local Authorities,Neighbourhoods,COTSWOLD DC,,,,5000210967,Grant Payable by Exchequer,GL7 1PX,"56,985.00",Yes
Communities & Local Government,DCLG,17/09/2012,Current (non AEF) Grants to Local Authorities,Neighbourhoods,COVENTRY CITY CNCL,,,,5000211122,Grant Payable by Exchequer,CV1 2QL,"218,403.00",Yes
Communities & Local Government,DCLG,17/09/2012,Current (non AEF) Grants to Local Authorities,Neighbourhoods,CRAVEN DC (HSG),,,,5000210968,Grant Payable by Exchequer,BD23 1PS,"30,775.00",Yes
Communities & Local Government,DCLG,17/09/2012,Current (non AEF) Grants to Local Authorities,Neighbourhoods,CRAWLEY BC,,,,5000210969,Grant Payable by Exchequer,RH10 1UZ,"71,339.00",Yes
Communities & Local Government,DCLG,17/09/2012,Current (non AEF) Grants to Local Authorities,Neighbourhoods,CROYDON LB,,,,5000211123,Grant Payable by Exchequer,CR9 3JS,"323,505.00",Yes
Communities & Local Government,DCLG,17/09/2012,Current (non AEF) Grants to Local Authorities,Neighbourhoods,CUMBRIA COUNTY CNCL,,,,5000211124,Grant Payable by Exchequer,CA3 8NA,"24,652.00",Yes
Communities & Local Government,DCLG,17/09/2012,Current (non AEF) Grants to Local Authorities,Neighbourhoods,DACORUM BC,,,,5000211125,Grant Payable by Exchequer,HP1 1HH,"67,536.00",Yes
Communities & Local Government,DCLG,17/09/2012,Current (non AEF) Grants to Local Authorities,Neighbourhoods,DARLINGTON BC,,,,5000211126,Grant Payable by Exchequer,TS19 1JA,"44,452.00",Yes
Communities & Local Government,DCLG,17/09/2012,Current (non AEF) Grants to Local Authorities,Neighbourhoods,DARTFORD BC,,,,5000210970,Grant Payable by Exchequer,DA1 1DR,"59,217.00",Yes
Communities & Local Government,DCLG,17/09/2012,Current (non AEF) Grants to Local Authorities,Neighbourhoods,DAVENTRY DC,,,,5000210971,Grant Payable by Exchequer,NN11 5AF,"29,803.00",Yes
Communities & Local Government,DCLG,17/09/2012,Current (non AEF) Grants to Local Authorities,Neighbourhoods,DERBY CITY CNCL,,,,5000211127,Grant Payable by Exchequer,DE1 2FS,"148,486.00",Yes
Communities & Local Government,DCLG,17/09/2012,Current (non AEF) Grants to Local Authorities,Neighbourhoods,DERBYSHIRE COUNTYCOUNCIL,,,,5000211128,Grant Payable by Exchequer,DE4 3AH,"64,293.00",Yes
Communities & Local Government,DCLG,17/09/2012,Current (non AEF) Grants to Local Authorities,Neighbourhoods,DERBYSHIRE DALES DC,,,,5000210972,Grant Payable by Exchequer,DE4 3NN,"24,206.00",Yes
Communities & Local Government,DCLG,17/09/2012,Current (non AEF) Grants to Local Authorities,Neighbourhoods,DEVON COUNTY CNCL,,,,5000211129,Grant Payable by Exchequer,EX2 4QJ,"120,499.00",Yes
Communities & Local Government,DCLG,17/09/2012,Current (non AEF) Grants to Local Authorities,Neighbourhoods,DONCASTER MBC,,,,5000211130,Grant Payable by Exchequer,DN1 3QA,"71,094.00",Yes
Communities & Local Government,DCLG,17/09/2012,Current (non AEF) Grants to Local Authorities,Neighbourhoods,DORSET COUNTY CNCL,,,,5000211131,Grant Payable by Exchequer,DT1 1XJ,"43,458.00",Yes
Communities & Local Government,DCLG,17/09/2012,Current (non AEF) Grants to Local Authorities,Neighbourhoods,DOVER DC,,,,5000210973,Grant Payable by Exchequer,CT16 3PD,"34,389.00",Yes
Communities & Local Government,DCLG,17/09/2012,Current (non AEF) Grants to Local Authorities,Neighbourhoods,DUDLEY MBC,,,,5000211132,Grant Payable by Exchequer,DY1 1HF,"130,116.00",Yes
Communities & Local Government,DCLG,17/09/2012,Current (non AEF) Grants to Local Authorities,Neighbourhoods,DURHAM UNITARY AUTHORITY,,,,5000211293,Grant Payable by Exchequer,DH1 5UE,"195,354.00",Yes
Communities & Local Government,DCLG,17/09/2012,Current (non AEF) Grants to Local Authorities,Neighbourhoods,EALING LB,,,,5000211133,Grant Payable by Exchequer,W5 2HL,"207,211.00",Yes
Communities & Local Government,DCLG,17/09/2012,Current (non AEF) Grants to Local Authorities,Neighbourhoods,EAST CAMBRIDGESHIRE DC,,,,5000210974,Grant Payable by Exchequer,CB7 4PL,"57,520.00",Yes
Communities & Local Government,DCLG,17/09/2012,Current (non AEF) Grants to Local Authorities,Neighbourhoods,EAST DEVON DC,,,,5000210975,Grant Payable by Exchequer,EX10 8HL,"58,099.00",Yes
Communities & Local Government,DCLG,17/09/2012,Current (non AEF) Grants to Local Authorities,Neighbourhoods,EAST DORSET DC,,,,5000211134,Grant Payable by Exchequer,BH21 4HN,"21,781.00",Yes
Communities & Local Government,DCLG,17/09/2012,Current (non AEF) Grants to Local Authorities,Neighbourhoods,EAST HAMPSHIRE DC,,,,5000210976,Grant Payable by Exchequer,GU31 4EX,"67,732.00",Yes
Communities & Local Government,DCLG,17/09/2012,Current (non AEF) Grants to Local Authorities,Neighbourhoods,EAST HERTFORDSHIRE DC,,,,5000210977,Grant Payable by Exchequer,SG13 8EQ,"64,352.00",Yes
Communities & Local Government,DCLG,17/09/2012,Current (non AEF) Grants to Local Authorities,Neighbourhoods,EAST LINDSEY DC,,,,5000210978,Grant Payable by Exchequer,LN11 8UP,"56,242.00",Yes
Communities & Local Government,DCLG,17/09/2012,Current (non AEF) Grants to Local Authorities,Neighbourhoods,EAST NORTHAMPTONSHIRE COUNCIL,,,,5000210979,Grant Payable by Exchequer,NN14 4LZ,"69,383.00",Yes
Communities & Local Government,DCLG,17/09/2012,Current (non AEF) Grants to Local Authorities,Neighbourhoods,EAST RIDING OF YORKS (HSG),,,,5000210980,Grant Payable by Exchequer,HU17 9BA,"169,081.00",Yes
Communities & Local Government,DCLG,17/09/2012,Current (non AEF) Grants to Local Authorities,Neighbourhoods,EAST STAFFORDSHIRE BC,,,,5000210981,Grant Payable by Exchequer,DE14 2EB,"52,258.00",Yes
Communities & Local Government,DCLG,17/09/2012,Current (non AEF) Grants to Local Authorities,Neighbourhoods,EAST SUSSEX COUNTY CNCL,,,,5000211135,Grant Payable by Exchequer,BN7 1SF,"63,608.00",Yes
Communities & Local Government,DCLG,17/09/2012,Current (non AEF) Grants to Local Authorities,Neighbourhoods,EASTBOURNE BC,,,,5000211136,Grant Payable by Exchequer,BN21 4TW,"28,898.00",Yes
Communities & Local Government,DCLG,17/09/2012,Current (non AEF) Grants to Local Authorities,Neighbourhoods,EASTLEIGH BOROUGH COUNCIL,,,,5000211137,Grant Payable by Exchequer,SO5 9YN,"74,728.00",Yes
Communities & Local Government,DCLG,17/09/2012,Current (non AEF) Grants to Local Authorities,Neighbourhoods,EDEN DC (HSG),,,,5000210982,Grant Payable by Exchequer,CA11 7QF,"19,348.00",Yes
Communities & Local Government,DCLG,17/09/2012,Current (non AEF) Grants to Local Authorities,Neighbourhoods,ELMBRIDGE BC (HSG),,,,5000210983,Grant Payable by Exchequer,KT10 9SD,"95,502.00",Yes
Communities & Local Government,DCLG,17/09/2012,Current (non AEF) Grants to Local Authorities,Neighbourhoods,ENFIELD LB,,,,5000211138,Grant Payable by Exchequer,EN1 3XF,"103,979.00",Yes
Communities & Local Government,DCLG,17/09/2012,Current (non AEF) Grants to Local Authorities,Neighbourhoods,EPPING FOREST DC,,,,5000211139,Grant Payable by Exchequer,CM16 4BZ,"55,057.00",Yes
Communities & Local Government,DCLG,17/09/2012,Current (non AEF) Grants to Local Authorities,Neighbourhoods,EPSOM & EWELL BC,,,,5000211140,Grant Payable by Exchequer,KT18 5BY,"46,554.00",Yes
Communities & Local Government,DCLG,17/09/2012,Current (non AEF) Grants to Local Authorities,Neighbourhoods,EREWASH BC,,,,5000211141,Grant Payable by Exchequer,DE7 5RP,"39,410.00",Yes
Communities & Local Government,DCLG,17/09/2012,Current (non AEF) Grants to Local Authorities,Neighbourhoods,ESSEX COUNTY CNCL,,,,5000211142,Grant Payable by Exchequer,CM1 1JZ,"160,862.00",Yes
Communities & Local Government,DCLG,17/09/2012,Current (non AEF) Grants to Local Authorities,Neighbourhoods,EXETER CITY CNCL,,,,5000211143,Grant Payable by Exchequer,EX1 1JN,"101,286.00",Yes
Communities & Local Government,DCLG,17/09/2012,Current (non AEF) Grants to Local Authorities,Neighbourhoods,FAREHAM BC,,,,5000210984,Grant Payable by Exchequer,PO16 7PU,"50,365.00",Yes
Communities & Local Government,DCLG,17/09/2012,Current (non AEF) Grants to Local Authorities,Neighbourhoods,FENLAND DC,,,,5000210985,Grant Payable by Exchequer,PE15 8NQ,"46,977.00",Yes
Communities & Local Government,DCLG,17/09/2012,Current (non AEF) Grants to Local Authorities,Neighbourhoods,FOREST HEATH DISTRICT COUNCIL,,,,5000210986,Grant Payable by Exchequer,IP28 7EY,"109,963.00",Yes
Communities & Local Government,DCLG,17/09/2012,Current (non AEF) Grants to Local Authorities,Neighbourhoods,FOREST OF DEAN DC,,,,5000210987,Grant Payable by Exchequer,GL16 8HG,"33,502.00",Yes
Communities & Local Government,DCLG,17/09/2012,Current (non AEF) Grants to Local Authorities,Neighbourhoods,FYLDE BC,,,,5000211144,Grant Payable by Exchequer,FY8 1LW,"44,817.00",Yes
Communities & Local Government,DCLG,17/09/2012,Current (non AEF) Grants to Local Authorities,Neighbourhoods,GATESHEAD MBC,,,,5000211145,Grant Payable by Exchequer,NE8 1HH,"51,334.00",Yes
Communities & Local Government,DCLG,17/09/2012,Current (non AEF) Grants to Local Authorities,Neighbourhoods,GEDLING BC,,,,5000211146,Grant Payable by Exchequer,NG5 6LU,"57,389.00",Yes
Communities & Local Government,DCLG,17/09/2012,Current (non AEF) Grants to Local Authorities,Neighbourhoods,GLOUCESTER CITY CNCL,,,,5000211147,Grant Payable by Exchequer,GL1 2EQ,"108,314.00",Yes
Communities & Local Government,DCLG,17/09/2012,Current (non AEF) Grants to Local Authorities,Neighbourhoods,GLOUCESTERSHIRE COUNTY CNCL,,,,5000211148,Grant Payable by Exchequer,GL1 2TG,"92,786.00",Yes
Communities & Local Government,DCLG,17/09/2012,Current (non AEF) Grants to Local Authorities,Neighbourhoods,GMRB,,,,5000211109,Grant Payable by Exchequer,BL9 0SW,"32,399.00",Yes
Communities & Local Government,DCLG,17/09/2012,Current (non AEF) Grants to Local Authorities,Neighbourhoods,GOSPORT BOROUGH COUNCIL,,,,5000211149,Grant Payable by Exchequer,PO12 1ED,"17,387.00",Yes
Communities & Local Government,DCLG,17/09/2012,Current (non AEF) Grants to Local Authorities,Neighbourhoods,GRAVESHAM BC,,,,5000211150,Grant Payable by Exchequer,DA12 1AU,"40,102.00",Yes
Communities & Local Government,DCLG,17/09/2012,Current (non AEF) Grants to Local Authorities,Neighbourhoods,GREAT YARMOUTH BC,,,,5000211151,Grant Payable by Exchequer,NR30 2QG,"38,889.00",Yes
Communities & Local Government,DCLG,17/09/2012,Current (non AEF) Grants to Local Authorities,Neighbourhoods,GREENWICH LB,,,,5000211152,Grant Payable by Exchequer,SE18 6BU,"241,282.00",Yes
Communities & Local Government,DCLG,17/09/2012,Current (non AEF) Grants to Local Authorities,Neighbourhoods,GUILDFORD BC,,,,5000210988,Grant Payable by Exchequer,GU2 5BB,"44,714.00",Yes
Communities & Local Government,DCLG,17/09/2012,Current (non AEF) Grants to Local Authorities,Neighbourhoods,HALTON BC (HSG),,,,5000210989,Grant Payable by Exchequer,WA8 7QF,"65,616.00",Yes
Communities & Local Government,DCLG,17/09/2012,Current (non AEF) Grants to Local Authorities,Neighbourhoods,HAMBLETON DC (HSG),,,,5000210990,Grant Payable by Exchequer,DL6 2UU,"43,803.00",Yes
Communities & Local Government,DCLG,17/09/2012,Current (non AEF) Grants to Local Authorities,Neighbourhoods,HAMMERSMITH & FULHAM LB,,,,5000211154,Grant Payable by Exchequer,W6 9JU,"139,527.00",Yes
Communities & Local Government,DCLG,17/09/2012,Current (non AEF) Grants to Local Authorities,Neighbourhoods,HAMPSHIRE COUNTY COUNCIL,,,,5000211155,Grant Payable by Exchequer,SO23 8UB,"182,041.00",Yes
Communities & Local Government,DCLG,17/09/2012,Current (non AEF) Grants to Local Authorities,Neighbourhoods,HARBOROUGH DC (HSG),,,,5000210991,Grant Payable by Exchequer,LE16 7AG,"64,966.00",Yes
Communities & Local Government,DCLG,17/09/2012,Current (non AEF) Grants to Local Authorities,Neighbourhoods,HARINGEY LB,,,,5000211156,Grant Payable by Exchequer,N22 4TR,"132,479.00",Yes
Communities & Local Government,DCLG,17/09/2012,Current (non AEF) Grants to Local Authorities,Neighbourhoods,HARLOW DISTRICT COUNCIL,,,,5000211157,Grant Payable by Exchequer,CM20 1WG,"33,884.00",Yes
Communities & Local Government,DCLG,17/09/2012,Current (non AEF) Grants to Local Authorities,Neighbourhoods,HARROGATE BC,,,,5000210992,Grant Payable by Exchequer,HG1 2SG,"47,889.00",Yes
Communities & Local Government,DCLG,17/09/2012,Current (non AEF) Grants to Local Authorities,Neighbourhoods,HARROW LB,,,,5000211158,Grant Payable by Exchequer,HA1 2UZ,"131,772.00",Yes
Communities & Local Government,DCLG,17/09/2012,Current (non AEF) Grants to Local Authorities,Neighbourhoods,HART DC,,,,5000211159,Grant Payable by Exchequer,GU13 8AE,"32,243.00",Yes
Communities & Local Government,DCLG,17/09/2012,Current (non AEF) Grants to Local Authorities,Neighbourhoods,HARTLEPOOL BOROUGH COUNCIL,,,,5000211160,Grant Payable by Exchequer,TS24 7BT,"58,841.00",Yes
Communities & Local Government,DCLG,17/09/2012,Current (non AEF) Grants to Local Authorities,Neighbourhoods,HASTINGS BC,,,,5000211161,Grant Payable by Exchequer,TN34 3WN,"29,448.00",Yes
Communities & Local Government,DCLG,17/09/2012,Current (non AEF) Grants to Local Authorities,Neighbourhoods,HAVANT BC,,,,5000211162,Grant Payable by Exchequer,PO9 2AX,"23,914.00",Yes
Communities & Local Government,DCLG,17/09/2012,Current (non AEF) Grants to Local Authorities,Neighbourhoods,HAVERING LB,,,,5000211163,Grant Payable by Exchequer,RM1 3BB,"64,075.00",Yes
Communities & Local Government,DCLG,17/09/2012,Current (non AEF) Grants to Local Authorities,Neighbourhoods,HEREFORDSHIRE COUNCIL,,,,5000210993,Grant Payable by Exchequer,HR4 0XH,"108,351.00",Yes
Communities & Local Government,DCLG,17/09/2012,Current (non AEF) Grants to Local Authorities,Neighbourhoods,HERTFORDSHIRE COUNTY CNCL,,,,5000211164,Grant Payable by Exchequer,SG13 8DQ,"153,133.00",Yes
Communities & Local Government,DCLG,17/09/2012,Current (non AEF) Grants to Local Authorities,Neighbourhoods,HERTSMERE BC,,,,5000211165,Grant Payable by Exchequer,WD6 1WA,"43,788.00",Yes
Communities & Local Government,DCLG,17/09/2012,Current (non AEF) Grants to Local Authorities,Neighbourhoods,HIGH PEAK BC,,,,5000210994,Grant Payable by Exchequer,SK17 6EL,"11,287.00",Yes
Communities & Local Government,DCLG,17/09/2012,Current (non AEF) Grants to Local Authorities,Neighbourhoods,HILLINGDON LB,,,,5000211166,Grant Payable by Exchequer,UB8 1UW,"227,365.00",Yes
Communities & Local Government,DCLG,17/09/2012,Current (non AEF) Grants to Local Authorities,Neighbourhoods,HINCKLEY & BOSWORTH BC,,,,5000210995,Grant Payable by Exchequer,LE10 1BZ,"54,469.00",Yes
Communities & Local Government,DCLG,17/09/2012,Current (non AEF) Grants to Local Authorities,Neighbourhoods,HORSHAM DC,,,,5000210996,Grant Payable by Exchequer,RH12 1RL,"58,917.00",Yes
Communities & Local Government,DCLG,17/09/2012,Current (non AEF) Grants to Local Authorities,Neighbourhoods,HOUNSLOW LB,,Public Bodies,,5000211167,Grant Payable by Exchequer,TW3 4DN,"269,149.00",Yes
Communities & Local Government,DCLG,17/09/2012,Current (non AEF) Grants to Local Authorities,Neighbourhoods,HULL CITY COUNCIL,,,,5000211176,Grant Payable by Exchequer,HU1 2AA,"72,357.00",Yes
Communities & Local Government,DCLG,17/09/2012,Current (non AEF) Grants to Local Authorities,Neighbourhoods,HUNTINGDONSHIRE DC,,,,5000210997,Grant Payable by Exchequer,PE18 6TN,"146,528.00",Yes
Communities & Local Government,DCLG,17/09/2012,Current (non AEF) Grants to Local Authorities,Neighbourhoods,HYNDBURN BC,,,,5000211168,Grant Payable by Exchequer,BB5 1EZ,"8,831.00",Yes
Communities & Local Government,DCLG,17/09/2012,Current (non AEF) Grants to Local Authorities,Neighbourhoods,IPSWICH BC,,,,5000211169,Grant Payable by Exchequer,IP1 2EE,"77,560.00",Yes
Communities & Local Government,DCLG,17/09/2012,Current (non AEF) Grants to Local Authorities,Neighbourhoods,ISLE OF WIGHT CNCL,,,,5000211170,Grant Payable by Exchequer,PO30 1UD,"87,478.00",Yes
Communities & Local Government,DCLG,17/09/2012,Current (non AEF) Grants to Local Authorities,Neighbourhoods,ISLES OF SCILLY COUNCIL,,,,5000211171,Grant Payable by Exchequer,TR21 0LW,"1,755.00",Yes
Communities & Local Government,DCLG,17/09/2012,Current (non AEF) Grants to Local Authorities,Neighbourhoods,ISLINGTON LB,,,,5000211172,Grant Payable by Exchequer,N1 1XR,"434,971.00",Yes
Communities & Local Government,DCLG,17/09/2012,Current (non AEF) Grants to Local Authorities,Neighbourhoods,KENT COUNTY CNCL,,,,5000211174,Grant Payable by Exchequer,ME14 1XQ,"217,369.00",Yes
Communities & Local Government,DCLG,17/09/2012,Current (non AEF) Grants to Local Authorities,Neighbourhoods,KETTERING BC,,,,5000211175,Grant Payable by Exchequer,NN15 7QX,"67,367.00",Yes
Communities & Local Government,DCLG,17/09/2012,Current (non AEF) Grants to Local Authorities,Neighbourhoods,KINGS LYNN & WEST NORFOLK BC,,,,5000210998,Grant Payable by Exchequer,PE30 1EX,"80,611.00",Yes
Communities & Local Government,DCLG,17/09/2012,Current (non AEF) Grants to Local Authorities,Neighbourhoods,KINGSTON UPON THAMES  (HSG),,,,5000210999,Grant Payable by Exchequer,KT1 1EU,"106,925.00",Yes
Communities & Local Government,DCLG,17/09/2012,Current (non AEF) Grants to Local Authorities,Neighbourhoods,KIRKLEES COUNCIL (HSG),,,,5000211000,Grant Payable by Exchequer,HD1 2YU,"210,637.00",Yes
Communities & Local Government,DCLG,17/09/2012,Current (non AEF) Grants to Local Authorities,Neighbourhoods,KNOWSLEY MBC,,,,5000211177,Grant Payable by Exchequer,L36 9YZ,"28,751.00",Yes
Communities & Local Government,DCLG,17/09/2012,Current (non AEF) Grants to Local Authorities,Neighbourhoods,LANCASHIRE COUNTY CNCL,,,,5000211179,Grant Payable by Exchequer,PR1 8RD,"78,961.00",Yes
Communities & Local Government,DCLG,17/09/2012,Current (non AEF) Grants to Local Authorities,Neighbourhoods,LANCASTER CITY CNCL,,,,5000211001,Grant Payable by Exchequer,LA1 1PJ,"35,364.00",Yes
Communities & Local Government,DCLG,17/09/2012,Current (non AEF) Grants to Local Authorities,Neighbourhoods,LEEDS CITY CNCL,,,,5000211180,Grant Payable by Exchequer,LS1 1JF,"419,074.00",Yes
Communities & Local Government,DCLG,17/09/2012,Current (non AEF) Grants to Local Authorities,Neighbourhoods,LEICESTER CITY CNCL (HSG),,,,5000211002,Grant Payable by Exchequer,LE1 6ZG,"228,382.00",Yes
Communities & Local Government,DCLG,17/09/2012,Current (non AEF) Grants to Local Authorities,Neighbourhoods,LEICESTERSHIRE COUNTY CNCL,,,,5000211181,Grant Payable by Exchequer,LE3 8RB,"82,334.00",Yes
Communities & Local Government,DCLG,17/09/2012,Current (non AEF) Grants to Local Authorities,Neighbourhoods,LEWES DC,,,,5000211003,Grant Payable by Exchequer,BN7 2DQ,"39,778.00",Yes
Communities & Local Government,DCLG,17/09/2012,Current (non AEF) Grants to Local Authorities,Neighbourhoods,LEWISHAM LB (HSG),,,,5000211004,Grant Payable by Exchequer,SE6 4RU,"127,414.00",Yes
Communities & Local Government,DCLG,17/09/2012,Current (non AEF) Grants to Local Authorities,Neighbourhoods,LICHFIELD DC,,,,5000211182,Grant Payable by Exchequer,WS13 6YX,"37,139.00",Yes
Communities & Local Government,DCLG,17/09/2012,Current (non AEF) Grants to Local Authorities,Neighbourhoods,LINCOLNSHIRE COUNTY COUNCIL,,,,5000211184,Grant Payable by Exchequer,LN1 1YT,"114,496.00",Yes
Communities & Local Government,DCLG,17/09/2012,Current (non AEF) Grants to Local Authorities,Neighbourhoods,LIVERPOOL CITY COUNCIL,,,,5000211185,Grant Payable by Exchequer,L2 2DH,"157,658.00",Yes
Communities & Local Government,DCLG,17/09/2012,Current (non AEF) Grants to Local Authorities,Neighbourhoods,LONDON BOROUGH OF HACKNEY,,,,5000211153,Grant Payable by Exchequer,E8 4RU,"337,333.00",Yes
Communities & Local Government,DCLG,17/09/2012,Current (non AEF) Grants to Local Authorities,Neighbourhoods,LONDON BOROUGH OF LAMBETH,,,,5000211178,Grant Payable by Exchequer,SW2 1RL,"340,548.00",Yes
Communities & Local Government,DCLG,17/09/2012,Current (non AEF) Grants to Local Authorities,Neighbourhoods,LONDON BOROUGH OF NEWHAM,,,,5000211194,Grant Payable by Exchequer,E16 2QU,"243,611.00",Yes
Communities & Local Government,DCLG,17/09/2012,Current (non AEF) Grants to Local Authorities,Neighbourhoods,LONDON BOROUGH OF REDBRIDGE,,,,5000211216,Grant Payable by Exchequer,IG1 1NN,"142,565.00",Yes
Communities & Local Government,DCLG,17/09/2012,Current (non AEF) Grants to Local Authorities,Neighbourhoods,LUTON BC,,,,5000211186,Grant Payable by Exchequer,LU1 1DX,"81,989.00",Yes
Communities & Local Government,DCLG,17/09/2012,Current (non AEF) Grants to Local Authorities,Neighbourhoods,MAIDSTONE BC,,,,5000211005,Grant Payable by Exchequer,ME15 6JQ,"137,506.00",Yes
Communities & Local Government,DCLG,17/09/2012,Current (non AEF) Grants to Local Authorities,Neighbourhoods,MALDON DC,,,,5000211006,Grant Payable by Exchequer,CM9 7DL,"19,152.00",Yes
Communities & Local Government,DCLG,17/09/2012,Current (non AEF) Grants to Local Authorities,Neighbourhoods,MALVERN HILLS DC,,,,5000211187,Grant Payable by Exchequer,WR14 3AF,"57,550.00",Yes
Communities & Local Government,DCLG,17/09/2012,Current (non AEF) Grants to Local Authorities,Neighbourhoods,MANCHESTER CITY CNCL (HSG),,,,5000211007,Grant Payable by Exchequer,M60 2JR,"356,290.00",Yes
Communities & Local Government,DCLG,17/09/2012,Current (non AEF) Grants to Local Authorities,Neighbourhoods,MANSFIELD DC,,,,5000211188,Grant Payable by Exchequer,NG19 7BH,"27,510.00",Yes
Communities & Local Government,DCLG,17/09/2012,Current (non AEF) Grants to Local Authorities,Neighbourhoods,MEDWAY TOWNS D C (HSG),,,,5000211008,Grant Payable by Exchequer,ME4 4TR,"177,446.00",Yes
Communities & Local Government,DCLG,17/09/2012,Current (non AEF) Grants to Local Authorities,Neighbourhoods,MELTON BC,,,,5000211009,Grant Payable by Exchequer,LE13 0UL,"36,430.00",Yes
Communities & Local Government,DCLG,17/09/2012,Current (non AEF) Grants to Local Authorities,Neighbourhoods,MENDIP DISTRICT COUNCIL,,,,5000211010,Grant Payable by Exchequer,BA4 5BA,"76,331.00",Yes
Communities & Local Government,DCLG,17/09/2012,Current (non AEF) Grants to Local Authorities,Neighbourhoods,MERTON LB,,,,5000211189,Grant Payable by Exchequer,SM4 5DX,"86,966.00",Yes
Communities & Local Government,DCLG,17/09/2012,Current (non AEF) Grants to Local Authorities,Neighbourhoods,MID DEVON DC,,,,5000211011,Grant Payable by Exchequer,EX16 6PP,"27,375.00",Yes
Communities & Local Government,DCLG,17/09/2012,Current (non AEF) Grants to Local Authorities,Neighbourhoods,MID SUFFOLK DC,,,,5000211012,Grant Payable by Exchequer,IP1 2DH,"65,866.00",Yes
Communities & Local Government,DCLG,17/09/2012,Current (non AEF) Grants to Local Authorities,Neighbourhoods,MID SUSSEX DC,,,,5000211013,Grant Payable by Exchequer,RH16 1SS,"66,344.00",Yes
Communities & Local Government,DCLG,17/09/2012,Current (non AEF) Grants to Local Authorities,Neighbourhoods,MIDDLESBROUGH BC,,,,5000211190,Grant Payable by Exchequer,TS1 2QQ,"70,299.00",Yes
Communities & Local Government,DCLG,17/09/2012,Current (non AEF) Grants to Local Authorities,Neighbourhoods,MILTON KEYNES BC,,,,5000211191,Grant Payable by Exchequer,MK9 3WJ,"338,888.00",Yes
Communities & Local Government,DCLG,17/09/2012,Current (non AEF) Grants to Local Authorities,Neighbourhoods,MOLE VALLEY DC,,,,5000211014,Grant Payable by Exchequer,RH4 1SJ,"26,967.00",Yes
Communities & Local Government,DCLG,17/09/2012,Current (non AEF) Grants to Local Authorities,Neighbourhoods,NEW FOREST DC,,Public Bodies,,5000211015,Grant Payable by Exchequer,SO43 9ZG,"55,134.00",Yes
Communities & Local Government,DCLG,17/09/2012,Current (non AEF) Grants to Local Authorities,Neighbourhoods,NEWARK & SHERWOOD DC (HSG),,,,5000211016,Grant Payable by Exchequer,NG23 5QX,"58,767.00",Yes
Communities & Local Government,DCLG,17/09/2012,Current (non AEF) Grants to Local Authorities,Neighbourhoods,NEWCASTLE UNDER LYME BC,,,,5000211192,Grant Payable by Exchequer,ST5 2AG,"59,531.00",Yes
Communities & Local Government,DCLG,17/09/2012,Current (non AEF) Grants to Local Authorities,Neighbourhoods,NEWCASTLE UPON TYNE DC,,,,5000211193,Grant Payable by Exchequer,NE99 1RD,"88,376.00",Yes
Communities & Local Government,DCLG,17/09/2012,Current (non AEF) Grants to Local Authorities,Neighbourhoods,NORFOLK COUNTY COUNCIL,,,,5000211195,Grant Payable by Exchequer,NR1 2DW,"122,243.00",Yes
Communities & Local Government,DCLG,17/09/2012,Current (non AEF) Grants to Local Authorities,Neighbourhoods,NORTH DEVON DC,,,,5000211017,Grant Payable by Exchequer,EX31 1EA,"37,914.00",Yes
Communities & Local Government,DCLG,17/09/2012,Current (non AEF) Grants to Local Authorities,Neighbourhoods,NORTH DORSET DC,,,,5000211018,Grant Payable by Exchequer,DT11 7LL,"45,102.00",Yes
Communities & Local Government,DCLG,17/09/2012,Current (non AEF) Grants to Local Authorities,Neighbourhoods,NORTH EAST DERBYSHIRE DC,,,,5000211196,Grant Payable by Exchequer,S40 1LF,"26,263.00",Yes
Communities & Local Government,DCLG,17/09/2012,Current (non AEF) Grants to Local Authorities,Neighbourhoods,NORTH EAST LINCOLN DC (HSG),,,,5000211019,Grant Payable by Exchequer,DN35 8LN,"57,734.00",Yes
Communities & Local Government,DCLG,17/09/2012,Current (non AEF) Grants to Local Authorities,Neighbourhoods,NORTH HERTS DC (HOUSING) (HSG),,,,5000211020,Grant Payable by Exchequer,SG6 3HN,"79,764.00",Yes
Communities & Local Government,DCLG,17/09/2012,Current (non AEF) Grants to Local Authorities,Neighbourhoods,NORTH KESTEVEN DC,,,,5000211197,Grant Payable by Exchequer,NG34 7EF,"87,384.00",Yes
Communities & Local Government,DCLG,17/09/2012,Current (non AEF) Grants to Local Authorities,Neighbourhoods,NORTH LINCOLNSHIRE DC (HSG),,,,5000211021,Grant Payable by Exchequer,DN16 1AB,"91,772.00",Yes
Communities & Local Government,DCLG,17/09/2012,Current (non AEF) Grants to Local Authorities,Neighbourhoods,NORTH NORFOLK DC,,,,5000211022,Grant Payable by Exchequer,NR27 9EJ,"46,840.00",Yes
Communities & Local Government,DCLG,17/09/2012,Current (non AEF) Grants to Local Authorities,Neighbourhoods,NORTH SOMERSET DC,,,,5000211198,Grant Payable by Exchequer,BS23 1LL,"158,834.00",Yes
Communities & Local Government,DCLG,17/09/2012,Current (non AEF) Grants to Local Authorities,Neighbourhoods,NORTH TYNESIDE MBC,,,,5000211199,Grant Payable by Exchequer,NE27 0BY,"65,271.00",Yes
Communities & Local Government,DCLG,17/09/2012,Current (non AEF) Grants to Local Authorities,Neighbourhoods,NORTH WARWICKSHIRE BC,,Large,,5000211023,Grant Payable by Exchequer,CV9 1DE,"15,967.00",Yes
Communities & Local Government,DCLG,17/09/2012,Current (non AEF) Grants to Local Authorities,Neighbourhoods,NORTH WEST LEICESTER DC,,,,5000211024,Grant Payable by Exchequer,LE67 3FJ,"35,479.00",Yes
Communities & Local Government,DCLG,17/09/2012,Current (non AEF) Grants to Local Authorities,Neighbourhoods,NORTH YORKSHIRE CC (DL7 8AL),,,,5000211200,Grant Payable by Exchequer,DL7 8AL,"65,075.00",Yes
Communities & Local Government,DCLG,17/09/2012,Current (non AEF) Grants to Local Authorities,Neighbourhoods,NORTHAMPTON BOROUGH COUNCIL,,,,5000211201,Grant Payable by Exchequer,NN4 7NR,"104,926.00",Yes
Communities & Local Government,DCLG,17/09/2012,Current (non AEF) Grants to Local Authorities,Neighbourhoods,NORTHAMPTONSHIRE COUNTY COUNCIL,,,,5000211202,Grant Payable by Exchequer,NN4 7BR,"109,566.00",Yes
Communities & Local Government,DCLG,17/09/2012,Current (non AEF) Grants to Local Authorities,Neighbourhoods,NORTHUMBERLAND COUNTY COUNCIL,,,,5000211286,Grant Payable by Exchequer,NE61 2EF,"133,526.00",Yes
Communities & Local Government,DCLG,17/09/2012,Current (non AEF) Grants to Local Authorities,Neighbourhoods,NORWICH CITY CNCL,,,,5000211203,Grant Payable by Exchequer,NR2 1NH,"91,051.00",Yes
Communities & Local Government,DCLG,17/09/2012,Current (non AEF) Grants to Local Authorities,Neighbourhoods,NOTTINGHAM CITY COUNCIL,,,,5000211204,Grant Payable by Exchequer,M33 0DJ,"140,732.00",Yes
Communities & Local Government,DCLG,17/09/2012,Current (non AEF) Grants to Local Authorities,Neighbourhoods,NOTTINGHAMSHIRE COUNTY CNCL,,,,5000211205,Grant Payable by Exchequer,NG1 4BU,"81,038.00",Yes
Communities & Local Government,DCLG,17/09/2012,Current (non AEF) Grants to Local Authorities,Neighbourhoods,NUNEATON & BEDWORTH BC,,,,5000211206,Grant Payable by Exchequer,CV11 5AA,"45,258.00",Yes
Communities & Local Government,DCLG,17/09/2012,Current (non AEF) Grants to Local Authorities,Neighbourhoods,OADBY & WIGSTON BC (HSG),,,,5000211025,Grant Payable by Exchequer,LE8 2DR,"6,033.00",Yes
Communities & Local Government,DCLG,17/09/2012,Current (non AEF) Grants to Local Authorities,Neighbourhoods,OLDHAM MBC,,,,5000211207,Grant Payable by Exchequer,OL1 1UH,"22,528.00",Yes
Communities & Local Government,DCLG,17/09/2012,Current (non AEF) Grants to Local Authorities,Neighbourhoods,OXFORD CITY COUNCIL,,,,5000211208,Grant Payable by Exchequer,OX1 1DF,"99,282.00",Yes
Communities & Local Government,DCLG,17/09/2012,Current (non AEF) Grants to Local Authorities,Neighbourhoods,OXFORDSHIRE CC,,,,5000211209,Grant Payable by Exchequer,OX1 1TH,"81,814.00",Yes
Communities & Local Government,DCLG,17/09/2012,Current (non AEF) Grants to Local Authorities,Neighbourhoods,PENDLE BC,,,,5000211210,Grant Payable by Exchequer,BB9 OLX,"14,794.00",Yes
Communities & Local Government,DCLG,17/09/2012,Current (non AEF) Grants to Local Authorities,Neighbourhoods,PETERBOROUGH CITY CNCL,,,,5000211211,Grant Payable by Exchequer,PE1 1HG,"176,388.00",Yes
Communities & Local Government,DCLG,17/09/2012,Current (non AEF) Grants to Local Authorities,Neighbourhoods,PLYMOUTH CITY CNCL,,,,5000211212,Grant Payable by Exchequer,PL1 2AA,"117,778.00",Yes
Communities & Local Government,DCLG,17/09/2012,Current (non AEF) Grants to Local Authorities,Neighbourhoods,POOLE BC (HSG),,,,5000211026,Grant Payable by Exchequer,BH15 2RU,"79,266.00",Yes
Communities & Local Government,DCLG,17/09/2012,Current (non AEF) Grants to Local Authorities,Neighbourhoods,PORTSMOUTH CITY COUNCIL,,,,5000211213,Grant Payable by Exchequer,PO1 2AR,"99,349.00",Yes
Communities & Local Government,DCLG,17/09/2012,Current (non AEF) Grants to Local Authorities,Neighbourhoods,PRESTON BC,,,,5000211214,Grant Payable by Exchequer,PR1 2RL,"20,818.00",Yes
Communities & Local Government,DCLG,17/09/2012,Current (non AEF) Grants to Local Authorities,Neighbourhoods,PURBECK DC,,,,5000211027,Grant Payable by Exchequer,DT2 8UP,"12,306.00",Yes
Communities & Local Government,DCLG,17/09/2012,Current (non AEF) Grants to Local Authorities,Neighbourhoods,READING BC,,,,5000211215,Grant Payable by Exchequer,RG1 7TD,"95,176.00",Yes
Communities & Local Government,DCLG,17/09/2012,Current (non AEF) Grants to Local Authorities,Neighbourhoods,REDCAR & CLEVELAND BOROUGH COUNCIL,,,,5000211217,Grant Payable by Exchequer,TS6 9AR,"33,744.00",Yes
Communities & Local Government,DCLG,17/09/2012,Current (non AEF) Grants to Local Authorities,Neighbourhoods,REDDITCH BC,,,,5000211218,Grant Payable by Exchequer,B98 8AH,"23,623.00",Yes
Communities & Local Government,DCLG,17/09/2012,Current (non AEF) Grants to Local Authorities,Neighbourhoods,REIGATE & BANSTEAD BC,,,,5000211219,Grant Payable by Exchequer,RH2 OSH,"84,673.00",Yes
Communities & Local Government,DCLG,17/09/2012,Current (non AEF) Grants to Local Authorities,Neighbourhoods,RIBBLE VALLEY BC,,,,5000211028,Grant Payable by Exchequer,BB7 2RA,"13,757.00",Yes
Communities & Local Government,DCLG,17/09/2012,Current (non AEF) Grants to Local Authorities,Neighbourhoods,RICHMOND UPON THAMES LB,,,,5000211220,Grant Payable by Exchequer,TW1 3BZ,"85,554.00",Yes
Communities & Local Government,DCLG,17/09/2012,Current (non AEF) Grants to Local Authorities,Neighbourhoods,RICHMONDSHIRE DC,,,,5000211029,Grant Payable by Exchequer,DL10 4JE,"14,429.00",Yes
Communities & Local Government,DCLG,17/09/2012,Current (non AEF) Grants to Local Authorities,Neighbourhoods,ROCHDALE MBC,,,,5000211221,Grant Payable by Exchequer,OL16 1LQ,"72,163.00",Yes
Communities & Local Government,DCLG,17/09/2012,Current (non AEF) Grants to Local Authorities,Neighbourhoods,ROCHFORD DISTRICT COUNCIL,,,,5000211222,Grant Payable by Exchequer,SS4 1BW,"20,378.00",Yes
Communities & Local Government,DCLG,17/09/2012,Current (non AEF) Grants to Local Authorities,Neighbourhoods,ROSSENDALE BC,,,,5000211223,Grant Payable by Exchequer,BB4 7LZ,"16,625.00",Yes
Communities & Local Government,DCLG,17/09/2012,Current (non AEF) Grants to Local Authorities,Neighbourhoods,ROTHER DC (HSG),,,,5000211030,Grant Payable by Exchequer,TN39 3JX,"46,706.00",Yes
Communities & Local Government,DCLG,17/09/2012,Current (non AEF) Grants to Local Authorities,Neighbourhoods,ROTHERHAM MBC,,,,5000211224,Grant Payable by Exchequer,S60 1AE,"121,037.00",Yes
Communities & Local Government,DCLG,17/09/2012,Current (non AEF) Grants to Local Authorities,Neighbourhoods,ROYAL BOROUGH OF KENSINGTON & CHELS,,,,5000211173,Grant Payable by Exchequer,W8 7NX,"67,753.00",Yes
Communities & Local Government,DCLG,17/09/2012,Current (non AEF) Grants to Local Authorities,Neighbourhoods,RUGBY BC,,,,5000211225,Grant Payable by Exchequer,CV21 2LA,"68,404.00",Yes
Communities & Local Government,DCLG,17/09/2012,Current (non AEF) Grants to Local Authorities,Neighbourhoods,RUNNYMEDE BOROUGH COUNCIL,,,,5000211226,Grant Payable by Exchequer,KT15 2AH,"56,921.00",Yes
Communities & Local Government,DCLG,17/09/2012,Current (non AEF) Grants to Local Authorities,Neighbourhoods,RUSHCLIFFE BOROUGH COUNCIL,,,,5000211031,Grant Payable by Exchequer,NG2 5FE,"38,526.00",Yes
Communities & Local Government,DCLG,17/09/2012,Current (non AEF) Grants to Local Authorities,Neighbourhoods,RUSHMOOR BC,,,,5000211227,Grant Payable by Exchequer,GU14 7JU,"54,100.00",Yes
Communities & Local Government,DCLG,17/09/2012,Current (non AEF) Grants to Local Authorities,Neighbourhoods,RUTLAND CC,,,,5000211228,Grant Payable by Exchequer,LE15 6HP,"19,795.00",Yes
Communities & Local Government,DCLG,17/09/2012,Current (non AEF) Grants to Local Authorities,Neighbourhoods,RYEDALE DC,,,,5000211032,Grant Payable by Exchequer,YO17 0HH,"33,677.00",Yes
Communities & Local Government,DCLG,17/09/2012,Current (non AEF) Grants to Local Authorities,Neighbourhoods,SALFORD CITY CNCL,,,,5000211229,Grant Payable by Exchequer,M27 5AW,"329,598.00",Yes
Communities & Local Government,DCLG,17/09/2012,Current (non AEF) Grants to Local Authorities,Neighbourhoods,SANDWELL MBC,,,,5000211230,Grant Payable by Exchequer,B69 3BS,"133,729.00",Yes
Communities & Local Government,DCLG,17/09/2012,Current (non AEF) Grants to Local Authorities,Neighbourhoods,SCARBOROUGH BC,,Large,,5000211033,Grant Payable by Exchequer,YO11 2HG,"22,312.00",Yes
Communities & Local Government,DCLG,17/09/2012,Current (non AEF) Grants to Local Authorities,Neighbourhoods,SEDGEMOOR DC,,,,5000211034,Grant Payable by Exchequer,TA6 3AR,"106,971.00",Yes
Communities & Local Government,DCLG,17/09/2012,Current (non AEF) Grants to Local Authorities,Neighbourhoods,SEFTON MBC,,,,5000211231,Grant Payable by Exchequer,L20 3NQ,"122,019.00",Yes
Communities & Local Government,DCLG,17/09/2012,Current (non AEF) Grants to Local Authorities,Neighbourhoods,SELBY DC,,,,5000211035,Grant Payable by Exchequer,YO8 0SA,"67,420.00",Yes
Communities & Local Government,DCLG,17/09/2012,Current (non AEF) Grants to Local Authorities,Neighbourhoods,SEVENOAKS DC,,,,5000211036,Grant Payable by Exchequer,TN13 1HG,"49,468.00",Yes
Communities & Local Government,DCLG,17/09/2012,Current (non AEF) Grants to Local Authorities,Neighbourhoods,SHEFFIELD CITY CNCL,,,,5000211232,Grant Payable by Exchequer,S1 1UR,"258,476.00",Yes
Communities & Local Government,DCLG,17/09/2012,Current (non AEF) Grants to Local Authorities,Neighbourhoods,SHEPWAY DISTRICT COUNCIL,,,,5000211037,Grant Payable by Exchequer,CT20 2QY,"57,575.00",Yes
Communities & Local Government,DCLG,17/09/2012,Current (non AEF) Grants to Local Authorities,Neighbourhoods,SHROPSHIRE UNITARY AUTHORITY,,,,5000211291,Grant Payable by Exchequer,SY2 6ND,"216,681.00",Yes
Communities & Local Government,DCLG,17/09/2012,Current (non AEF) Grants to Local Authorities,Neighbourhoods,SLOUGH BOROUGH COUNCIL,,,,5000211233,Grant Payable by Exchequer,SL1 3UQ,"103,912.00",Yes
Communities & Local Government,DCLG,17/09/2012,Current (non AEF) Grants to Local Authorities,Neighbourhoods,SOLIHULL MBC,,,,5000211234,Grant Payable by Exchequer,B91 3QR,"111,927.00",Yes
Communities & Local Government,DCLG,17/09/2012,Current (non AEF) Grants to Local Authorities,Neighbourhoods,SOMERSET COUNTY CNCL,,,,5000211235,Grant Payable by Exchequer,TA1 4DY,"96,936.00",Yes
Communities & Local Government,DCLG,17/09/2012,Current (non AEF) Grants to Local Authorities,Neighbourhoods,SOUTH BUCKS DC (HSG),,,,5000211038,Grant Payable by Exchequer,UB9 4LH,"41,000.00",Yes
Communities & Local Government,DCLG,17/09/2012,Current (non AEF) Grants to Local Authorities,Neighbourhoods,SOUTH CAMBRIDGESHIRE DC,,,,5000211039,Grant Payable by Exchequer,CB23 6EA,"133,774.00",Yes
Communities & Local Government,DCLG,17/09/2012,Current (non AEF) Grants to Local Authorities,Neighbourhoods,SOUTH DERBYSHIRE D C,,,,5000211040,Grant Payable by Exchequer,DE11 0AH,"74,265.00",Yes
Communities & Local Government,DCLG,17/09/2012,Current (non AEF) Grants to Local Authorities,Neighbourhoods,SOUTH GLOUCESTERSHIRE DC (HSG),,,,5000211041,Grant Payable by Exchequer,BS15 2TR,"163,460.00",Yes
Communities & Local Government,DCLG,17/09/2012,Current (non AEF) Grants to Local Authorities,Neighbourhoods,SOUTH HAMS DC,,,,5000211042,Grant Payable by Exchequer,TQ9 5NE,"63,277.00",Yes
Communities & Local Government,DCLG,17/09/2012,Current (non AEF) Grants to Local Authorities,Neighbourhoods,SOUTH HOLLAND,,,,5000211043,Grant Payable by Exchequer,PE11 2XE,"44,030.00",Yes
Communities & Local Government,DCLG,17/09/2012,Current (non AEF) Grants to Local Authorities,Neighbourhoods,SOUTH KESTEVEN DC (HSG),,,,5000211044,Grant Payable by Exchequer,NG31 6PZ,"98,709.00",Yes
Communities & Local Government,DCLG,17/09/2012,Current (non AEF) Grants to Local Authorities,Neighbourhoods,SOUTH LAKELAND DC,,,,5000211045,Grant Payable by Exchequer,LA49 4DQ,"5,690.00",Yes
Communities & Local Government,DCLG,17/09/2012,Current (non AEF) Grants to Local Authorities,Neighbourhoods,SOUTH NORFOLK DC,,,,5000211046,Grant Payable by Exchequer,NR15 2XE,"130,730.00",Yes
Communities & Local Government,DCLG,17/09/2012,Current (non AEF) Grants to Local Authorities,Neighbourhoods,SOUTH NORTHAMPTONSHIRE DC,,,,5000211047,Grant Payable by Exchequer,NN12 7AE,"49,852.00",Yes
Communities & Local Government,DCLG,17/09/2012,Current (non AEF) Grants to Local Authorities,Neighbourhoods,SOUTH OXFORDSHIRE DC,,,,5000211048,Grant Payable by Exchequer,OX10 8HQ,"46,424.00",Yes
Communities & Local Government,DCLG,17/09/2012,Current (non AEF) Grants to Local Authorities,Neighbourhoods,SOUTH RIBBLE BC,,,,5000211236,Grant Payable by Exchequer,PR5 1DH,"25,612.00",Yes
Communities & Local Government,DCLG,17/09/2012,Current (non AEF) Grants to Local Authorities,Neighbourhoods,SOUTH SOMERSET DC,,,,5000211049,Grant Payable by Exchequer,BA20 2DS,"106,553.00",Yes
Communities & Local Government,DCLG,17/09/2012,Current (non AEF) Grants to Local Authorities,Neighbourhoods,SOUTH STAFFORDSHIRE DC,,,,5000211050,Grant Payable by Exchequer,WV8 1PX,"38,964.00",Yes
Communities & Local Government,DCLG,17/09/2012,Current (non AEF) Grants to Local Authorities,Neighbourhoods,SOUTH TYNESIDE COUNCIL,,,,5000211237,Grant Payable by Exchequer,NE33 2RL,"31,346.00",Yes
Communities & Local Government,DCLG,17/09/2012,Current (non AEF) Grants to Local Authorities,Neighbourhoods,SOUTHAMPTON CITY CNCL,,,,5000211238,Grant Payable by Exchequer,SO14 7LF,"142,813.00",Yes
Communities & Local Government,DCLG,17/09/2012,Current (non AEF) Grants to Local Authorities,Neighbourhoods,SOUTHEND ON SEA BC,,,,5000211239,Grant Payable by Exchequer,SS2 6EP,"48,332.00",Yes
